ORGANISATION_NAME,SERVICE_RESPONSIBLE,SUPPLIER_NAME,SUPPLIER_CODE,PAYMENT_DATE,TRANSACTION_REF,NET_AMOUNT_BY_LINE_ITEM,IRRECOVERABLE_VAT,PURPOSE_OF_SPEND,PROCUREMENT_CATEGORY_NAME,TRANSACTION_TYPE,PAYMENT_TYPE,CARD_TRANS,INVOICE_DATE,FINANCIAL_YEAR,FINANCIAL_PERIOD,SUPPLIERS_INVOICE_REFERENCE,COST_CENTRE_CODE,COST_CENTRE_DESC,ACCOUNT_CODE,ACCOUNT_DESC
GUILDFORD BOROUGH COUNCIL,DEVELOPMENT CONTROL,CONCEPT GROUP LTD,85681,02-Apr-20,2111671,954.01,0,STATIONERY & OFFICE SUPPLIES,OTHER OFFICE EQUIPMENT SUPPLIERS,Invoice,BACS,None,30-Mar-20,2020,1,T978119,D5100,DEVELOPMENT CONTROL - FEE EARN,D3472,STATIONERY & OFFICE SUPPLIES
GUILDFORD BOROUGH COUNCIL,OFF STREET PARKING,COMENSURA LTD,32435,30-Apr-20,2117163,-2.34,0,AGENCY STAFF,OTHER RECRUITMENT AGENCIES AND SERVICE PROVIDERS,Invoice,BACS,None,26-Apr-20,2020,1,1043758,B2111,CAR PARKS - ADMINISTRATION,A5191,AGENCY STAFF
GUILDFORD BOROUGH COUNCIL,RESPONSIVE & PLANNED MAINTENAN,CONCRETE REPAIRS LTD,72288,09-Apr-20,2112780,149.25,0,FIRE ALARMS  - SERVICE,"CONCRETE CUTTING, DRILLING AND MAINTENANCE CONTRACTORS",Invoice,BACS,None,28-Feb-20,2020,1,INV/016046,M5106,REPAIRS-SHELT-RESPONSIVE (BHS),B1339,FIRE ALARMS  - SERVICE
GUILDFORD BOROUGH COUNCIL,PROPERTY,CONCRETE REPAIRS LTD,72288,09-Apr-20,2112778,1365,0,CONTRACT PYTS-MAIN CONTRACTOR,"CONCRETE CUTTING, DRILLING AND MAINTENANCE CONTRACTORS",Invoice,BACS,None,28-Feb-20,2020,1,INV/016060,P74068,NEW HOUSE RENDER & AIR CON,1233,CONTRACT PYTS-MAIN CONTRACTOR
GUILDFORD BOROUGH COUNCIL,RESPONSIVE & PLANNED MAINTENAN,CONCRETE REPAIRS LTD,72288,30-Apr-20,2117028,110.47,0,FIRE ALARMS  - SERVICE,"CONCRETE CUTTING, DRILLING AND MAINTENANCE CONTRACTORS",Invoice,BACS,None,31-Mar-20,2020,1,INV/016162,M5113,REPAIRS-RESPONSIVE (BHS),B1339,FIRE ALARMS  - SERVICE
GUILDFORD BOROUGH COUNCIL,GUILDHALL,CONCRETE REPAIRS LTD,72288,30-Apr-20,2117028,110.47,0,FIRE ALARMS  - SERVICE,"CONCRETE CUTTING, DRILLING AND MAINTENANCE CONTRACTORS",Invoice,BACS,None,31-Mar-20,2020,1,INV/016162,F3311,GUILDHALL,B1339,FIRE ALARMS  - SERVICE
GUILDFORD BOROUGH COUNCIL,RESPONSIVE & PLANNED MAINTENAN,CONCRETE REPAIRS LTD,72288,09-Apr-20,2112780,131.51,0,FIRE ALARMS  - SERVICE,"CONCRETE CUTTING, DRILLING AND MAINTENANCE CONTRACTORS",Invoice,BACS,None,28-Feb-20,2020,1,INV/016046,M5106,REPAIRS-SHELT-RESPONSIVE (BHS),B1339,FIRE ALARMS  - SERVICE
GUILDFORD BOROUGH COUNCIL,OFF STREET PARKING,CONCRETE REPAIRS LTD,72288,09-Apr-20,2112777,90,0,MECHANICAL/ELECTRICAL MNTCE AG,"CONCRETE CUTTING, DRILLING AND MAINTENANCE CONTRACTORS",Invoice,BACS,None,29-Feb-20,2020,1,INV/016059,B2216,GENERAL UPKEEP- URBAN CAR PKS,B1221,MECHANICAL/ELECTRICAL MNTCE AG
GUILDFORD BOROUGH COUNCIL,RESPONSIVE & PLANNED MAINTENAN,CONCRETE REPAIRS LTD,72288,30-Apr-20,2117028,131.51,0,FIRE ALARMS  - SERVICE,"CONCRETE CUTTING, DRILLING AND MAINTENANCE CONTRACTORS",Invoice,BACS,None,31-Mar-20,2020,1,INV/016162,M5106,REPAIRS-SHELT-RESPONSIVE (BHS),B1339,FIRE ALARMS  - SERVICE
GUILDFORD BOROUGH COUNCIL,IT RENEWALS,CONCRETE REPAIRS LTD,72288,07-Apr-20,2112291,61164.06,0,CONTRACT PYTS-MAIN CONTRACTOR,"CONCRETE CUTTING, DRILLING AND MAINTENANCE CONTRACTORS",Invoice,BACS,None,05-Feb-20,2020,1,INV/15977,P81034,ICT INFRASTRUCTURE IMPROVEMENT,1233,CONTRACT PYTS-MAIN CONTRACTOR
GUILDFORD BOROUGH COUNCIL,OFF STREET PARKING,CONCRETE REPAIRS LTD,72288,09-Apr-20,2112777,90,0,MECHANICAL/ELECTRICAL MNTCE AG,"CONCRETE CUTTING, DRILLING AND MAINTENANCE CONTRACTORS",Invoice,BACS,None,29-Feb-20,2020,1,INV/016059,B2216,GENERAL UPKEEP- URBAN CAR PKS,B1221,MECHANICAL/ELECTRICAL MNTCE AG
GUILDFORD BOROUGH COUNCIL,GUILDFORD HOUSE,CONCRETE REPAIRS LTD,72288,30-Apr-20,2117028,110.47,0,MECHANICAL/ELECTRICAL MNTCE AG,"CONCRETE CUTTING, DRILLING AND MAINTENANCE CONTRACTORS",Invoice,BACS,None,31-Mar-20,2020,1,INV/016162,A4511,GUILDFORD HOUSE ADMINISTRATION,B1221,MECHANICAL/ELECTRICAL MNTCE AG
GUILDFORD BOROUGH COUNCIL,DEVELOPMENT CONTROL,CONCEPT GROUP LTD,85681,02-Apr-20,2111661,665,0,MAINTENANCE AGREEMENTS,OTHER OFFICE EQUIPMENT SUPPLIERS,Invoice,BACS,None,30-Mar-20,2020,1,978054,D5100,DEVELOPMENT CONTROL - FEE EARN,D1431,MAINTENANCE AGREEMENTS
GUILDFORD BOROUGH COUNCIL,RESPONSIVE & PLANNED MAINTENAN,CONCRETE REPAIRS LTD,72288,09-Apr-20,2112780,586.08,0,FIRE ALARMS  - SERVICE,"CONCRETE CUTTING, DRILLING AND MAINTENANCE CONTRACTORS",Invoice,BACS,None,28-Feb-20,2020,1,INV/016046,M5106,REPAIRS-SHELT-RESPONSIVE (BHS),B1339,FIRE ALARMS  - SERVICE
GUILDFORD BOROUGH COUNCIL,GF NET REVENUE ACCOUNT,COMPTON PARISH COUNCIL,1433,07-Apr-20,2112158,13588,0,OOE - PARISH PRECEPTS PAID,LOCAL GOVERNMENT [UK ONLY],Invoice,BACS,None,31-Mar-20,2020,1,PARISH PRECEPT,V01005,GF NET REVENUE ACCOUNT,2482,OOE - PARISH PRECEPTS PAID
GUILDFORD BOROUGH COUNCIL,PARISH & LOCAL LIAISON,COMPTON PARISH COUNCIL,1433,07-Apr-20,2112158,920.5,0,LCTSS PARISH GRANT,LOCAL GOVERNMENT [UK ONLY],Invoice,BACS,None,31-Mar-20,2020,1,PARISH PRECEPT,F1115,PARISH LIAISON,D7431,LCTSS PARISH GRANT
GUILDFORD BOROUGH COUNCIL,REFUSE AND RECYCLING,COMENSURA LTD,32435,16-Apr-20,2113429,161.28,0,AGENCY STAFF,OTHER RECRUITMENT AGENCIES AND SERVICE PROVIDERS,Invoice,BACS,None,12-Apr-20,2020,1,1043102,B7766,KERBSIDE RECYCLING,A5191,AGENCY STAFF
GUILDFORD BOROUGH COUNCIL,REFUSE AND RECYCLING,COMENSURA LTD,32435,16-Apr-20,2113429,226.88,0,AGENCY STAFF,OTHER RECRUITMENT AGENCIES AND SERVICE PROVIDERS,Invoice,BACS,None,12-Apr-20,2020,1,1043102,B7744,GREEN WASTE,A5191,AGENCY STAFF
GUILDFORD BOROUGH COUNCIL,REFUSE AND RECYCLING,COMENSURA LTD,32435,16-Apr-20,2113429,-1.72,0,AGENCY STAFF,OTHER RECRUITMENT AGENCIES AND SERVICE PROVIDERS,Invoice,BACS,None,12-Apr-20,2020,1,1043102,B7766,KERBSIDE RECYCLING,A5191,AGENCY STAFF
GUILDFORD BOROUGH COUNCIL,REFUSE AND RECYCLING,COMENSURA LTD,32435,16-Apr-20,2113429,804.74,0,AGENCY STAFF,OTHER RECRUITMENT AGENCIES AND SERVICE PROVIDERS,Invoice,BACS,None,12-Apr-20,2020,1,1043102,B7766,KERBSIDE RECYCLING,A5191,AGENCY STAFF
GUILDFORD BOROUGH COUNCIL,BUILDING CONTROL SUMMARY,COMENSURA LTD,32435,16-Apr-20,2113429,411,0,AGENCY STAFF,OTHER RECRUITMENT AGENCIES AND SERVICE PROVIDERS,Invoice,BACS,None,12-Apr-20,2020,1,1043102,D5700,BUILDING CONTROL - FEE,A5191,AGENCY STAFF
GUILDFORD BOROUGH COUNCIL,OFF STREET PARKING,COMENSURA LTD,32435,16-Apr-20,2113429,-1.76,0,AGENCY STAFF,OTHER RECRUITMENT AGENCIES AND SERVICE PROVIDERS,Invoice,BACS,None,12-Apr-20,2020,1,1043102,B2111,CAR PARKS - ADMINISTRATION,A5191,AGENCY STAFF
GUILDFORD BOROUGH COUNCIL,REFUSE AND RECYCLING,COMENSURA LTD,32435,09-Apr-20,2112668,180.08,0,AGENCY STAFF,OTHER RECRUITMENT AGENCIES AND SERVICE PROVIDERS,Invoice,BACS,None,05-Apr-20,2020,1,1042760,B7744,GREEN WASTE,A5191,AGENCY STAFF
GUILDFORD BOROUGH COUNCIL,REFUSE AND RECYCLING,COMENSURA LTD,32435,09-Apr-20,2112668,334.95,0,AGENCY STAFF,OTHER RECRUITMENT AGENCIES AND SERVICE PROVIDERS,Invoice,BACS,None,05-Apr-20,2020,1,1042760,K3551,REFUSE COLLECTION,A5191,AGENCY STAFF
GUILDFORD BOROUGH COUNCIL,REFUSE AND RECYCLING,COMENSURA LTD,32435,09-Apr-20,2112668,563.88,0,AGENCY STAFF,OTHER RECRUITMENT AGENCIES AND SERVICE PROVIDERS,Invoice,BACS,None,05-Apr-20,2020,1,1042760,B7711,RECYCLING ADMINISTRATION,A5191,AGENCY STAFF
GUILDFORD BOROUGH COUNCIL,OFF STREET PARKING,CONCRETE REPAIRS LTD,72288,09-Apr-20,2112779,109.24,0,R&M - GENERAL,"CONCRETE CUTTING, DRILLING AND MAINTENANCE CONTRACTORS",Invoice,BACS,None,28-Feb-20,2020,1,INV/016061,B2311,CONTRACT PARKING- ADMIN.,B1231,R&M - GENERAL
GUILDFORD BOROUGH COUNCIL,VEHICLE MAINTENANCE,CONNECTIONS UK,1450,21-Apr-20,2113730,350.2,0,CONSUMABLES,EVENT MANAGEMENT AGENCIES,Invoice,BACS,None,23-Mar-20,2020,1,3952,K5551,VEHICLE MAINTENANCE,D1587,CONSUMABLES
GUILDFORD BOROUGH COUNCIL,DAY SERVICES,CONTRACT SECURITY SERVICES LTD,1466,23-Apr-20,2113795,64.08,0,CASH COLLECTION SERVICE,OTHER SECURITY SERVICE PROVIDERS,Invoice,BACS,None,02-Mar-20,2020,1,58350,C8188,WEST HUB SHAWFIELD,D4441,CASH COLLECTION SERVICE
GUILDFORD BOROUGH COUNCIL,OFF STREET PARKING,CONTRACT SECURITY SERVICES LTD,1466,23-Apr-20,2113795,14.78,0,CASH COLLECTION SERVICE,OTHER SECURITY SERVICE PROVIDERS,Invoice,BACS,None,02-Mar-20,2020,1,58350,B2115,PARKING OFFICE ACCOMM COSTS,D4441,CASH COLLECTION SERVICE
GUILDFORD BOROUGH COUNCIL,PUBLIC CONVENIENCES,CONTRACT SECURITY SERVICES LTD,1466,30-Apr-20,2113796,27.5,0,CONTRACT PAYMENTS,OTHER SECURITY SERVICE PROVIDERS,Invoice,BACS,None,02-Mar-20,2020,1,58352,K6545,PUBLIC CONVENIENCES,B9802,CONTRACT PAYMENTS
GUILDFORD BOROUGH COUNCIL,DAY SERVICES,CONTRACT SECURITY SERVICES LTD,1466,23-Apr-20,2113795,64.08,0,CASH COLLECTION SERVICE,OTHER SECURITY SERVICE PROVIDERS,Invoice,BACS,None,02-Mar-20,2020,1,58350,C8189,CENTRAL HUB PARK BARN,D4441,CASH COLLECTION SERVICE
GUILDFORD BOROUGH COUNCIL,WOKING ROAD DEPOT,CONTRACT SECURITY SERVICES LTD,1466,23-Apr-20,2113795,14.78,0,CASH COLLECTION SERVICE,OTHER SECURITY SERVICE PROVIDERS,Invoice,BACS,None,02-Mar-20,2020,1,58350,B4452,WOKING ROAD DEPOT,D4441,CASH COLLECTION SERVICE
GUILDFORD BOROUGH COUNCIL,PUBLIC CONVENIENCES,CONTRACT SECURITY SERVICES LTD,1466,21-Apr-20,2112020,27.5,0,CONTRACT PAYMENTS,OTHER SECURITY SERVICE PROVIDERS,Invoice,BACS,None,07-Jun-19,2020,1,54979,K6545,PUBLIC CONVENIENCES,B9802,CONTRACT PAYMENTS
GUILDFORD BOROUGH COUNCIL,OFF STREET PARKING,CONTRACT SECURITY SERVICES LTD,1466,21-Apr-20,2112020,13510.2,0,CONTRACT SECURITY,OTHER SECURITY SERVICE PROVIDERS,Invoice,BACS,None,07-Jun-19,2020,1,54979,B2216,GENERAL UPKEEP- URBAN CAR PKS,D4479,CONTRACT SECURITY
GUILDFORD BOROUGH COUNCIL,TOURIST INFORMATION CENTRE,CONTRACT SECURITY SERVICES LTD,1466,23-Apr-20,2113795,64.08,0,CASH COLLECTION SERVICE,OTHER SECURITY SERVICE PROVIDERS,Invoice,BACS,None,02-Mar-20,2020,1,58350,F5541,TOURIST INFORMATION CENTRE,D4441,CASH COLLECTION SERVICE
GUILDFORD BOROUGH COUNCIL,HOUSING OUTSIDE THE HRA,CONTRACT CLEANING & FACILITIES LTD,9748,14-May-20,2107850,-502.5,0,CONTRACT CLEANING,COMMERCIAL CLEANERS,Credit Note,,None,24-Feb-20,2020,1,01256,C5571,"OLD MANOR HOUSE, EAST HORSLEY",B6241,CONTRACT CLEANING
GUILDFORD BOROUGH COUNCIL,HOUSING OUTSIDE THE HRA,CONTRACT CLEANING & FACILITIES LTD,9748,09-Apr-20,2103190,502.5,0,CONTRACT CLEANING,COMMERCIAL CLEANERS,Invoice,BACS,None,28-Jan-20,2020,1,55347,C5571,"OLD MANOR HOUSE, EAST HORSLEY",B6241,CONTRACT CLEANING
GUILDFORD BOROUGH COUNCIL,MUSEUM,CONCRETE REPAIRS LTD,72288,30-Apr-20,2117028,47.34,0,FIRE ALARMS  - SERVICE,"CONCRETE CUTTING, DRILLING AND MAINTENANCE CONTRACTORS",Invoice,BACS,None,31-Mar-20,2020,1,INV/016162,A5511,MUSEUM,B1339,FIRE ALARMS  - SERVICE
GUILDFORD BOROUGH COUNCIL,VEHICLE MAINTENANCE,CONNECTIONS UK,1450,21-Apr-20,2113737,230,0,CONSUMABLES,EVENT MANAGEMENT AGENCIES,Invoice,BACS,None,31-Mar-20,2020,1,3957,K5551,VEHICLE MAINTENANCE,D1587,CONSUMABLES
GUILDFORD BOROUGH COUNCIL,REFUSE AND RECYCLING,COMENSURA LTD,32435,09-Apr-20,2112668,114.17,0,AGENCY STAFF,OTHER RECRUITMENT AGENCIES AND SERVICE PROVIDERS,Invoice,BACS,None,05-Apr-20,2020,1,1042760,B7744,GREEN WASTE,A5191,AGENCY STAFF
GUILDFORD BOROUGH COUNCIL,VEHICLE MAINTENANCE,CONNECTIONS UK,1450,21-Apr-20,2113733,274.75,0,CONSUMABLES,EVENT MANAGEMENT AGENCIES,Invoice,BACS,None,18-Mar-20,2020,1,3942,K5551,VEHICLE MAINTENANCE,D1587,CONSUMABLES
GUILDFORD BOROUGH COUNCIL,VEHICLE MAINTENANCE,CONNECTIONS UK,1450,07-Apr-20,2110654,261.35,0,CONSUMABLES,EVENT MANAGEMENT AGENCIES,Invoice,BACS,None,04-Mar-20,2020,1,3923,K5551,VEHICLE MAINTENANCE,D1587,CONSUMABLES
GUILDFORD BOROUGH COUNCIL,VEHICLE MAINTENANCE,CONNECTIONS UK,1450,07-Apr-20,2110635,245.05,0,CONSUMABLES,EVENT MANAGEMENT AGENCIES,Invoice,BACS,None,11-Mar-20,2020,1,3935,K5551,VEHICLE MAINTENANCE,D1587,CONSUMABLES
GUILDFORD BOROUGH COUNCIL,WOKING ROAD DEPOT,CONNECT VENDING LIMITED,89111,23-Apr-20,2114130,311.77,0,VENDING MACHINES - HIRE,OTHER VENDING SERVICES SUPPLIERS,Invoice,BACS,None,31-Mar-20,2020,1,5017453,B4452,WOKING ROAD DEPOT,D1842,VENDING MACHINES - HIRE
GUILDFORD BOROUGH COUNCIL,RESPONSIVE & PLANNED MAINTENAN,CONCRETE REPAIRS LTD,72288,09-Apr-20,2112780,112.51,0,FIRE ALARMS  - SERVICE,"CONCRETE CUTTING, DRILLING AND MAINTENANCE CONTRACTORS",Invoice,BACS,None,28-Feb-20,2020,1,INV/016046,M5106,REPAIRS-SHELT-RESPONSIVE (BHS),B1339,FIRE ALARMS  - SERVICE
GUILDFORD BOROUGH COUNCIL,RESPONSIVE & PLANNED MAINTENAN,CONCRETE REPAIRS LTD,72288,09-Apr-20,2112780,762,0,FIRE ALARMS  - SERVICE,"CONCRETE CUTTING, DRILLING AND MAINTENANCE CONTRACTORS",Invoice,BACS,None,28-Feb-20,2020,1,INV/016046,M5106,REPAIRS-SHELT-RESPONSIVE (BHS),B1339,FIRE ALARMS  - SERVICE
GUILDFORD BOROUGH COUNCIL,MUSEUM,CONCRETE REPAIRS LTD,72288,16-Apr-20,2113359,4019,0,FIRE RISK ASSESSMENT WORKS,"CONCRETE CUTTING, DRILLING AND MAINTENANCE CONTRACTORS",Invoice,BACS,None,28-Feb-20,2020,1,INV/016045,A5511,MUSEUM,B1628,FIRE RISK ASSESSMENT WORKS
GUILDFORD BOROUGH COUNCIL,MUSEUM,CONCRETE REPAIRS LTD,72288,30-Apr-20,2117028,411.05,0,FIRE RISK ASSESSMENT WORKS,"CONCRETE CUTTING, DRILLING AND MAINTENANCE CONTRACTORS",Invoice,BACS,None,31-Mar-20,2020,1,INV/016162,A5511,MUSEUM,B1628,FIRE RISK ASSESSMENT WORKS
GUILDFORD BOROUGH COUNCIL,RESPONSIVE & PLANNED MAINTENAN,CONCRETE REPAIRS LTD,72288,30-Apr-20,2117028,283.34,0,FIRE ALARMS  - SERVICE,"CONCRETE CUTTING, DRILLING AND MAINTENANCE CONTRACTORS",Invoice,BACS,None,31-Mar-20,2020,1,INV/016162,M5106,REPAIRS-SHELT-RESPONSIVE (BHS),B1339,FIRE ALARMS  - SERVICE
GUILDFORD BOROUGH COUNCIL,RESPONSIVE & PLANNED MAINTENAN,CONCRETE REPAIRS LTD,72288,09-Apr-20,2112780,574,0,FIRE ALARMS  - SERVICE,"CONCRETE CUTTING, DRILLING AND MAINTENANCE CONTRACTORS",Invoice,BACS,None,28-Feb-20,2020,1,INV/016046,M5106,REPAIRS-SHELT-RESPONSIVE (BHS),B1339,FIRE ALARMS  - SERVICE
GUILDFORD BOROUGH COUNCIL,OFF STREET PARKING,CONCRETE REPAIRS LTD,72288,09-Apr-20,2112780,110.47,0,FIRE ALARMS  - SERVICE,"CONCRETE CUTTING, DRILLING AND MAINTENANCE CONTRACTORS",Invoice,BACS,None,28-Feb-20,2020,1,INV/016046,B2219,BEDFORD ROAD MSCP,B1339,FIRE ALARMS  - SERVICE
GUILDFORD BOROUGH COUNCIL,VEHICLE MAINTENANCE,CONNECTIONS UK,1450,21-Apr-20,2113735,280.75,0,CONSUMABLES,EVENT MANAGEMENT AGENCIES,Invoice,BACS,None,31-Mar-20,2020,1,3955,K5551,VEHICLE MAINTENANCE,D1587,CONSUMABLES
GUILDFORD BOROUGH COUNCIL,DEVELOPMENT CONTROL,COMENSURA LTD,32435,16-Apr-20,2113429,438.58,0,AGENCY STAFF,OTHER RECRUITMENT AGENCIES AND SERVICE PROVIDERS,Invoice,BACS,None,12-Apr-20,2020,1,1043102,D5100,DEVELOPMENT CONTROL - FEE EARN,A5191,AGENCY STAFF
GUILDFORD BOROUGH COUNCIL,REFUSE AND RECYCLING,COMENSURA LTD,32435,16-Apr-20,2113429,-1.68,0,AGENCY STAFF,OTHER RECRUITMENT AGENCIES AND SERVICE PROVIDERS,Invoice,BACS,None,12-Apr-20,2020,1,1043102,B7744,GREEN WASTE,A5191,AGENCY STAFF
GUILDFORD BOROUGH COUNCIL,REFUSE AND RECYCLING,COMENSURA LTD,32435,16-Apr-20,2113429,453.76,0,AGENCY STAFF,OTHER RECRUITMENT AGENCIES AND SERVICE PROVIDERS,Invoice,BACS,None,12-Apr-20,2020,1,1043102,B7744,GREEN WASTE,A5191,AGENCY STAFF
GUILDFORD BOROUGH COUNCIL,CUSTOMER SERVICE CENTRE,COMENSURA LTD,32435,16-Apr-20,2113429,593.72,0,AGENCY STAFF,OTHER RECRUITMENT AGENCIES AND SERVICE PROVIDERS,Invoice,BACS,None,12-Apr-20,2020,1,1043102,G3544,CUSTOMER SERVICE CENTRE,A5191,AGENCY STAFF
GUILDFORD BOROUGH COUNCIL,OFF STREET PARKING,COMENSURA LTD,32435,02-Apr-20,2111777,696.36,0,AGENCY STAFF,OTHER RECRUITMENT AGENCIES AND SERVICE PROVIDERS,Invoice,BACS,None,29-Mar-20,2020,1,1042356,B2111,CAR PARKS - ADMINISTRATION,A5191,AGENCY STAFF
GUILDFORD BOROUGH COUNCIL,MUSEUM,COMENSURA LTD,32435,23-Apr-20,2115248,430.8,0,AGENCY STAFF,OTHER RECRUITMENT AGENCIES AND SERVICE PROVIDERS,Invoice,BACS,None,19-Apr-20,2020,1,1043426,A5511,MUSEUM,A5191,AGENCY STAFF
GUILDFORD BOROUGH COUNCIL,REFUSE AND RECYCLING,COMENSURA LTD,32435,23-Apr-20,2115248,446.47,0,AGENCY STAFF,OTHER RECRUITMENT AGENCIES AND SERVICE PROVIDERS,Invoice,BACS,None,19-Apr-20,2020,1,1043426,K3551,REFUSE COLLECTION,A5191,AGENCY STAFF
GUILDFORD BOROUGH COUNCIL,STREET CLEANSING,COMENSURA LTD,32435,23-Apr-20,2115248,-1.22,0,AGENCY STAFF,OTHER RECRUITMENT AGENCIES AND SERVICE PROVIDERS,Invoice,BACS,None,19-Apr-20,2020,1,1043426,K4551,STREET CLEANSING,A5191,AGENCY STAFF
GUILDFORD BOROUGH COUNCIL,REFUSE AND RECYCLING,COMENSURA LTD,32435,23-Apr-20,2115248,524.75,0,AGENCY STAFF,OTHER RECRUITMENT AGENCIES AND SERVICE PROVIDERS,Invoice,BACS,None,19-Apr-20,2020,1,1043426,K3551,REFUSE COLLECTION,A5191,AGENCY STAFF
GUILDFORD BOROUGH COUNCIL,REFUSE AND RECYCLING,COMENSURA LTD,32435,23-Apr-20,2115248,588.96,0,AGENCY STAFF,OTHER RECRUITMENT AGENCIES AND SERVICE PROVIDERS,Invoice,BACS,None,19-Apr-20,2020,1,1043426,K3551,REFUSE COLLECTION,A5191,AGENCY STAFF
GUILDFORD BOROUGH COUNCIL,REFUSE AND RECYCLING,COMENSURA LTD,32435,16-Apr-20,2113429,354.56,0,AGENCY STAFF,OTHER RECRUITMENT AGENCIES AND SERVICE PROVIDERS,Invoice,BACS,None,12-Apr-20,2020,1,1043102,B7744,GREEN WASTE,A5191,AGENCY STAFF
GUILDFORD BOROUGH COUNCIL,STREET CLEANSING,COMENSURA LTD,32435,09-Apr-20,2112668,504.68,0,AGENCY STAFF,OTHER RECRUITMENT AGENCIES AND SERVICE PROVIDERS,Invoice,BACS,None,05-Apr-20,2020,1,1042760,K4551,STREET CLEANSING,A5191,AGENCY STAFF
GUILDFORD BOROUGH COUNCIL,MOT BAY,COMENSURA LTD,32435,16-Apr-20,2113429,-2.62,0,AGENCY STAFF,OTHER RECRUITMENT AGENCIES AND SERVICE PROVIDERS,Invoice,BACS,None,12-Apr-20,2020,1,1043102,V8598,MOT STATION,A5191,AGENCY STAFF
GUILDFORD BOROUGH COUNCIL,STREET CLEANSING,COMENSURA LTD,32435,23-Apr-20,2115248,412.3,0,AGENCY STAFF,OTHER RECRUITMENT AGENCIES AND SERVICE PROVIDERS,Invoice,BACS,None,19-Apr-20,2020,1,1043426,K4551,STREET CLEANSING,A5191,AGENCY STAFF
GUILDFORD BOROUGH COUNCIL,REFUSE AND RECYCLING,COMENSURA LTD,32435,16-Apr-20,2113429,178.96,0,AGENCY STAFF,OTHER RECRUITMENT AGENCIES AND SERVICE PROVIDERS,Invoice,BACS,None,12-Apr-20,2020,1,1043102,B7744,GREEN WASTE,A5191,AGENCY STAFF
GUILDFORD BOROUGH COUNCIL,REFUSE AND RECYCLING,COMENSURA LTD,32435,16-Apr-20,2113429,583.01,0,AGENCY STAFF,OTHER RECRUITMENT AGENCIES AND SERVICE PROVIDERS,Invoice,BACS,None,12-Apr-20,2020,1,1043102,B7766,KERBSIDE RECYCLING,A5191,AGENCY STAFF
GUILDFORD BOROUGH COUNCIL,REFUSE AND RECYCLING,COMENSURA LTD,32435,16-Apr-20,2113429,-1.11,0,AGENCY STAFF,OTHER RECRUITMENT AGENCIES AND SERVICE PROVIDERS,Invoice,BACS,None,12-Apr-20,2020,1,1043102,B7711,RECYCLING ADMINISTRATION,A5191,AGENCY STAFF
GUILDFORD BOROUGH COUNCIL,STREET CLEANSING,COMENSURA LTD,32435,09-Apr-20,2112668,-1.5,0,AGENCY STAFF,OTHER RECRUITMENT AGENCIES AND SERVICE PROVIDERS,Invoice,BACS,None,05-Apr-20,2020,1,1042760,K4551,STREET CLEANSING,A5191,AGENCY STAFF
GUILDFORD BOROUGH COUNCIL,OFF STREET PARKING,COMENSURA LTD,32435,09-Apr-20,2112668,-2.22,0,AGENCY STAFF,OTHER RECRUITMENT AGENCIES AND SERVICE PROVIDERS,Invoice,BACS,None,05-Apr-20,2020,1,1042760,B2111,CAR PARKS - ADMINISTRATION,A5191,AGENCY STAFF
GUILDFORD BOROUGH COUNCIL,REFUSE AND RECYCLING,COMENSURA LTD,32435,30-Apr-20,2117163,247.5,0,AGENCY STAFF,OTHER RECRUITMENT AGENCIES AND SERVICE PROVIDERS,Invoice,BACS,None,26-Apr-20,2020,1,1043758,B7744,GREEN WASTE,A5191,AGENCY STAFF
GUILDFORD BOROUGH COUNCIL,REFUSE AND RECYCLING,COMENSURA LTD,32435,30-Apr-20,2117163,351.95,0,AGENCY STAFF,OTHER RECRUITMENT AGENCIES AND SERVICE PROVIDERS,Invoice,BACS,None,26-Apr-20,2020,1,1043758,B7766,KERBSIDE RECYCLING,A5191,AGENCY STAFF
GUILDFORD BOROUGH COUNCIL,STREET CLEANSING,COMENSURA LTD,32435,30-Apr-20,2117163,582.14,0,AGENCY STAFF,OTHER RECRUITMENT AGENCIES AND SERVICE PROVIDERS,Invoice,BACS,None,26-Apr-20,2020,1,1043758,K4551,STREET CLEANSING,A5191,AGENCY STAFF
GUILDFORD BOROUGH COUNCIL,REFUSE AND RECYCLING,COMENSURA LTD,32435,30-Apr-20,2117163,-1,0,AGENCY STAFF,OTHER RECRUITMENT AGENCIES AND SERVICE PROVIDERS,Invoice,BACS,None,26-Apr-20,2020,1,1043758,B7766,KERBSIDE RECYCLING,A5191,AGENCY STAFF
GUILDFORD BOROUGH COUNCIL,REFUSE AND RECYCLING,COMENSURA LTD,32435,30-Apr-20,2117163,101.24,0,AGENCY STAFF,OTHER RECRUITMENT AGENCIES AND SERVICE PROVIDERS,Invoice,BACS,None,26-Apr-20,2020,1,1043758,B7766,KERBSIDE RECYCLING,A5191,AGENCY STAFF
GUILDFORD BOROUGH COUNCIL,BUSINESS FORUM,ECONOMIC GROWTH MANAGEMENT LTD,84766,28-Apr-20,2115813,475,0,SUPPORT FOR  FORUM,DEVELOPMENT AGENCIES,Invoice,BACS,None,29-Nov-18,2020,1,GBC120,F7520,BUSINESS FORUM,D9407,SUPPORT FOR  FORUM
GUILDFORD BOROUGH COUNCIL,REFUSE AND RECYCLING,COMENSURA LTD,32435,16-Apr-20,2113429,662.79,0,AGENCY STAFF,OTHER RECRUITMENT AGENCIES AND SERVICE PROVIDERS,Invoice,BACS,None,12-Apr-20,2020,1,1043102,B7711,RECYCLING ADMINISTRATION,A5191,AGENCY STAFF
GUILDFORD BOROUGH COUNCIL,REFUSE AND RECYCLING,COMENSURA LTD,32435,02-Apr-20,2111777,504.68,0,AGENCY STAFF,OTHER RECRUITMENT AGENCIES AND SERVICE PROVIDERS,Invoice,BACS,None,29-Mar-20,2020,1,1042356,B7711,RECYCLING ADMINISTRATION,A5191,AGENCY STAFF
GUILDFORD BOROUGH COUNCIL,MUSEUM,CONTRACT SECURITY SERVICES LTD,1466,23-Apr-20,2113795,64.08,0,CASH COLLECTION SERVICE,OTHER SECURITY SERVICE PROVIDERS,Invoice,BACS,None,02-Mar-20,2020,1,58350,A5511,MUSEUM,D4441,CASH COLLECTION SERVICE
GUILDFORD BOROUGH COUNCIL,LEGAL SERVICES,COMENSURA LTD,32435,09-Apr-20,2112668,1887.48,0,AGENCY STAFF,OTHER RECRUITMENT AGENCIES AND SERVICE PROVIDERS,Invoice,BACS,None,05-Apr-20,2020,1,1042760,G4525,LEGAL SERVICES,A5191,AGENCY STAFF
GUILDFORD BOROUGH COUNCIL,DEVELOPMENT CONTROL,COMENSURA LTD,32435,09-Apr-20,2112668,-1.11,0,AGENCY STAFF,OTHER RECRUITMENT AGENCIES AND SERVICE PROVIDERS,Invoice,BACS,None,05-Apr-20,2020,1,1042760,D5100,DEVELOPMENT CONTROL - FEE EARN,A5191,AGENCY STAFF
GUILDFORD BOROUGH COUNCIL,REFUSE AND RECYCLING,COMENSURA LTD,32435,30-Apr-20,2117163,157.2,0,AGENCY STAFF,OTHER RECRUITMENT AGENCIES AND SERVICE PROVIDERS,Invoice,BACS,None,26-Apr-20,2020,1,1043758,B7744,GREEN WASTE,A5191,AGENCY STAFF
GUILDFORD BOROUGH COUNCIL,MUSEUM,COMENSURA LTD,32435,30-Apr-20,2117163,538.5,0,AGENCY STAFF,OTHER RECRUITMENT AGENCIES AND SERVICE PROVIDERS,Invoice,BACS,None,26-Apr-20,2020,1,1043758,A5511,MUSEUM,A5191,AGENCY STAFF
GUILDFORD BOROUGH COUNCIL,REFUSE AND RECYCLING,COMENSURA LTD,32435,30-Apr-20,2117163,195.99,0,AGENCY STAFF,OTHER RECRUITMENT AGENCIES AND SERVICE PROVIDERS,Invoice,BACS,None,26-Apr-20,2020,1,1043758,B7766,KERBSIDE RECYCLING,A5191,AGENCY STAFF
GUILDFORD BOROUGH COUNCIL,REFUSE AND RECYCLING,COMENSURA LTD,32435,30-Apr-20,2117163,563.88,0,AGENCY STAFF,OTHER RECRUITMENT AGENCIES AND SERVICE PROVIDERS,Invoice,BACS,None,26-Apr-20,2020,1,1043758,B7711,RECYCLING ADMINISTRATION,A5191,AGENCY STAFF
GUILDFORD BOROUGH COUNCIL,STREET CLEANSING,COMENSURA LTD,32435,30-Apr-20,2117163,-2.33,0,AGENCY STAFF,OTHER RECRUITMENT AGENCIES AND SERVICE PROVIDERS,Invoice,BACS,None,26-Apr-20,2020,1,1043758,K4551,STREET CLEANSING,A5191,AGENCY STAFF
GUILDFORD BOROUGH COUNCIL,REFUSE AND RECYCLING,COMENSURA LTD,32435,30-Apr-20,2117163,-0.26,0,AGENCY STAFF,OTHER RECRUITMENT AGENCIES AND SERVICE PROVIDERS,Invoice,BACS,None,26-Apr-20,2020,1,1043758,B7766,KERBSIDE RECYCLING,A5191,AGENCY STAFF
GUILDFORD BOROUGH COUNCIL,REFUSE AND RECYCLING,COMENSURA LTD,32435,30-Apr-20,2117163,-1.11,0,AGENCY STAFF,OTHER RECRUITMENT AGENCIES AND SERVICE PROVIDERS,Invoice,BACS,None,26-Apr-20,2020,1,1043758,B7711,RECYCLING ADMINISTRATION,A5191,AGENCY STAFF
GUILDFORD BOROUGH COUNCIL,REFUSE AND RECYCLING,COMENSURA LTD,32435,30-Apr-20,2117163,603.45,0,AGENCY STAFF,OTHER RECRUITMENT AGENCIES AND SERVICE PROVIDERS,Invoice,BACS,None,26-Apr-20,2020,1,1043758,B7766,KERBSIDE RECYCLING,A5191,AGENCY STAFF
GUILDFORD BOROUGH COUNCIL,REFUSE AND RECYCLING,COMENSURA LTD,32435,23-Apr-20,2115248,716.78,0,AGENCY STAFF,OTHER RECRUITMENT AGENCIES AND SERVICE PROVIDERS,Invoice,BACS,None,19-Apr-20,2020,1,1043426,B7744,GREEN WASTE,A5191,AGENCY STAFF
GUILDFORD BOROUGH COUNCIL,REFUSE AND RECYCLING,COMENSURA LTD,32435,02-Apr-20,2111777,524.13,0,AGENCY STAFF,OTHER RECRUITMENT AGENCIES AND SERVICE PROVIDERS,Invoice,BACS,None,29-Mar-20,2020,1,1042356,B7766,KERBSIDE RECYCLING,A5191,AGENCY STAFF
GUILDFORD BOROUGH COUNCIL,BUILDING CONTROL SUMMARY,COMENSURA LTD,32435,23-Apr-20,2115248,411,0,AGENCY STAFF,OTHER RECRUITMENT AGENCIES AND SERVICE PROVIDERS,Invoice,BACS,None,19-Apr-20,2020,1,1043426,D5700,BUILDING CONTROL - FEE,A5191,AGENCY STAFF
GUILDFORD BOROUGH COUNCIL,REFUSE AND RECYCLING,COMENSURA LTD,32435,02-Apr-20,2111777,117.64,0,AGENCY STAFF,OTHER RECRUITMENT AGENCIES AND SERVICE PROVIDERS,Invoice,BACS,None,29-Mar-20,2020,1,1042356,B7744,GREEN WASTE,A5191,AGENCY STAFF
GUILDFORD BOROUGH COUNCIL,REFUSE AND RECYCLING,COMENSURA LTD,32435,02-Apr-20,2111777,244.64,0,AGENCY STAFF,OTHER RECRUITMENT AGENCIES AND SERVICE PROVIDERS,Invoice,BACS,None,29-Mar-20,2020,1,1042356,B7766,KERBSIDE RECYCLING,A5191,AGENCY STAFF
GUILDFORD BOROUGH COUNCIL,DEVELOPMENT CONTROL,COMENSURA LTD,32435,23-Apr-20,2115248,488.72,0,AGENCY STAFF,OTHER RECRUITMENT AGENCIES AND SERVICE PROVIDERS,Invoice,BACS,None,19-Apr-20,2020,1,1043426,D5100,DEVELOPMENT CONTROL - FEE EARN,A5191,AGENCY STAFF
GUILDFORD BOROUGH COUNCIL,OFF STREET PARKING,COMENSURA LTD,32435,23-Apr-20,2115248,595.52,0,AGENCY STAFF,OTHER RECRUITMENT AGENCIES AND SERVICE PROVIDERS,Invoice,BACS,None,19-Apr-20,2020,1,1043426,B2111,CAR PARKS - ADMINISTRATION,A5191,AGENCY STAFF
GUILDFORD BOROUGH COUNCIL,ENVIRONMENTAL CONTROL,COMENSURA LTD,32435,23-Apr-20,2115248,-1.02,0,AGENCY STAFF,OTHER RECRUITMENT AGENCIES AND SERVICE PROVIDERS,Invoice,BACS,None,19-Apr-20,2020,1,1043426,C1113,ENVIRONMENTAL CONTROL,A5191,AGENCY STAFF
GUILDFORD BOROUGH COUNCIL,REFUSE AND RECYCLING,COMENSURA LTD,32435,23-Apr-20,2115248,89.48,0,AGENCY STAFF,OTHER RECRUITMENT AGENCIES AND SERVICE PROVIDERS,Invoice,BACS,None,19-Apr-20,2020,1,1043426,B7744,GREEN WASTE,A5191,AGENCY STAFF
GUILDFORD BOROUGH COUNCIL,REFUSE AND RECYCLING,COMENSURA LTD,32435,23-Apr-20,2115248,345.79,0,AGENCY STAFF,OTHER RECRUITMENT AGENCIES AND SERVICE PROVIDERS,Invoice,BACS,None,19-Apr-20,2020,1,1043426,K3551,REFUSE COLLECTION,A5191,AGENCY STAFF
GUILDFORD BOROUGH COUNCIL,REFUSE AND RECYCLING,COMENSURA LTD,32435,23-Apr-20,2115248,618.18,0,AGENCY STAFF,OTHER RECRUITMENT AGENCIES AND SERVICE PROVIDERS,Invoice,BACS,None,19-Apr-20,2020,1,1043426,K3551,REFUSE COLLECTION,A5191,AGENCY STAFF
GUILDFORD BOROUGH COUNCIL,REFUSE AND RECYCLING,COMENSURA LTD,32435,23-Apr-20,2115248,-1.11,0,AGENCY STAFF,OTHER RECRUITMENT AGENCIES AND SERVICE PROVIDERS,Invoice,BACS,None,19-Apr-20,2020,1,1043426,B7711,RECYCLING ADMINISTRATION,A5191,AGENCY STAFF
GUILDFORD BOROUGH COUNCIL,REFUSE AND RECYCLING,COMENSURA LTD,32435,23-Apr-20,2115248,577.16,0,AGENCY STAFF,OTHER RECRUITMENT AGENCIES AND SERVICE PROVIDERS,Invoice,BACS,None,19-Apr-20,2020,1,1043426,K3551,REFUSE COLLECTION,A5191,AGENCY STAFF
GUILDFORD BOROUGH COUNCIL,REFUSE AND RECYCLING,COMENSURA LTD,32435,09-Apr-20,2112668,273.23,0,AGENCY STAFF,OTHER RECRUITMENT AGENCIES AND SERVICE PROVIDERS,Invoice,BACS,None,05-Apr-20,2020,1,1042760,K3551,REFUSE COLLECTION,A5191,AGENCY STAFF
GUILDFORD BOROUGH COUNCIL,STREET CLEANSING,COMENSURA LTD,32435,02-Apr-20,2111777,311.86,0,AGENCY STAFF,OTHER RECRUITMENT AGENCIES AND SERVICE PROVIDERS,Invoice,BACS,None,29-Mar-20,2020,1,1042356,K4551,STREET CLEANSING,A5191,AGENCY STAFF
GUILDFORD BOROUGH COUNCIL,CORPORATE PROPERTY SERVICES,DAVID KINGSTON CHARTERED SURVEYORS,97028,02-Apr-20,2110666,975,0,VALUERS FEES,SURVEYORS AND INSPECTORS,Invoice,BACS,None,19-Mar-20,2020,1,190320,G4575,CORPORATE PROPERTY SERVICES,D4493,VALUERS FEES
GUILDFORD BOROUGH COUNCIL,RESPONSIVE & PLANNED MAINTENAN,DES BONE LIMITED,1694,16-Apr-20,2113331,200,0,DISINFESTATION,PEST AND VERMIN CONTROL SERVICE PROVIDERS,Invoice,BACS,None,17-Mar-20,2020,1,14237,M5113,REPAIRS-RESPONSIVE (BHS),B6246,DISINFESTATION
GUILDFORD BOROUGH COUNCIL,RESPONSIVE & PLANNED MAINTENAN,DES BONE LIMITED,1694,16-Apr-20,2113312,240,0,DISINFESTATION,PEST AND VERMIN CONTROL SERVICE PROVIDERS,Invoice,BACS,None,12-Mar-20,2020,1,14230,M5113,REPAIRS-RESPONSIVE (BHS),B6246,DISINFESTATION
GUILDFORD BOROUGH COUNCIL,FLATS COMMUNAL SERVICES,DES BONE LIMITED,1694,09-Apr-20,2112755,100,0,MECHANICAL/ELECTRICAL MNTCE AG,PEST AND VERMIN CONTROL SERVICE PROVIDERS,Invoice,BACS,None,12-Mar-20,2020,1,14229,M3511,WALNUT TREE CLOSE EQ. SHARE,B1221,MECHANICAL/ELECTRICAL MNTCE AG
GUILDFORD BOROUGH COUNCIL,VEHICLE MAINTENANCE,DENNIS EAGLE LIMITED,1681,07-Apr-20,2110964,200,0,SPARES FOR VEHICLES,REFUSE VEHICLE SUPPLIERS,Invoice,BACS,None,18-Mar-20,2020,1,DE11298457,K5551,VEHICLE MAINTENANCE,D1589,SPARES FOR VEHICLES
GUILDFORD BOROUGH COUNCIL,VEHICLE MAINTENANCE,DENNIS EAGLE LIMITED,1681,07-Apr-20,2110965,1845.61,0,SPARES FOR VEHICLES,REFUSE VEHICLE SUPPLIERS,Invoice,BACS,None,18-Mar-20,2020,1,DE11298456,K5551,VEHICLE MAINTENANCE,D1589,SPARES FOR VEHICLES
GUILDFORD BOROUGH COUNCIL,PROPERTY,DELTA-SIMONS ENVIRONMENTAL CONSULTANTS LTD,98692,23-Apr-20,2114155,84991.8,0,CONSULTANTS FEES - PROJECTS,,Invoice,BACS,None,24-Mar-20,2020,1,DS024220,P74040,SARP - GBC OWN COSTS & SHARE,1221,CONSULTANTS FEES - PROJECTS
GUILDFORD BOROUGH COUNCIL,STRATEGIC SUPPORT,DEC METRICS LIMITED,85487,23-Apr-20,2107838,1371,0,COMPUTER SOFTWARE LICENCE COST,OTHER IT SERVICE PROVIDERS,Invoice,BACS,None,01-Mar-20,2020,1,OM1086,M8121,STRATEGIC SUPPORT (SHS),D5445,COMPUTER SOFTWARE LICENCE COST
GUILDFORD BOROUGH COUNCIL,BUILDING MAINTENANCE,DAVIS PROPERTY SERVICES GU LIMITED,94697,23-Apr-20,2115222,3910.47,0,PAYMENT TO CONTRACTORS,ROOFERS,Invoice,BACS,None,17-Apr-20,2020,1,2,K1515,BUILDING MAINTENANCE,D4468,PAYMENT TO CONTRACTORS
GUILDFORD BOROUGH COUNCIL,BUILDING MAINTENANCE,DAVIS PROPERTY SERVICES GU LIMITED,94697,16-Apr-20,2113440,5491.77,0,PAYMENT TO CONTRACTORS,ROOFERS,Invoice,BACS,None,08-Apr-20,2020,1,1,K1515,BUILDING MAINTENANCE,D4468,PAYMENT TO CONTRACTORS
GUILDFORD BOROUGH COUNCIL,BUILDING MAINTENANCE,DAVIS PROPERTY SERVICES GU LIMITED,94697,30-Apr-20,2117142,48,0,PAYMENT TO CONTRACTORS,ROOFERS,Invoice,BACS,None,24-Apr-20,2020,1,3,K1515,BUILDING MAINTENANCE,D4468,PAYMENT TO CONTRACTORS
GUILDFORD BOROUGH COUNCIL,BUILDING MAINTENANCE,D G PROPERTY REFURBISHMENT LTD,71371,09-Apr-20,2112740,2754.82,0,PAYMENT TO CONTRACTORS,RESTORATION SPECIALISTS,Invoice,BACS,None,06-Apr-20,2020,1,44,K1515,BUILDING MAINTENANCE,D4468,PAYMENT TO CONTRACTORS
GUILDFORD BOROUGH COUNCIL,MAJOR PROJECTS,DAVID LOCK ASSOCIATES LIMITED,94919,21-Apr-20,2107870,10000,0,CONSULTANTS (ADVICE),OTHER BUSINESS SERVICE PROVIDERS,Invoice,BACS,None,24-Feb-20,2020,1,20/02/10530,F5527,TOWN CENTRE DEVELOPMENT,D4520,CONSULTANTS (ADVICE)
GUILDFORD BOROUGH COUNCIL,RESPONSIVE & PLANNED MAINTENAN,DES BONE LIMITED,1694,20-Apr-20,2114078,300,0,DISINFESTATION,PEST AND VERMIN CONTROL SERVICE PROVIDERS,Invoice,BACS,None,07-Apr-20,2020,1,14236,M5113,REPAIRS-RESPONSIVE (BHS),B6246,DISINFESTATION
GUILDFORD BOROUGH COUNCIL,CORPORATE PROPERTY SERVICES,DAVID KINGSTON CHARTERED SURVEYORS,97028,02-Apr-20,2110681,1350,0,VALUERS FEES,SURVEYORS AND INSPECTORS,Invoice,BACS,None,06-Mar-20,2020,1,160320/1,G4575,CORPORATE PROPERTY SERVICES,D4493,VALUERS FEES
GUILDFORD BOROUGH COUNCIL,CORPORATE PROPERTY SERVICES,DAVID KINGSTON CHARTERED SURVEYORS,97028,02-Apr-20,2109046,1000,0,VALUERS FEES,SURVEYORS AND INSPECTORS,Invoice,BACS,None,10-Mar-20,2020,1,100320/1,G4575,CORPORATE PROPERTY SERVICES,D4493,VALUERS FEES
GUILDFORD BOROUGH COUNCIL,INDUSTRIAL ESTATES,DARTMOUTH GENERAL CONTRACTORS LTD,98063,07-Apr-20,2110852,76338.84,0,CONTRACT PYTS-MAIN CONTRACTOR,THIRD PARTY SUPPLIER,Invoice,BACS,None,20-Mar-20,2020,1,32450,P72037,MIDLETON IND EST REDEVELOP,1233,CONTRACT PYTS-MAIN CONTRACTOR
GUILDFORD BOROUGH COUNCIL,INDUSTRIAL ESTATES,DARTMOUTH GENERAL CONTRACTORS LTD,98063,07-Apr-20,2110850,76338.83,0,CONTRACT PYTS-MAIN CONTRACTOR,THIRD PARTY SUPPLIER,Invoice,BACS,None,20-Mar-20,2020,1,32448,P72037,MIDLETON IND EST REDEVELOP,1233,CONTRACT PYTS-MAIN CONTRACTOR
GUILDFORD BOROUGH COUNCIL,INDUSTRIAL ESTATES,DARTMOUTH GENERAL CONTRACTORS LTD,98063,07-Apr-20,2110853,76338.84,0,CONTRACT PYTS-MAIN CONTRACTOR,THIRD PARTY SUPPLIER,Invoice,BACS,None,20-Mar-20,2020,1,32451,P72037,MIDLETON IND EST REDEVELOP,1233,CONTRACT PYTS-MAIN CONTRACTOR
GUILDFORD BOROUGH COUNCIL,INDUSTRIAL ESTATES,DARTMOUTH GENERAL CONTRACTORS LTD,98063,07-Apr-20,2110851,76338.83,0,CONTRACT PYTS-MAIN CONTRACTOR,THIRD PARTY SUPPLIER,Invoice,BACS,None,20-Mar-20,2020,1,32449,P72037,MIDLETON IND EST REDEVELOP,1233,CONTRACT PYTS-MAIN CONTRACTOR
GUILDFORD BOROUGH COUNCIL,BUILDING MAINTENANCE,D G PROPERTY REFURBISHMENT LTD,71371,30-Apr-20,2117144,2000,0,MATERIALS; SUB CONTRACTOR,RESTORATION SPECIALISTS,Invoice,BACS,None,27-Apr-20,2020,1,46,K1515,BUILDING MAINTENANCE,D1542,MATERIALS; SUB CONTRACTOR
GUILDFORD BOROUGH COUNCIL,BUILDING MAINTENANCE,D G PROPERTY REFURBISHMENT LTD,71371,30-Apr-20,2117145,2300,0,PAYMENT TO CONTRACTORS,RESTORATION SPECIALISTS,Invoice,BACS,None,27-Apr-20,2020,1,47,K1515,BUILDING MAINTENANCE,D4468,PAYMENT TO CONTRACTORS
GUILDFORD BOROUGH COUNCIL,BUILDING MAINTENANCE,D G PROPERTY REFURBISHMENT LTD,71371,30-Apr-20,2117144,2578.3,0,PAYMENT TO CONTRACTORS,RESTORATION SPECIALISTS,Invoice,BACS,None,27-Apr-20,2020,1,46,K1515,BUILDING MAINTENANCE,D4468,PAYMENT TO CONTRACTORS
GUILDFORD BOROUGH COUNCIL,BUILDING MAINTENANCE,D G PROPERTY REFURBISHMENT LTD,71371,21-Apr-20,2114660,3577.87,0,PAYMENT TO CONTRACTORS,RESTORATION SPECIALISTS,Invoice,BACS,None,18-Apr-20,2020,1,45,K1515,BUILDING MAINTENANCE,D4468,PAYMENT TO CONTRACTORS
GUILDFORD BOROUGH COUNCIL,OFF STREET PARKING,CONTRACT SECURITY SERVICES LTD,1466,30-Apr-20,2113796,13510.2,0,CONTRACT SECURITY,OTHER SECURITY SERVICE PROVIDERS,Invoice,BACS,None,02-Mar-20,2020,1,58352,B2216,GENERAL UPKEEP- URBAN CAR PKS,D4479,CONTRACT SECURITY
GUILDFORD BOROUGH COUNCIL,BUILDING MAINTENANCE,DAVIS PROPERTY SERVICES GU LIMITED,94697,30-Apr-20,2117141,2853.24,0,PAYMENT TO CONTRACTORS,ROOFERS,Invoice,BACS,None,24-Apr-20,2020,1,4,K1515,BUILDING MAINTENANCE,D4468,PAYMENT TO CONTRACTORS
GUILDFORD BOROUGH COUNCIL,PARKS & COUNTRYSIDE,DRYAD TREE SPECIALISTS LIMITED,1776,28-Apr-20,2114022,420,0,RISK MANAGEMENT TREE WORKS,TREE WORK CONTRACTORS,Invoice,BACS,None,06-Apr-20,2020,1,9119,A1373,COMPTON COMMON,B1244,RISK MANAGEMENT TREE WORKS
GUILDFORD BOROUGH COUNCIL,GF NET REVENUE ACCOUNT,EAST HORSLEY PARISH COUNCIL,1816,07-Apr-20,2112193,70356,0,OOE - PARISH PRECEPTS PAID,LOCAL GOVERNMENT [UK ONLY],Invoice,BACS,None,31-Mar-20,2020,1,PARISH PRECEPT,V01005,GF NET REVENUE ACCOUNT,2482,OOE - PARISH PRECEPTS PAID
GUILDFORD BOROUGH COUNCIL,PARISH & LOCAL LIAISON,EAST HORSLEY PARISH COUNCIL,1816,07-Apr-20,2112193,738,0,LCTSS PARISH GRANT,LOCAL GOVERNMENT [UK ONLY],Invoice,BACS,None,31-Mar-20,2020,1,PARISH PRECEPT,F1115,PARISH LIAISON,D7431,LCTSS PARISH GRANT
GUILDFORD BOROUGH COUNCIL,PARISH & LOCAL LIAISON,EAST CLANDON PARISH COUNCIL,1813,07-Apr-20,2112151,73,0,LCTSS PARISH GRANT,LOCAL GOVERNMENT [UK ONLY],Invoice,BACS,None,31-Mar-20,2020,1,PARISH PRECEPT,F1115,PARISH LIAISON,D7431,LCTSS PARISH GRANT
GUILDFORD BOROUGH COUNCIL,PARISH & LOCAL LIAISON,EAST CLANDON PARISH COUNCIL,49020,02-Apr-20,2111770,215.59,0,GENERAL GRANTS,LOCAL GOVERNMENT [UK ONLY],Invoice,BACS,None,31-Mar-20,2020,1,GRANT AID,F1115,PARISH LIAISON,D7441,GENERAL GRANTS
GUILDFORD BOROUGH COUNCIL,GF NET REVENUE ACCOUNT,EAST CLANDON PARISH COUNCIL,1813,07-Apr-20,2112151,4117,0,OOE - PARISH PRECEPTS PAID,LOCAL GOVERNMENT [UK ONLY],Invoice,BACS,None,31-Mar-20,2020,1,PARISH PRECEPT,V01005,GF NET REVENUE ACCOUNT,2482,OOE - PARISH PRECEPTS PAID
GUILDFORD BOROUGH COUNCIL,PUBLIC RELATIONS,EAGLE RADIO LIMITED,17773,14-Apr-20,2112231,1508,0,CORPORATE PROMOTIONS,RADIO BROADCASTERS,Invoice,BACS,None,31-Mar-20,2020,1,576135,F5551,PUBLIC RELATIONS & MARKETING,D9492,CORPORATE PROMOTIONS
GUILDFORD BOROUGH COUNCIL,TENANTS' SERVICES,E.ON,17888,16-Apr-20,2113451,82.78,0,ELECTRICITY,MAINS UTILITY MULTIPLE SERVICE PROVIDERS,Invoice,BACS,None,12-Mar-20,2020,1,016402722750,M1151,TENANTS SERVICES (BHS),B2215,ELECTRICITY
GUILDFORD BOROUGH COUNCIL,INDUSTRIAL ESTATES,E.ON,17888,28-Apr-20,2099983,38.22,0,GAS,MAINS UTILITY MULTIPLE SERVICE PROVIDERS,Invoice,BACS,None,02-Jan-20,2020,1,H17FE0CA95,B5342,MIDLETON INDUSTRIAL EST (RECH),B2221,GAS
GUILDFORD BOROUGH COUNCIL,OTHER PROPERTY,E.ON,17888,28-Apr-20,2113789,79.32,0,ELECTRICITY,MAINS UTILITY MULTIPLE SERVICE PROVIDERS,Invoice,BACS,None,22-Mar-20,2020,1,H184B47D03,B6594,WHITE HART MEADOWS CAR PARK,B2215,ELECTRICITY
GUILDFORD BOROUGH COUNCIL,LEGAL SERVICES,DX NETWORK SERVICES LTD,2398,23-Apr-20,2107739,1444.42,0,POSTAGE DIRECT USAGE,POSTAL AND COURIER SERVICE PROVIDERS,Invoice,BACS,None,28-Feb-20,2020,1,82607447,G4525,LEGAL SERVICES,D5466,POSTAGE DIRECT USAGE
GUILDFORD BOROUGH COUNCIL,WOKING ROAD DEPOT,DS SECURITY GROUP LTD,98806,23-Apr-20,2114023,210,0,GROUNDS - MISCELLANEOUS,,Invoice,BACS,None,19-Nov-19,2020,1,92949,B4452,WOKING ROAD DEPOT,B1275,GROUNDS - MISCELLANEOUS
GUILDFORD BOROUGH COUNCIL,RESPONSIVE & PLANNED MAINTENAN,DES BONE LIMITED,1694,16-Apr-20,2113330,200,0,DISINFESTATION,PEST AND VERMIN CONTROL SERVICE PROVIDERS,Invoice,BACS,None,17-Mar-20,2020,1,14238,M5113,REPAIRS-RESPONSIVE (BHS),B6246,DISINFESTATION
GUILDFORD BOROUGH COUNCIL,PARKS & COUNTRYSIDE,DRYAD TREE SPECIALISTS LIMITED,1776,02-Apr-20,2110930,1680,0,RISK MANAGEMENT TREE WORKS,TREE WORK CONTRACTORS,Invoice,BACS,None,23-Mar-20,2020,1,9092,A1250,STOKE PARK,B1244,RISK MANAGEMENT TREE WORKS
GUILDFORD BOROUGH COUNCIL,RESPONSIVE & PLANNED MAINTENAN,DES BONE LIMITED,1694,09-Apr-20,2112756,95,0,DISINFESTATION,PEST AND VERMIN CONTROL SERVICE PROVIDERS,Invoice,BACS,None,04-Mar-20,2020,1,14222,M5106,REPAIRS-SHELT-RESPONSIVE (BHS),B6246,DISINFESTATION
GUILDFORD BOROUGH COUNCIL,INDUSTRIAL ESTATES,DRY WATERPROOFING LTD,93886,07-Apr-20,2108630,1210,0,CONTRACT PYTS-MINOR CONTRACTOR,BUILDING DAMAGE PREVENTION CONTRACTORS,Invoice,BACS,None,28-Feb-20,2020,1,IN000277,P72031,5 HIGH STREET VOID WORKS,1234,CONTRACT PYTS-MINOR CONTRACTOR
GUILDFORD BOROUGH COUNCIL,RESPONSIVE & PLANNED MAINTENAN,DRAIN & SEWER SERVICES,10839,16-Apr-20,2113329,96,0,DRAINAGE - UNDERGROUND,SEWERAGE AND DRAINAGE SERVICE PROVIDERS,Invoice,BACS,None,10-Mar-20,2020,1,87408,M5113,REPAIRS-RESPONSIVE (BHS),B1328,DRAINAGE - UNDERGROUND
GUILDFORD BOROUGH COUNCIL,RESPONSIVE & PLANNED MAINTENAN,DRAIN & SEWER SERVICES,10839,20-Apr-20,2114070,278,0,DRAINAGE - UNDERGROUND,SEWERAGE AND DRAINAGE SERVICE PROVIDERS,Invoice,BACS,None,17-Mar-20,2020,1,87450,M5113,REPAIRS-RESPONSIVE (BHS),B1328,DRAINAGE - UNDERGROUND
GUILDFORD BOROUGH COUNCIL,RESPONSIVE & PLANNED MAINTENAN,DRAIN & SEWER SERVICES,10839,20-Apr-20,2114071,150,0,DRAINAGE - UNDERGROUND,SEWERAGE AND DRAINAGE SERVICE PROVIDERS,Invoice,BACS,None,30-Mar-20,2020,1,87521,M5113,REPAIRS-RESPONSIVE (BHS),B1328,DRAINAGE - UNDERGROUND
GUILDFORD BOROUGH COUNCIL,WOKING ROAD DEPOT,DIGITAL ID LIMITED,77189,21-Apr-20,2113797,115.84,0,GROUNDS - MISCELLANEOUS,ALARM AND ACCESS CONTROL SYSTEM SUPPLIERS,Invoice,BACS,None,25-Mar-20,2020,1,0000376665,B4452,WOKING ROAD DEPOT,B1275,GROUNDS - MISCELLANEOUS
GUILDFORD BOROUGH COUNCIL,LEGAL SERVICES,DIAMOND LOGISTICS LTD,1702,28-Apr-20,2115790,87.61,0,COURIER EXPENSES,GENERAL LOGISTICS CONTRACTORS,Invoice,BACS,None,14-Apr-20,2020,1,1109110,G4525,LEGAL SERVICES,D9433,COURIER EXPENSES
GUILDFORD BOROUGH COUNCIL,INSURANCE REVENUE A/C,DIAMOND LOGISTICS LTD,1702,21-Apr-20,2112139,37.52,0,INSURANCE; PREMIUMS PAID,GENERAL LOGISTICS CONTRACTORS,Invoice,BACS,None,31-Mar-20,2020,1,1108979,F8531,INSURANCE REVENUE ACCOUNT,D9457,INSURANCE; PREMIUMS PAID
GUILDFORD BOROUGH COUNCIL,RESPONSIVE & PLANNED MAINTENAN,DES BONE LIMITED,1694,09-Apr-20,2112754,280,0,DISINFESTATION,PEST AND VERMIN CONTROL SERVICE PROVIDERS,Invoice,BACS,None,12-Mar-20,2020,1,14231,M5106,REPAIRS-SHELT-RESPONSIVE (BHS),B6246,DISINFESTATION
GUILDFORD BOROUGH COUNCIL,RESPONSIVE & PLANNED MAINTENAN,DES BONE LIMITED,1694,09-Apr-20,2112757,120,0,"BRICKWORK, BLOCKWORK ETC.",PEST AND VERMIN CONTROL SERVICE PROVIDERS,Invoice,BACS,None,12-Mar-20,2020,1,14232,M5113,REPAIRS-RESPONSIVE (BHS),B1311,"BRICKWORK, BLOCKWORK ETC."
GUILDFORD BOROUGH COUNCIL,RESPONSIVE & PLANNED MAINTENAN,DES BONE LIMITED,1694,30-Apr-20,2117021,95,0,DISINFESTATION,PEST AND VERMIN CONTROL SERVICE PROVIDERS,Invoice,BACS,None,24-Mar-20,2020,1,14247,M5113,REPAIRS-RESPONSIVE (BHS),B6246,DISINFESTATION
GUILDFORD BOROUGH COUNCIL,BUILDING MAINTENANCE,D G PROPERTY REFURBISHMENT LTD,71371,30-Apr-20,2117145,2000,0,MATERIALS; SUB CONTRACTOR,RESTORATION SPECIALISTS,Invoice,BACS,None,27-Apr-20,2020,1,47,K1515,BUILDING MAINTENANCE,D1542,MATERIALS; SUB CONTRACTOR
GUILDFORD BOROUGH COUNCIL,PARKS & COUNTRYSIDE,DRYAD TREE SPECIALISTS LIMITED,1776,02-Apr-20,2110937,1560,0,TREES - PEST AND DISEASE,TREE WORK CONTRACTORS,Invoice,BACS,None,23-Mar-20,2020,1,9090,A1389,SHALFORD COMMON,B1380,TREES - PEST AND DISEASE
GUILDFORD BOROUGH COUNCIL,RESPONSIVE & PLANNED MAINTENAN,CRANLEIGH AERIALS LIMITED,69899,09-Apr-20,2112774,102.5,0,TV SYSTEM SERVICE & REPAIR,AUDIO AND VISUAL EQUIPMENT SUPPLIERS,Invoice,BACS,None,03-Mar-20,2020,1,704970,M5113,REPAIRS-RESPONSIVE (BHS),B1387,TV SYSTEM SERVICE & REPAIR
GUILDFORD BOROUGH COUNCIL,GRANTS TO VOLUNTARY ORGS: H&C,CRUSE BEREAVEMENT CARE,40235,28-Apr-20,2115297,4000,0,VOL ASSOC GRANT - PARTNERS,COUNSELLING SERVICE PROVIDERS,Invoice,BACS,None,06-Apr-20,2020,1,INV-406,C3111,COMMUNITY GRANT SCHEME,D7487,VOL ASSOC GRANT - PARTNERS
GUILDFORD BOROUGH COUNCIL,GRANTS TO VOLUNTARY ORGS: H&C,CRUSE BEREAVEMENT CARE,40235,21-Apr-20,2111536,4000,0,VOL ASSOC GRANT - PARTNERS,COUNSELLING SERVICE PROVIDERS,Invoice,BACS,None,01-Oct-19,2020,1,INV-398,C3111,COMMUNITY GRANT SCHEME,D7487,VOL ASSOC GRANT - PARTNERS
GUILDFORD BOROUGH COUNCIL,STOCKS,CROWN PAINTS LTD,497,16-Apr-20,2108797,2267.9,0,PURCHASES,PAINT AND COATING SUPPLIERS,Invoice,BACS,None,04-Mar-20,2020,1,8204533829,I06001,STORES,2591,PURCHASES
GUILDFORD BOROUGH COUNCIL,RESPONSIVE & PLANNED MAINTENAN,CRANLEIGH AERIALS LIMITED,69899,30-Apr-20,2117026,80,0,TV SYSTEM SERVICE & REPAIR,AUDIO AND VISUAL EQUIPMENT SUPPLIERS,Invoice,BACS,None,15-Apr-20,2020,1,704997,M5113,REPAIRS-RESPONSIVE (BHS),B1387,TV SYSTEM SERVICE & REPAIR
GUILDFORD BOROUGH COUNCIL,RESPONSIVE & PLANNED MAINTENAN,CRANLEIGH AERIALS LIMITED,69899,09-Apr-20,2112774,135,0,TV SYSTEM SERVICE & REPAIR,AUDIO AND VISUAL EQUIPMENT SUPPLIERS,Invoice,BACS,None,03-Mar-20,2020,1,704970,M5113,REPAIRS-RESPONSIVE (BHS),B1387,TV SYSTEM SERVICE & REPAIR
GUILDFORD BOROUGH COUNCIL,RESPONSIVE & PLANNED MAINTENAN,CRANLEIGH AERIALS LIMITED,69899,09-Apr-20,2112775,30,0,TV SYSTEM SERVICE & REPAIR,AUDIO AND VISUAL EQUIPMENT SUPPLIERS,Invoice,BACS,None,29-Feb-20,2020,1,704966,M5113,REPAIRS-RESPONSIVE (BHS),B1387,TV SYSTEM SERVICE & REPAIR
GUILDFORD BOROUGH COUNCIL,RESPONSIVE & PLANNED MAINTENAN,CRANLEIGH AERIALS LIMITED,69899,30-Apr-20,2117027,62.5,0,TV SYSTEM SERVICE & REPAIR,AUDIO AND VISUAL EQUIPMENT SUPPLIERS,Invoice,BACS,None,02-Apr-20,2020,1,704996,M5113,REPAIRS-RESPONSIVE (BHS),B1387,TV SYSTEM SERVICE & REPAIR
GUILDFORD BOROUGH COUNCIL,RESPONSIVE & PLANNED MAINTENAN,CRANLEIGH AERIALS LIMITED,69899,09-Apr-20,2112555,135,0,TV SYSTEM SERVICE & REPAIR,AUDIO AND VISUAL EQUIPMENT SUPPLIERS,Invoice,BACS,None,02-Mar-20,2020,1,704968,M5113,REPAIRS-RESPONSIVE (BHS),B1387,TV SYSTEM SERVICE & REPAIR
GUILDFORD BOROUGH COUNCIL,RESPONSIVE & PLANNED MAINTENAN,CRANLEIGH AERIALS LIMITED,69899,09-Apr-20,2112556,289.11,0,TV SYSTEM SERVICE & REPAIR,AUDIO AND VISUAL EQUIPMENT SUPPLIERS,Invoice,BACS,None,02-Mar-20,2020,1,704967,M5113,REPAIRS-RESPONSIVE (BHS),B1387,TV SYSTEM SERVICE & REPAIR
GUILDFORD BOROUGH COUNCIL,RESPONSIVE & PLANNED MAINTENAN,CRANLEIGH AERIALS LIMITED,69899,09-Apr-20,2112775,135,0,TV SYSTEM SERVICE & REPAIR,AUDIO AND VISUAL EQUIPMENT SUPPLIERS,Invoice,BACS,None,29-Feb-20,2020,1,704966,M5113,REPAIRS-RESPONSIVE (BHS),B1387,TV SYSTEM SERVICE & REPAIR
GUILDFORD BOROUGH COUNCIL,BUILDING MAINTENANCE,D G PROPERTY REFURBISHMENT LTD,71371,09-Apr-20,2112740,1800,0,MATERIALS; SUB CONTRACTOR,RESTORATION SPECIALISTS,Invoice,BACS,None,06-Apr-20,2020,1,44,K1515,BUILDING MAINTENANCE,D1542,MATERIALS; SUB CONTRACTOR
GUILDFORD BOROUGH COUNCIL,RESPONSIVE & PLANNED MAINTENAN,CRANLEIGH AERIALS LIMITED,69899,30-Apr-20,2117026,225,0,TV SYSTEM SERVICE & REPAIR,AUDIO AND VISUAL EQUIPMENT SUPPLIERS,Invoice,BACS,None,15-Apr-20,2020,1,704997,M5113,REPAIRS-RESPONSIVE (BHS),B1387,TV SYSTEM SERVICE & REPAIR
GUILDFORD BOROUGH COUNCIL,PARKS & COUNTRYSIDE,CTG ENTERPRISES LTD,79580,30-Apr-20,2114048,140,0,GAMES & PLAYGROUND EQUIPMENT,OTHER CLEANING AND JANITORIAL SERVICE PROVIDERS,Invoice,BACS,None,01-Apr-20,2020,1,GUI626GBC,A1245,STOKE RECREATION GROUND,D1455,GAMES & PLAYGROUND EQUIPMENT
GUILDFORD BOROUGH COUNCIL,RESPONSIVE & PLANNED MAINTENAN,CRANLEIGH AERIALS LIMITED,69899,09-Apr-20,2112555,22.92,0,TV SYSTEM SERVICE & REPAIR,AUDIO AND VISUAL EQUIPMENT SUPPLIERS,Invoice,BACS,None,02-Mar-20,2020,1,704968,M5113,REPAIRS-RESPONSIVE (BHS),B1387,TV SYSTEM SERVICE & REPAIR
GUILDFORD BOROUGH COUNCIL,RESPONSIVE & PLANNED MAINTENAN,CRANLEIGH AERIALS LIMITED,69899,30-Apr-20,2117027,195,0,TV SYSTEM SERVICE & REPAIR,AUDIO AND VISUAL EQUIPMENT SUPPLIERS,Invoice,BACS,None,02-Apr-20,2020,1,704996,M5113,REPAIRS-RESPONSIVE (BHS),B1387,TV SYSTEM SERVICE & REPAIR
GUILDFORD BOROUGH COUNCIL,RESPONSIVE & PLANNED MAINTENAN,CRANLEIGH AERIALS LIMITED,69899,09-Apr-20,2112556,135,0,TV SYSTEM SERVICE & REPAIR,AUDIO AND VISUAL EQUIPMENT SUPPLIERS,Invoice,BACS,None,02-Mar-20,2020,1,704967,M5113,REPAIRS-RESPONSIVE (BHS),B1387,TV SYSTEM SERVICE & REPAIR
GUILDFORD BOROUGH COUNCIL,REFUSE AND RECYCLING,CRAEMER UK LTD,83063,23-Apr-20,2114049,12792,0,REFUSE CONTAINERS PURCHASE,OTHER PLASTIC GOODS SUPPLIERS,Invoice,BACS,None,03-Apr-20,2020,1,3028082,B7512,REFUSE COLLECTION-TRADE,D1485,REFUSE CONTAINERS PURCHASE
GUILDFORD BOROUGH COUNCIL,REFUSE AND RECYCLING,CRAEMER UK LTD,83063,28-Apr-20,2114059,12792,0,REFUSE CONTAINERS PURCHASE,OTHER PLASTIC GOODS SUPPLIERS,Invoice,BACS,None,03-Apr-20,2020,1,3028081,B7512,REFUSE COLLECTION-TRADE,D1485,REFUSE CONTAINERS PURCHASE
GUILDFORD BOROUGH COUNCIL,TOURIST INFORMATION CENTRE,COUNTRYSIDE BOOKS,3018,02-Apr-20,2105005,106.73,0,PURCHASES FOR RESALE,BOOK DISTRIBUTORS,Invoice,BACS,None,11-Feb-20,2020,1,BW70784,F5541,TOURIST INFORMATION CENTRE,D1579,PURCHASES FOR RESALE
GUILDFORD BOROUGH COUNCIL,LEGAL SERVICES,CORNERSTONE BARRISTERS,44239,21-Apr-20,2114027,2075,0,LEGAL EXPENSES,BARRISTERS,Invoice,BACS,None,20-Mar-20,2020,1,INVROW210,G4525,LEGAL SERVICES,D4457,LEGAL EXPENSES
GUILDFORD BOROUGH COUNCIL,LEGAL SERVICES,CORNERSTONE BARRISTERS,44239,23-Apr-20,2106037,480,0,LEGAL EXPENSES,BARRISTERS,Invoice,BACS,None,12-Feb-20,2020,1,INVJPA319,G4525,LEGAL SERVICES,D4457,LEGAL EXPENSES
GUILDFORD BOROUGH COUNCIL,HEATING,CORNERSTONE (EAST ANGLIA) LIMITED,90449,16-Apr-20,2113445,9095.38,0,CONTRACT PYTS-MAIN CONTRACTOR,INSULATION SERVICE PROVIDERS,Invoice,BACS,None,20-Mar-20,2020,1,5399,N44068,EXTERNAL WALL INSUL 2019-20,1233,CONTRACT PYTS-MAIN CONTRACTOR
GUILDFORD BOROUGH COUNCIL,CREMATORIUM,CONTRACT SECURITY SERVICES LTD,1466,23-Apr-20,2113795,32.04,0,CASH COLLECTION SERVICE,OTHER SECURITY SERVICE PROVIDERS,Invoice,BACS,None,02-Mar-20,2020,1,58350,A1500,GUILDFORD CREMATORIUM,D4441,CASH COLLECTION SERVICE
GUILDFORD BOROUGH COUNCIL,ENVIRONMENTAL CONTROL,COMENSURA LTD,32435,30-Apr-20,2117163,-1.24,0,AGENCY STAFF,OTHER RECRUITMENT AGENCIES AND SERVICE PROVIDERS,Invoice,BACS,None,26-Apr-20,2020,1,1043758,C1113,ENVIRONMENTAL CONTROL,A5191,AGENCY STAFF
GUILDFORD BOROUGH COUNCIL,RESPONSIVE & PLANNED MAINTENAN,CRANLEIGH AERIALS LIMITED,69899,30-Apr-20,2117025,75,0,TV SYSTEM SERVICE & REPAIR,AUDIO AND VISUAL EQUIPMENT SUPPLIERS,Invoice,BACS,None,02-Apr-20,2020,1,704998,M5113,REPAIRS-RESPONSIVE (BHS),B1387,TV SYSTEM SERVICE & REPAIR
GUILDFORD BOROUGH COUNCIL,STREET CLEANSING,CTG ENTERPRISES LTD,79580,23-Apr-20,2114044,980,0,PAYMENT TO CONTRACTORS,OTHER CLEANING AND JANITORIAL SERVICE PROVIDERS,Invoice,BACS,None,01-Apr-20,2020,1,GU1618GBC,K4551,STREET CLEANSING,D4468,PAYMENT TO CONTRACTORS
GUILDFORD BOROUGH COUNCIL,BUILDING MAINTENANCE,D G PROPERTY REFURBISHMENT LTD,71371,09-Apr-20,2112742,130,0,PAYMENT TO CONTRACTORS,RESTORATION SPECIALISTS,Invoice,BACS,None,01-Apr-20,2020,1,43,K1515,BUILDING MAINTENANCE,D4468,PAYMENT TO CONTRACTORS
GUILDFORD BOROUGH COUNCIL,BUILDING MAINTENANCE,D G PROPERTY REFURBISHMENT LTD,71371,09-Apr-20,2112742,100,0,MATERIALS; SUB CONTRACTOR,RESTORATION SPECIALISTS,Invoice,BACS,None,01-Apr-20,2020,1,43,K1515,BUILDING MAINTENANCE,D1542,MATERIALS; SUB CONTRACTOR
GUILDFORD BOROUGH COUNCIL,BUILDING MAINTENANCE,D G PROPERTY REFURBISHMENT LTD,71371,21-Apr-20,2114660,3500,0,MATERIALS; SUB CONTRACTOR,RESTORATION SPECIALISTS,Invoice,BACS,None,18-Apr-20,2020,1,45,K1515,BUILDING MAINTENANCE,D1542,MATERIALS; SUB CONTRACTOR
GUILDFORD BOROUGH COUNCIL,WEYSIDE URBAN VILLAGE,CURTIN & C,98436,09-Apr-20,2112741,1690.99,0,CONSULTANTS FEES - PROJECTS,,Invoice,BACS,None,29-Feb-20,2020,1,C05933,P79100,WUV - ALLOTMENT RELOCATION,1221,CONSULTANTS FEES - PROJECTS
GUILDFORD BOROUGH COUNCIL,WEYSIDE URBAN VILLAGE,CURTIN & C,98436,09-Apr-20,2112728,3309.01,0,CONSULTANTS FEES - PROJECTS,,Invoice,BACS,None,29-Feb-20,2020,1,C05906,P79100,WUV - ALLOTMENT RELOCATION,1221,CONSULTANTS FEES - PROJECTS
GUILDFORD BOROUGH COUNCIL,WEYSIDE URBAN VILLAGE,CURTIN & C,98436,09-Apr-20,2112729,1563.05,0,CONSULTANTS FEES - PROJECTS,,Invoice,BACS,None,29-Feb-20,2020,1,C05907,P79100,WUV - ALLOTMENT RELOCATION,1221,CONSULTANTS FEES - PROJECTS
GUILDFORD BOROUGH COUNCIL,PARKS & COUNTRYSIDE,CTG ENTERPRISES LTD,79580,30-Apr-20,2114048,140,0,GAMES & PLAYGROUND EQUIPMENT,OTHER CLEANING AND JANITORIAL SERVICE PROVIDERS,Invoice,BACS,None,01-Apr-20,2020,1,GUI626GBC,A1961,WESTBOROUGH TRIM TRIALS,D1455,GAMES & PLAYGROUND EQUIPMENT
GUILDFORD BOROUGH COUNCIL,PARKS & COUNTRYSIDE,CTG ENTERPRISES LTD,79580,30-Apr-20,2114048,140,0,GAMES & PLAYGROUND EQUIPMENT,OTHER CLEANING AND JANITORIAL SERVICE PROVIDERS,Invoice,BACS,None,01-Apr-20,2020,1,GUI626GBC,A1206,ASH OPEN SPACES,D1455,GAMES & PLAYGROUND EQUIPMENT
GUILDFORD BOROUGH COUNCIL,PARKS & COUNTRYSIDE,CTG ENTERPRISES LTD,79580,30-Apr-20,2114048,140,0,GAMES & PLAYGROUND EQUIPMENT,OTHER CLEANING AND JANITORIAL SERVICE PROVIDERS,Invoice,BACS,None,01-Apr-20,2020,1,GUI626GBC,A1209,PARKS AND OPEN SPACES GENERAL,D1455,GAMES & PLAYGROUND EQUIPMENT
GUILDFORD BOROUGH COUNCIL,STREET FURNITURE,CTG ENTERPRISES LTD,79580,21-Apr-20,2114046,350,0,FRIARY BUS STATION CLEANING,OTHER CLEANING AND JANITORIAL SERVICE PROVIDERS,Invoice,BACS,None,01-Apr-20,2020,1,GU1620GBC,B3711,CIVIC AMENITIES ADMINISTRATION,D1405,FRIARY BUS STATION CLEANING
GUILDFORD BOROUGH COUNCIL,STREET FURNITURE,CTG ENTERPRISES LTD,79580,07-Apr-20,2110935,858,0,STREET FURNITURE CLEANING,OTHER CLEANING AND JANITORIAL SERVICE PROVIDERS,Invoice,BACS,None,28-Feb-20,2020,1,GU1615GBC,B3711,CIVIC AMENITIES ADMINISTRATION,D1402,STREET FURNITURE CLEANING
GUILDFORD BOROUGH COUNCIL,BUSINESS & TOURISM,CRYSTAL DESIGN & MEDIA LTD,87603,07-Apr-20,2109831,295,0,VENUES GUIDES,DIGITAL MARKETING SERVICE PROVIDERS,Invoice,BACS,None,02-Mar-20,2020,1,VI10898,F5545,TOURISM,D9464,VENUES GUIDES
GUILDFORD BOROUGH COUNCIL,PARKS & COUNTRYSIDE,CTG ENTERPRISES LTD,79580,30-Apr-20,2114048,140,0,GAMES & PLAYGROUND EQUIPMENT,OTHER CLEANING AND JANITORIAL SERVICE PROVIDERS,Invoice,BACS,None,01-Apr-20,2020,1,GUI626GBC,A1961,WESTBOROUGH TRIM TRIALS,D1455,GAMES & PLAYGROUND EQUIPMENT
GUILDFORD BOROUGH COUNCIL,STREET CLEANSING,CTG ENTERPRISES LTD,79580,23-Apr-20,2114047,150,0,PAYMENT TO CONTRACTORS,OTHER CLEANING AND JANITORIAL SERVICE PROVIDERS,Invoice,BACS,None,01-Apr-20,2020,1,GU1621GBC,K4551,STREET CLEANSING,D4468,PAYMENT TO CONTRACTORS
GUILDFORD BOROUGH COUNCIL,PARKS & COUNTRYSIDE,CTG ENTERPRISES LTD,79580,30-Apr-20,2114048,140,0,GAMES & PLAYGROUND EQUIPMENT,OTHER CLEANING AND JANITORIAL SERVICE PROVIDERS,Invoice,BACS,None,01-Apr-20,2020,1,GUI626GBC,A1209,PARKS AND OPEN SPACES GENERAL,D1455,GAMES & PLAYGROUND EQUIPMENT
GUILDFORD BOROUGH COUNCIL,PARKS & COUNTRYSIDE,CTG ENTERPRISES LTD,79580,30-Apr-20,2114048,140,0,GAMES & PLAYGROUND EQUIPMENT,OTHER CLEANING AND JANITORIAL SERVICE PROVIDERS,Invoice,BACS,None,01-Apr-20,2020,1,GUI626GBC,A1962,WESTBOROUGH WOODS,D1455,GAMES & PLAYGROUND EQUIPMENT
GUILDFORD BOROUGH COUNCIL,STREET CLEANSING,CTG ENTERPRISES LTD,79580,16-Apr-20,2112019,2160,0,PAYMENT TO CONTRACTORS,OTHER CLEANING AND JANITORIAL SERVICE PROVIDERS,Invoice,BACS,None,01-Feb-20,2020,1,GU1593GBC,K4551,STREET CLEANSING,D4468,PAYMENT TO CONTRACTORS
GUILDFORD BOROUGH COUNCIL,PARKS & COUNTRYSIDE,CTG ENTERPRISES LTD,79580,30-Apr-20,2114048,140,0,GAMES & PLAYGROUND EQUIPMENT,OTHER CLEANING AND JANITORIAL SERVICE PROVIDERS,Invoice,BACS,None,01-Apr-20,2020,1,GUI626GBC,A1961,WESTBOROUGH TRIM TRIALS,D1455,GAMES & PLAYGROUND EQUIPMENT
GUILDFORD BOROUGH COUNCIL,STREET FURNITURE,CTG ENTERPRISES LTD,79580,30-Apr-20,2114045,350,0,FRIARY BUS STATION CLEANING,OTHER CLEANING AND JANITORIAL SERVICE PROVIDERS,Invoice,BACS,None,01-Apr-20,2020,1,GU1619GBC,B3711,CIVIC AMENITIES ADMINISTRATION,D1405,FRIARY BUS STATION CLEANING
GUILDFORD BOROUGH COUNCIL,PARKS & COUNTRYSIDE,CTG ENTERPRISES LTD,79580,30-Apr-20,2114048,140,0,GAMES & PLAYGROUND EQUIPMENT,OTHER CLEANING AND JANITORIAL SERVICE PROVIDERS,Invoice,BACS,None,01-Apr-20,2020,1,GUI626GBC,A1206,ASH OPEN SPACES,D1455,GAMES & PLAYGROUND EQUIPMENT
GUILDFORD BOROUGH COUNCIL,PARKS & COUNTRYSIDE,CTG ENTERPRISES LTD,79580,30-Apr-20,2114048,140,0,GAMES & PLAYGROUND EQUIPMENT,OTHER CLEANING AND JANITORIAL SERVICE PROVIDERS,Invoice,BACS,None,01-Apr-20,2020,1,GUI626GBC,A1268,BANNISTERS FIELD,D1455,GAMES & PLAYGROUND EQUIPMENT
GUILDFORD BOROUGH COUNCIL,ENVIRONMENTAL WORKS,CTG ENTERPRISES LTD,79580,30-Apr-20,2114048,140,0,GAMES & PLAYGROUND EQUIPMENT,OTHER CLEANING AND JANITORIAL SERVICE PROVIDERS,Invoice,BACS,None,01-Apr-20,2020,1,GUI626GBC,M4615,ENV WKS TO ESTATE (BHS),D1455,GAMES & PLAYGROUND EQUIPMENT
GUILDFORD BOROUGH COUNCIL,PARKS & COUNTRYSIDE,CTG ENTERPRISES LTD,79580,30-Apr-20,2114048,140,0,GAMES & PLAYGROUND EQUIPMENT,OTHER CLEANING AND JANITORIAL SERVICE PROVIDERS,Invoice,BACS,None,01-Apr-20,2020,1,GUI626GBC,A1204,MERROW OPEN SPACES,D1455,GAMES & PLAYGROUND EQUIPMENT
GUILDFORD BOROUGH COUNCIL,PARKS & COUNTRYSIDE,CTG ENTERPRISES LTD,79580,30-Apr-20,2114048,140,0,GAMES & PLAYGROUND EQUIPMENT,OTHER CLEANING AND JANITORIAL SERVICE PROVIDERS,Invoice,BACS,None,01-Apr-20,2020,1,GUI626GBC,A1209,PARKS AND OPEN SPACES GENERAL,D1455,GAMES & PLAYGROUND EQUIPMENT
GUILDFORD BOROUGH COUNCIL,GUILDFORD HOUSE,CONTRACT SECURITY SERVICES LTD,1466,23-Apr-20,2113795,64.08,0,CASH COLLECTION SERVICE,OTHER SECURITY SERVICE PROVIDERS,Invoice,BACS,None,02-Mar-20,2020,1,58350,A4511,GUILDFORD HOUSE ADMINISTRATION,D4441,CASH COLLECTION SERVICE
GUILDFORD BOROUGH COUNCIL,PARKS & COUNTRYSIDE,CTG ENTERPRISES LTD,79580,30-Apr-20,2114048,140,0,GAMES & PLAYGROUND EQUIPMENT,OTHER CLEANING AND JANITORIAL SERVICE PROVIDERS,Invoice,BACS,None,01-Apr-20,2020,1,GUI626GBC,A1961,WESTBOROUGH TRIM TRIALS,D1455,GAMES & PLAYGROUND EQUIPMENT
GUILDFORD BOROUGH COUNCIL,DEVELOPMENT CONTROL,COMENSURA LTD,32435,09-Apr-20,2112668,532.06,0,AGENCY STAFF,OTHER RECRUITMENT AGENCIES AND SERVICE PROVIDERS,Invoice,BACS,None,05-Apr-20,2020,1,1042760,D5100,DEVELOPMENT CONTROL - FEE EARN,A5191,AGENCY STAFF
GUILDFORD BOROUGH COUNCIL,REFUSE AND RECYCLING,COMENSURA LTD,32435,30-Apr-20,2117163,651.21,0,AGENCY STAFF,OTHER RECRUITMENT AGENCIES AND SERVICE PROVIDERS,Invoice,BACS,None,26-Apr-20,2020,1,1043758,B7766,KERBSIDE RECYCLING,A5191,AGENCY STAFF
GUILDFORD BOROUGH COUNCIL,REFUSE AND RECYCLING,COMENSURA LTD,32435,16-Apr-20,2113429,221.34,0,AGENCY STAFF,OTHER RECRUITMENT AGENCIES AND SERVICE PROVIDERS,Invoice,BACS,None,12-Apr-20,2020,1,1043102,B7744,GREEN WASTE,A5191,AGENCY STAFF
GUILDFORD BOROUGH COUNCIL,REFUSE AND RECYCLING,COMENSURA LTD,32435,16-Apr-20,2113429,425.85,0,AGENCY STAFF,OTHER RECRUITMENT AGENCIES AND SERVICE PROVIDERS,Invoice,BACS,None,12-Apr-20,2020,1,1043102,B7766,KERBSIDE RECYCLING,A5191,AGENCY STAFF
GUILDFORD BOROUGH COUNCIL,REFUSE AND RECYCLING,COMENSURA LTD,32435,16-Apr-20,2113429,536.67,0,AGENCY STAFF,OTHER RECRUITMENT AGENCIES AND SERVICE PROVIDERS,Invoice,BACS,None,12-Apr-20,2020,1,1043102,B7766,KERBSIDE RECYCLING,A5191,AGENCY STAFF
GUILDFORD BOROUGH COUNCIL,REFUSE AND RECYCLING,COMENSURA LTD,32435,09-Apr-20,2112668,-1.68,0,AGENCY STAFF,OTHER RECRUITMENT AGENCIES AND SERVICE PROVIDERS,Invoice,BACS,None,05-Apr-20,2020,1,1042760,B7744,GREEN WASTE,A5191,AGENCY STAFF
GUILDFORD BOROUGH COUNCIL,REFUSE AND RECYCLING,COMENSURA LTD,32435,09-Apr-20,2112668,559.91,0,AGENCY STAFF,OTHER RECRUITMENT AGENCIES AND SERVICE PROVIDERS,Invoice,BACS,None,05-Apr-20,2020,1,1042760,B7744,GREEN WASTE,A5191,AGENCY STAFF
GUILDFORD BOROUGH COUNCIL,REFUSE AND RECYCLING,COMENSURA LTD,32435,09-Apr-20,2112668,481.13,0,AGENCY STAFF,OTHER RECRUITMENT AGENCIES AND SERVICE PROVIDERS,Invoice,BACS,None,05-Apr-20,2020,1,1042760,B7744,GREEN WASTE,A5191,AGENCY STAFF
GUILDFORD BOROUGH COUNCIL,STREET CLEANSING,COMENSURA LTD,32435,09-Apr-20,2112668,-1.48,0,AGENCY STAFF,OTHER RECRUITMENT AGENCIES AND SERVICE PROVIDERS,Invoice,BACS,None,05-Apr-20,2020,1,1042760,K4551,STREET CLEANSING,A5191,AGENCY STAFF
GUILDFORD BOROUGH COUNCIL,REFUSE AND RECYCLING,COMENSURA LTD,32435,09-Apr-20,2112668,244.64,0,AGENCY STAFF,OTHER RECRUITMENT AGENCIES AND SERVICE PROVIDERS,Invoice,BACS,None,05-Apr-20,2020,1,1042760,B7744,GREEN WASTE,A5191,AGENCY STAFF
GUILDFORD BOROUGH COUNCIL,REFUSE AND RECYCLING,COMENSURA LTD,32435,09-Apr-20,2112668,236.49,0,AGENCY STAFF,OTHER RECRUITMENT AGENCIES AND SERVICE PROVIDERS,Invoice,BACS,None,05-Apr-20,2020,1,1042760,B7744,GREEN WASTE,A5191,AGENCY STAFF
GUILDFORD BOROUGH COUNCIL,STREET CLEANSING,COMENSURA LTD,32435,23-Apr-20,2115248,446.63,0,AGENCY STAFF,OTHER RECRUITMENT AGENCIES AND SERVICE PROVIDERS,Invoice,BACS,None,19-Apr-20,2020,1,1043426,K4551,STREET CLEANSING,A5191,AGENCY STAFF
GUILDFORD BOROUGH COUNCIL,MUSEUM,COMENSURA LTD,32435,09-Apr-20,2112668,547.52,0,AGENCY STAFF,OTHER RECRUITMENT AGENCIES AND SERVICE PROVIDERS,Invoice,BACS,None,05-Apr-20,2020,1,1042760,A5511,MUSEUM,A5191,AGENCY STAFF
GUILDFORD BOROUGH COUNCIL,STREET CLEANSING,COMENSURA LTD,32435,23-Apr-20,2115248,458.67,0,AGENCY STAFF,OTHER RECRUITMENT AGENCIES AND SERVICE PROVIDERS,Invoice,BACS,None,19-Apr-20,2020,1,1043426,K4551,STREET CLEANSING,A5191,AGENCY STAFF
GUILDFORD BOROUGH COUNCIL,MUSEUM,COMENSURA LTD,32435,09-Apr-20,2112668,556.45,0,AGENCY STAFF,OTHER RECRUITMENT AGENCIES AND SERVICE PROVIDERS,Invoice,BACS,None,05-Apr-20,2020,1,1042760,A5511,MUSEUM,A5191,AGENCY STAFF
GUILDFORD BOROUGH COUNCIL,PUBLIC RELATIONS,COMENSURA LTD,32435,30-Apr-20,2117163,929.44,0,AGENCY STAFF,OTHER RECRUITMENT AGENCIES AND SERVICE PROVIDERS,Invoice,BACS,None,26-Apr-20,2020,1,1043758,F5551,PUBLIC RELATIONS & MARKETING,A5191,AGENCY STAFF
GUILDFORD BOROUGH COUNCIL,REFUSE AND RECYCLING,COMENSURA LTD,32435,09-Apr-20,2112668,84.6,0,AGENCY STAFF,OTHER RECRUITMENT AGENCIES AND SERVICE PROVIDERS,Invoice,BACS,None,05-Apr-20,2020,1,1042760,K3551,REFUSE COLLECTION,A5191,AGENCY STAFF
GUILDFORD BOROUGH COUNCIL,REFUSE AND RECYCLING,COMENSURA LTD,32435,09-Apr-20,2112668,247.93,0,AGENCY STAFF,OTHER RECRUITMENT AGENCIES AND SERVICE PROVIDERS,Invoice,BACS,None,05-Apr-20,2020,1,1042760,B7744,GREEN WASTE,A5191,AGENCY STAFF
GUILDFORD BOROUGH COUNCIL,REFUSE AND RECYCLING,COMENSURA LTD,32435,09-Apr-20,2112668,122.32,0,AGENCY STAFF,OTHER RECRUITMENT AGENCIES AND SERVICE PROVIDERS,Invoice,BACS,None,05-Apr-20,2020,1,1042760,K3551,REFUSE COLLECTION,A5191,AGENCY STAFF
GUILDFORD BOROUGH COUNCIL,REFUSE AND RECYCLING,COMENSURA LTD,32435,09-Apr-20,2112668,102.06,0,AGENCY STAFF,OTHER RECRUITMENT AGENCIES AND SERVICE PROVIDERS,Invoice,BACS,None,05-Apr-20,2020,1,1042760,B7744,GREEN WASTE,A5191,AGENCY STAFF
GUILDFORD BOROUGH COUNCIL,REFUSE AND RECYCLING,COMENSURA LTD,32435,09-Apr-20,2112668,333.03,0,AGENCY STAFF,OTHER RECRUITMENT AGENCIES AND SERVICE PROVIDERS,Invoice,BACS,None,05-Apr-20,2020,1,1042760,K3551,REFUSE COLLECTION,A5191,AGENCY STAFF
GUILDFORD BOROUGH COUNCIL,REFUSE AND RECYCLING,COMENSURA LTD,32435,09-Apr-20,2112668,-1,0,AGENCY STAFF,OTHER RECRUITMENT AGENCIES AND SERVICE PROVIDERS,Invoice,BACS,None,05-Apr-20,2020,1,1042760,K3551,REFUSE COLLECTION,A5191,AGENCY STAFF
GUILDFORD BOROUGH COUNCIL,REFUSE AND RECYCLING,COMENSURA LTD,32435,09-Apr-20,2112668,499.71,0,AGENCY STAFF,OTHER RECRUITMENT AGENCIES AND SERVICE PROVIDERS,Invoice,BACS,None,05-Apr-20,2020,1,1042760,K3551,REFUSE COLLECTION,A5191,AGENCY STAFF
GUILDFORD BOROUGH COUNCIL,REFUSE AND RECYCLING,COMENSURA LTD,32435,30-Apr-20,2117163,73.36,0,AGENCY STAFF,OTHER RECRUITMENT AGENCIES AND SERVICE PROVIDERS,Invoice,BACS,None,26-Apr-20,2020,1,1043758,B7744,GREEN WASTE,A5191,AGENCY STAFF
GUILDFORD BOROUGH COUNCIL,REFUSE AND RECYCLING,COMENSURA LTD,32435,30-Apr-20,2117163,78.6,0,AGENCY STAFF,OTHER RECRUITMENT AGENCIES AND SERVICE PROVIDERS,Invoice,BACS,None,26-Apr-20,2020,1,1043758,B7744,GREEN WASTE,A5191,AGENCY STAFF
GUILDFORD BOROUGH COUNCIL,BUILDING CONTROL SUMMARY,COMENSURA LTD,32435,09-Apr-20,2112668,452.1,0,AGENCY STAFF,OTHER RECRUITMENT AGENCIES AND SERVICE PROVIDERS,Invoice,BACS,None,05-Apr-20,2020,1,1042760,D5700,BUILDING CONTROL - FEE,A5191,AGENCY STAFF
GUILDFORD BOROUGH COUNCIL,REFUSE AND RECYCLING,COMENSURA LTD,32435,30-Apr-20,2117163,-1.42,0,AGENCY STAFF,OTHER RECRUITMENT AGENCIES AND SERVICE PROVIDERS,Invoice,BACS,None,26-Apr-20,2020,1,1043758,B7766,KERBSIDE RECYCLING,A5191,AGENCY STAFF
GUILDFORD BOROUGH COUNCIL,REFUSE AND RECYCLING,COMENSURA LTD,32435,30-Apr-20,2117163,476.19,0,AGENCY STAFF,OTHER RECRUITMENT AGENCIES AND SERVICE PROVIDERS,Invoice,BACS,None,26-Apr-20,2020,1,1043758,B7766,KERBSIDE RECYCLING,A5191,AGENCY STAFF
GUILDFORD BOROUGH COUNCIL,BUILDING CONTROL SUMMARY,COMENSURA LTD,32435,30-Apr-20,2117163,452.1,0,AGENCY STAFF,OTHER RECRUITMENT AGENCIES AND SERVICE PROVIDERS,Invoice,BACS,None,26-Apr-20,2020,1,1043758,D5700,BUILDING CONTROL - FEE,A5191,AGENCY STAFF
GUILDFORD BOROUGH COUNCIL,PUBLIC RELATIONS,COMENSURA LTD,32435,02-Apr-20,2111777,753.6,0,AGENCY STAFF,OTHER RECRUITMENT AGENCIES AND SERVICE PROVIDERS,Invoice,BACS,None,29-Mar-20,2020,1,1042356,F5551,PUBLIC RELATIONS & MARKETING,A5191,AGENCY STAFF
GUILDFORD BOROUGH COUNCIL,REFUSE AND RECYCLING,COMENSURA LTD,32435,02-Apr-20,2111777,365.8,0,AGENCY STAFF,OTHER RECRUITMENT AGENCIES AND SERVICE PROVIDERS,Invoice,BACS,None,29-Mar-20,2020,1,1042356,B7744,GREEN WASTE,A5191,AGENCY STAFF
GUILDFORD BOROUGH COUNCIL,STREET CLEANSING,COMENSURA LTD,32435,02-Apr-20,2111777,509.64,0,AGENCY STAFF,OTHER RECRUITMENT AGENCIES AND SERVICE PROVIDERS,Invoice,BACS,None,29-Mar-20,2020,1,1042356,K4551,STREET CLEANSING,A5191,AGENCY STAFF
GUILDFORD BOROUGH COUNCIL,REFUSE AND RECYCLING,COMENSURA LTD,32435,02-Apr-20,2111777,559.91,0,AGENCY STAFF,OTHER RECRUITMENT AGENCIES AND SERVICE PROVIDERS,Invoice,BACS,None,29-Mar-20,2020,1,1042356,B7766,KERBSIDE RECYCLING,A5191,AGENCY STAFF
GUILDFORD BOROUGH COUNCIL,PUBLIC RELATIONS,COMENSURA LTD,32435,02-Apr-20,2111777,929.44,0,AGENCY STAFF,OTHER RECRUITMENT AGENCIES AND SERVICE PROVIDERS,Invoice,BACS,None,29-Mar-20,2020,1,1042356,F5551,PUBLIC RELATIONS & MARKETING,A5191,AGENCY STAFF
GUILDFORD BOROUGH COUNCIL,REFUSE AND RECYCLING,COMENSURA LTD,32435,30-Apr-20,2117163,525.06,0,AGENCY STAFF,OTHER RECRUITMENT AGENCIES AND SERVICE PROVIDERS,Invoice,BACS,None,26-Apr-20,2020,1,1043758,B7766,KERBSIDE RECYCLING,A5191,AGENCY STAFF
GUILDFORD BOROUGH COUNCIL,REFUSE AND RECYCLING,COMENSURA LTD,32435,30-Apr-20,2117163,559.91,0,AGENCY STAFF,OTHER RECRUITMENT AGENCIES AND SERVICE PROVIDERS,Invoice,BACS,None,26-Apr-20,2020,1,1043758,B7766,KERBSIDE RECYCLING,A5191,AGENCY STAFF
GUILDFORD BOROUGH COUNCIL,REFUSE AND RECYCLING,COMENSURA LTD,32435,30-Apr-20,2117163,-1.68,0,AGENCY STAFF,OTHER RECRUITMENT AGENCIES AND SERVICE PROVIDERS,Invoice,BACS,None,26-Apr-20,2020,1,1043758,B7766,KERBSIDE RECYCLING,A5191,AGENCY STAFF
GUILDFORD BOROUGH COUNCIL,FUTURE GUILDFORD,COMENSURA LTD,32435,23-Apr-20,2115248,210.43,0,AGENCY STAFF,OTHER RECRUITMENT AGENCIES AND SERVICE PROVIDERS,Invoice,BACS,None,19-Apr-20,2020,1,1043426,G3531,FUTURE GUILDFORD,A5191,AGENCY STAFF
GUILDFORD BOROUGH COUNCIL,STREET CLEANSING,COMENSURA LTD,32435,30-Apr-20,2117163,539.46,0,AGENCY STAFF,OTHER RECRUITMENT AGENCIES AND SERVICE PROVIDERS,Invoice,BACS,None,26-Apr-20,2020,1,1043758,K4551,STREET CLEANSING,A5191,AGENCY STAFF
GUILDFORD BOROUGH COUNCIL,DEVELOPMENT CONTROL,COMENSURA LTD,32435,30-Apr-20,2117163,506.9,0,AGENCY STAFF,OTHER RECRUITMENT AGENCIES AND SERVICE PROVIDERS,Invoice,BACS,None,26-Apr-20,2020,1,1043758,D5100,DEVELOPMENT CONTROL - FEE EARN,A5191,AGENCY STAFF
GUILDFORD BOROUGH COUNCIL,REFUSE AND RECYCLING,COMENSURA LTD,32435,30-Apr-20,2117163,701.31,0,AGENCY STAFF,OTHER RECRUITMENT AGENCIES AND SERVICE PROVIDERS,Invoice,BACS,None,26-Apr-20,2020,1,1043758,B7744,GREEN WASTE,A5191,AGENCY STAFF
GUILDFORD BOROUGH COUNCIL,ENVIRONMENTAL CONTROL,COMENSURA LTD,32435,30-Apr-20,2117163,676.79,0,AGENCY STAFF,OTHER RECRUITMENT AGENCIES AND SERVICE PROVIDERS,Invoice,BACS,None,26-Apr-20,2020,1,1043758,C1113,ENVIRONMENTAL CONTROL,A5191,AGENCY STAFF
GUILDFORD BOROUGH COUNCIL,DEVELOPMENT CONTROL,COMENSURA LTD,32435,02-Apr-20,2111777,506.9,0,AGENCY STAFF,OTHER RECRUITMENT AGENCIES AND SERVICE PROVIDERS,Invoice,BACS,None,29-Mar-20,2020,1,1042356,D5100,DEVELOPMENT CONTROL - FEE EARN,A5191,AGENCY STAFF
GUILDFORD BOROUGH COUNCIL,REFUSE AND RECYCLING,COMENSURA LTD,32435,02-Apr-20,2111777,-1.72,0,AGENCY STAFF,OTHER RECRUITMENT AGENCIES AND SERVICE PROVIDERS,Invoice,BACS,None,29-Mar-20,2020,1,1042356,B7766,KERBSIDE RECYCLING,A5191,AGENCY STAFF
GUILDFORD BOROUGH COUNCIL,REFUSE AND RECYCLING,COMENSURA LTD,32435,02-Apr-20,2111777,-1,0,AGENCY STAFF,OTHER RECRUITMENT AGENCIES AND SERVICE PROVIDERS,Invoice,BACS,None,29-Mar-20,2020,1,1042356,B7766,KERBSIDE RECYCLING,A5191,AGENCY STAFF
GUILDFORD BOROUGH COUNCIL,REFUSE AND RECYCLING,COMENSURA LTD,32435,02-Apr-20,2111777,537.43,0,AGENCY STAFF,OTHER RECRUITMENT AGENCIES AND SERVICE PROVIDERS,Invoice,BACS,None,29-Mar-20,2020,1,1042356,B7766,KERBSIDE RECYCLING,A5191,AGENCY STAFF
GUILDFORD BOROUGH COUNCIL,REFUSE AND RECYCLING,COMENSURA LTD,32435,02-Apr-20,2111777,698.97,0,AGENCY STAFF,OTHER RECRUITMENT AGENCIES AND SERVICE PROVIDERS,Invoice,BACS,None,29-Mar-20,2020,1,1042356,B7766,KERBSIDE RECYCLING,A5191,AGENCY STAFF
GUILDFORD BOROUGH COUNCIL,REFUSE AND RECYCLING,COMENSURA LTD,32435,02-Apr-20,2111777,122.32,0,AGENCY STAFF,OTHER RECRUITMENT AGENCIES AND SERVICE PROVIDERS,Invoice,BACS,None,29-Mar-20,2020,1,1042356,B7766,KERBSIDE RECYCLING,A5191,AGENCY STAFF
GUILDFORD BOROUGH COUNCIL,REFUSE AND RECYCLING,COMENSURA LTD,32435,02-Apr-20,2111777,394.63,0,AGENCY STAFF,OTHER RECRUITMENT AGENCIES AND SERVICE PROVIDERS,Invoice,BACS,None,29-Mar-20,2020,1,1042356,B7744,GREEN WASTE,A5191,AGENCY STAFF
GUILDFORD BOROUGH COUNCIL,ENVIRONMENTAL CONTROL,COMENSURA LTD,32435,23-Apr-20,2115248,559.64,0,AGENCY STAFF,OTHER RECRUITMENT AGENCIES AND SERVICE PROVIDERS,Invoice,BACS,None,19-Apr-20,2020,1,1043426,C1113,ENVIRONMENTAL CONTROL,A5191,AGENCY STAFF
GUILDFORD BOROUGH COUNCIL,REFUSE AND RECYCLING,COMENSURA LTD,32435,23-Apr-20,2115248,357.97,0,AGENCY STAFF,OTHER RECRUITMENT AGENCIES AND SERVICE PROVIDERS,Invoice,BACS,None,19-Apr-20,2020,1,1043426,B7744,GREEN WASTE,A5191,AGENCY STAFF
GUILDFORD BOROUGH COUNCIL,REFUSE AND RECYCLING,COMENSURA LTD,32435,30-Apr-20,2117163,197.96,0,AGENCY STAFF,OTHER RECRUITMENT AGENCIES AND SERVICE PROVIDERS,Invoice,BACS,None,26-Apr-20,2020,1,1043758,B7766,KERBSIDE RECYCLING,A5191,AGENCY STAFF
GUILDFORD BOROUGH COUNCIL,ENVIRONMENTAL CONTROL,COMENSURA LTD,32435,23-Apr-20,2115248,328.02,0,AGENCY STAFF,OTHER RECRUITMENT AGENCIES AND SERVICE PROVIDERS,Invoice,BACS,None,19-Apr-20,2020,1,1043426,C1113,ENVIRONMENTAL CONTROL,A5191,AGENCY STAFF
GUILDFORD BOROUGH COUNCIL,MOT BAY,COMENSURA LTD,32435,30-Apr-20,2117163,-2.38,0,AGENCY STAFF,OTHER RECRUITMENT AGENCIES AND SERVICE PROVIDERS,Invoice,BACS,None,26-Apr-20,2020,1,1043758,V8598,MOT STATION,A5191,AGENCY STAFF
GUILDFORD BOROUGH COUNCIL,LEGAL SERVICES,COMENSURA LTD,32435,30-Apr-20,2117163,1453.06,0,AGENCY STAFF,OTHER RECRUITMENT AGENCIES AND SERVICE PROVIDERS,Invoice,BACS,None,26-Apr-20,2020,1,1043758,G4525,LEGAL SERVICES,A5191,AGENCY STAFF
GUILDFORD BOROUGH COUNCIL,ENVIRONMENTAL CONTROL,COMENSURA LTD,32435,02-Apr-20,2111777,585.75,0,AGENCY STAFF,OTHER RECRUITMENT AGENCIES AND SERVICE PROVIDERS,Invoice,BACS,None,29-Mar-20,2020,1,1042356,C1113,ENVIRONMENTAL CONTROL,A5191,AGENCY STAFF
GUILDFORD BOROUGH COUNCIL,REFUSE AND RECYCLING,COMENSURA LTD,32435,02-Apr-20,2111777,113.44,0,AGENCY STAFF,OTHER RECRUITMENT AGENCIES AND SERVICE PROVIDERS,Invoice,BACS,None,29-Mar-20,2020,1,1042356,B7766,KERBSIDE RECYCLING,A5191,AGENCY STAFF
GUILDFORD BOROUGH COUNCIL,REFUSE AND RECYCLING,COMENSURA LTD,32435,02-Apr-20,2111777,84.6,0,AGENCY STAFF,OTHER RECRUITMENT AGENCIES AND SERVICE PROVIDERS,Invoice,BACS,None,29-Mar-20,2020,1,1042356,B7766,KERBSIDE RECYCLING,A5191,AGENCY STAFF
GUILDFORD BOROUGH COUNCIL,REFUSE AND RECYCLING,COMENSURA LTD,32435,02-Apr-20,2111777,387.76,0,AGENCY STAFF,OTHER RECRUITMENT AGENCIES AND SERVICE PROVIDERS,Invoice,BACS,None,29-Mar-20,2020,1,1042356,B7766,KERBSIDE RECYCLING,A5191,AGENCY STAFF
GUILDFORD BOROUGH COUNCIL,REFUSE AND RECYCLING,COMENSURA LTD,32435,02-Apr-20,2111777,581.04,0,AGENCY STAFF,OTHER RECRUITMENT AGENCIES AND SERVICE PROVIDERS,Invoice,BACS,None,29-Mar-20,2020,1,1042356,B7766,KERBSIDE RECYCLING,A5191,AGENCY STAFF
GUILDFORD BOROUGH COUNCIL,STREET CLEANSING,COMENSURA LTD,32435,02-Apr-20,2111777,389.16,0,AGENCY STAFF,OTHER RECRUITMENT AGENCIES AND SERVICE PROVIDERS,Invoice,BACS,None,29-Mar-20,2020,1,1042356,K4551,STREET CLEANSING,A5191,AGENCY STAFF
GUILDFORD BOROUGH COUNCIL,REFUSE AND RECYCLING,COMENSURA LTD,32435,02-Apr-20,2111777,84.6,0,AGENCY STAFF,OTHER RECRUITMENT AGENCIES AND SERVICE PROVIDERS,Invoice,BACS,None,29-Mar-20,2020,1,1042356,B7744,GREEN WASTE,A5191,AGENCY STAFF
GUILDFORD BOROUGH COUNCIL,STREET CLEANSING,COMENSURA LTD,32435,02-Apr-20,2111777,-1.48,0,AGENCY STAFF,OTHER RECRUITMENT AGENCIES AND SERVICE PROVIDERS,Invoice,BACS,None,29-Mar-20,2020,1,1042356,K4551,STREET CLEANSING,A5191,AGENCY STAFF
GUILDFORD BOROUGH COUNCIL,REFUSE AND RECYCLING,COMENSURA LTD,32435,30-Apr-20,2117163,698.97,0,AGENCY STAFF,OTHER RECRUITMENT AGENCIES AND SERVICE PROVIDERS,Invoice,BACS,None,26-Apr-20,2020,1,1043758,B7744,GREEN WASTE,A5191,AGENCY STAFF
GUILDFORD BOROUGH COUNCIL,REFUSE AND RECYCLING,COMENSURA LTD,32435,02-Apr-20,2111777,390.58,0,AGENCY STAFF,OTHER RECRUITMENT AGENCIES AND SERVICE PROVIDERS,Invoice,BACS,None,29-Mar-20,2020,1,1042356,B7766,KERBSIDE RECYCLING,A5191,AGENCY STAFF
GUILDFORD BOROUGH COUNCIL,REFUSE AND RECYCLING,COMENSURA LTD,32435,30-Apr-20,2117163,196.43,0,AGENCY STAFF,OTHER RECRUITMENT AGENCIES AND SERVICE PROVIDERS,Invoice,BACS,None,26-Apr-20,2020,1,1043758,B7766,KERBSIDE RECYCLING,A5191,AGENCY STAFF
GUILDFORD BOROUGH COUNCIL,REFUSE AND RECYCLING,COMENSURA LTD,32435,23-Apr-20,2115248,178.96,0,AGENCY STAFF,OTHER RECRUITMENT AGENCIES AND SERVICE PROVIDERS,Invoice,BACS,None,19-Apr-20,2020,1,1043426,B7744,GREEN WASTE,A5191,AGENCY STAFF
GUILDFORD BOROUGH COUNCIL,STREET CLEANSING,COMENSURA LTD,32435,23-Apr-20,2115248,-1.18,0,AGENCY STAFF,OTHER RECRUITMENT AGENCIES AND SERVICE PROVIDERS,Invoice,BACS,None,19-Apr-20,2020,1,1043426,K4551,STREET CLEANSING,A5191,AGENCY STAFF
GUILDFORD BOROUGH COUNCIL,REFUSE AND RECYCLING,COMENSURA LTD,32435,23-Apr-20,2115248,598.73,0,AGENCY STAFF,OTHER RECRUITMENT AGENCIES AND SERVICE PROVIDERS,Invoice,BACS,None,19-Apr-20,2020,1,1043426,B7711,RECYCLING ADMINISTRATION,A5191,AGENCY STAFF
GUILDFORD BOROUGH COUNCIL,REFUSE AND RECYCLING,COMENSURA LTD,32435,16-Apr-20,2113429,122.32,0,AGENCY STAFF,OTHER RECRUITMENT AGENCIES AND SERVICE PROVIDERS,Invoice,BACS,None,12-Apr-20,2020,1,1043102,B7744,GREEN WASTE,A5191,AGENCY STAFF
GUILDFORD BOROUGH COUNCIL,STREET CLEANSING,COMENSURA LTD,32435,16-Apr-20,2113429,444.6,0,AGENCY STAFF,OTHER RECRUITMENT AGENCIES AND SERVICE PROVIDERS,Invoice,BACS,None,12-Apr-20,2020,1,1043102,K4551,STREET CLEANSING,A5191,AGENCY STAFF
GUILDFORD BOROUGH COUNCIL,REFUSE AND RECYCLING,COMENSURA LTD,32435,16-Apr-20,2113429,404.96,0,AGENCY STAFF,OTHER RECRUITMENT AGENCIES AND SERVICE PROVIDERS,Invoice,BACS,None,12-Apr-20,2020,1,1043102,B7766,KERBSIDE RECYCLING,A5191,AGENCY STAFF
GUILDFORD BOROUGH COUNCIL,STREET CLEANSING,COMENSURA LTD,32435,16-Apr-20,2113429,-1.2,0,AGENCY STAFF,OTHER RECRUITMENT AGENCIES AND SERVICE PROVIDERS,Invoice,BACS,None,12-Apr-20,2020,1,1043102,K4551,STREET CLEANSING,A5191,AGENCY STAFF
GUILDFORD BOROUGH COUNCIL,REFUSE AND RECYCLING,COMENSURA LTD,32435,16-Apr-20,2113429,677.31,0,AGENCY STAFF,OTHER RECRUITMENT AGENCIES AND SERVICE PROVIDERS,Invoice,BACS,None,12-Apr-20,2020,1,1043102,B7766,KERBSIDE RECYCLING,A5191,AGENCY STAFF
GUILDFORD BOROUGH COUNCIL,MISCELLANEOUS,CLUSKEYS CCP LTD,1160,07-Apr-20,2112276,427,0,CONSUMABLES,CLEANING AND JANITORIAL EQUIPMENT AND SUPPLIES PROVIDERS,Invoice,BACS,None,23-Mar-20,2020,1,61339,F7539,COVID19,D1587,CONSUMABLES
GUILDFORD BOROUGH COUNCIL,RESPONSIVE & PLANNED MAINTENAN,CLEARWAY ENVIRONMENTAL SERVICES (UK) LTD,44277,09-Apr-20,2112540,168,0,GLAZING; ALL TYPES,OTHER WASTE DISPOSAL SUPPLIERS,Invoice,BACS,None,29-Feb-20,2020,1,446180,M5113,REPAIRS-RESPONSIVE (BHS),B1347,GLAZING; ALL TYPES
GUILDFORD BOROUGH COUNCIL,RESPONSIVE & PLANNED MAINTENAN,CLEARWAY ENVIRONMENTAL SERVICES (UK) LTD,44277,09-Apr-20,2112539,60,0,GLAZING; ALL TYPES,OTHER WASTE DISPOSAL SUPPLIERS,Invoice,BACS,None,29-Feb-20,2020,1,446050,M5113,REPAIRS-RESPONSIVE (BHS),B1347,GLAZING; ALL TYPES
GUILDFORD BOROUGH COUNCIL,REFUSE AND RECYCLING,COMENSURA LTD,32435,02-Apr-20,2111777,417.36,0,AGENCY STAFF,OTHER RECRUITMENT AGENCIES AND SERVICE PROVIDERS,Invoice,BACS,None,29-Mar-20,2020,1,1042356,B7766,KERBSIDE RECYCLING,A5191,AGENCY STAFF
GUILDFORD BOROUGH COUNCIL,REFUSE AND RECYCLING,COMENSURA LTD,32435,16-Apr-20,2113429,198.97,0,AGENCY STAFF,OTHER RECRUITMENT AGENCIES AND SERVICE PROVIDERS,Invoice,BACS,None,12-Apr-20,2020,1,1043102,B7766,KERBSIDE RECYCLING,A5191,AGENCY STAFF
GUILDFORD BOROUGH COUNCIL,OFF STREET PARKING,COMENSURA LTD,32435,09-Apr-20,2112668,710.78,0,AGENCY STAFF,OTHER RECRUITMENT AGENCIES AND SERVICE PROVIDERS,Invoice,BACS,None,05-Apr-20,2020,1,1042760,B2111,CAR PARKS - ADMINISTRATION,A5191,AGENCY STAFF
GUILDFORD BOROUGH COUNCIL,MUSEUM,COMENSURA LTD,32435,02-Apr-20,2111777,556.46,0,AGENCY STAFF,OTHER RECRUITMENT AGENCIES AND SERVICE PROVIDERS,Invoice,BACS,None,29-Mar-20,2020,1,1042356,A5511,MUSEUM,A5191,AGENCY STAFF
GUILDFORD BOROUGH COUNCIL,REFUSE AND RECYCLING,COMENSURA LTD,32435,02-Apr-20,2111777,467.6,0,AGENCY STAFF,OTHER RECRUITMENT AGENCIES AND SERVICE PROVIDERS,Invoice,BACS,None,29-Mar-20,2020,1,1042356,B7744,GREEN WASTE,A5191,AGENCY STAFF
GUILDFORD BOROUGH COUNCIL,STREET CLEANSING,COMENSURA LTD,32435,02-Apr-20,2111777,575.19,0,AGENCY STAFF,OTHER RECRUITMENT AGENCIES AND SERVICE PROVIDERS,Invoice,BACS,None,29-Mar-20,2020,1,1042356,K4551,STREET CLEANSING,A5191,AGENCY STAFF
GUILDFORD BOROUGH COUNCIL,STREET CLEANSING,COMENSURA LTD,32435,02-Apr-20,2111777,560.18,0,AGENCY STAFF,OTHER RECRUITMENT AGENCIES AND SERVICE PROVIDERS,Invoice,BACS,None,29-Mar-20,2020,1,1042356,K4551,STREET CLEANSING,A5191,AGENCY STAFF
GUILDFORD BOROUGH COUNCIL,REFUSE AND RECYCLING,COMENSURA LTD,32435,02-Apr-20,2111777,-1.11,0,AGENCY STAFF,OTHER RECRUITMENT AGENCIES AND SERVICE PROVIDERS,Invoice,BACS,None,29-Mar-20,2020,1,1042356,B7711,RECYCLING ADMINISTRATION,A5191,AGENCY STAFF
GUILDFORD BOROUGH COUNCIL,REFUSE AND RECYCLING,COMENSURA LTD,32435,02-Apr-20,2111777,812.74,0,AGENCY STAFF,OTHER RECRUITMENT AGENCIES AND SERVICE PROVIDERS,Invoice,BACS,None,29-Mar-20,2020,1,1042356,B7766,KERBSIDE RECYCLING,A5191,AGENCY STAFF
GUILDFORD BOROUGH COUNCIL,DEVELOPMENT CONTROL,COMENSURA LTD,32435,23-Apr-20,2115248,-0.92,0,AGENCY STAFF,OTHER RECRUITMENT AGENCIES AND SERVICE PROVIDERS,Invoice,BACS,None,19-Apr-20,2020,1,1043426,D5100,DEVELOPMENT CONTROL - FEE EARN,A5191,AGENCY STAFF
GUILDFORD BOROUGH COUNCIL,REFUSE AND RECYCLING,COMENSURA LTD,32435,23-Apr-20,2115248,114.17,0,AGENCY STAFF,OTHER RECRUITMENT AGENCIES AND SERVICE PROVIDERS,Invoice,BACS,None,19-Apr-20,2020,1,1043426,K3551,REFUSE COLLECTION,A5191,AGENCY STAFF
GUILDFORD BOROUGH COUNCIL,REFUSE AND RECYCLING,COMENSURA LTD,32435,23-Apr-20,2115248,291.73,0,AGENCY STAFF,OTHER RECRUITMENT AGENCIES AND SERVICE PROVIDERS,Invoice,BACS,None,19-Apr-20,2020,1,1043426,K3551,REFUSE COLLECTION,A5191,AGENCY STAFF
GUILDFORD BOROUGH COUNCIL,REFUSE AND RECYCLING,COMENSURA LTD,32435,23-Apr-20,2115248,101.24,0,AGENCY STAFF,OTHER RECRUITMENT AGENCIES AND SERVICE PROVIDERS,Invoice,BACS,None,19-Apr-20,2020,1,1043426,B7744,GREEN WASTE,A5191,AGENCY STAFF
GUILDFORD BOROUGH COUNCIL,STREET CLEANSING,COMENSURA LTD,32435,30-Apr-20,2117163,-1.48,0,AGENCY STAFF,OTHER RECRUITMENT AGENCIES AND SERVICE PROVIDERS,Invoice,BACS,None,26-Apr-20,2020,1,1043758,K4551,STREET CLEANSING,A5191,AGENCY STAFF
GUILDFORD BOROUGH COUNCIL,MOT BAY,COMENSURA LTD,32435,23-Apr-20,2115248,723.75,0,AGENCY STAFF,OTHER RECRUITMENT AGENCIES AND SERVICE PROVIDERS,Invoice,BACS,None,19-Apr-20,2020,1,1043426,V8598,MOT STATION,A5191,AGENCY STAFF
GUILDFORD BOROUGH COUNCIL,REFUSE AND RECYCLING,COMENSURA LTD,32435,30-Apr-20,2117163,406.57,0,AGENCY STAFF,OTHER RECRUITMENT AGENCIES AND SERVICE PROVIDERS,Invoice,BACS,None,26-Apr-20,2020,1,1043758,B7744,GREEN WASTE,A5191,AGENCY STAFF
GUILDFORD BOROUGH COUNCIL,MOT BAY,COMENSURA LTD,32435,16-Apr-20,2113429,1032.09,0,AGENCY STAFF,OTHER RECRUITMENT AGENCIES AND SERVICE PROVIDERS,Invoice,BACS,None,12-Apr-20,2020,1,1043102,V8598,MOT STATION,A5191,AGENCY STAFF
GUILDFORD BOROUGH COUNCIL,STREET CLEANSING,COMENSURA LTD,32435,16-Apr-20,2113429,102.3,0,AGENCY STAFF,OTHER RECRUITMENT AGENCIES AND SERVICE PROVIDERS,Invoice,BACS,None,12-Apr-20,2020,1,1043102,K4551,STREET CLEANSING,A5191,AGENCY STAFF
GUILDFORD BOROUGH COUNCIL,DEVELOPMENT CONTROL,COMENSURA LTD,32435,16-Apr-20,2113429,404.15,0,AGENCY STAFF,OTHER RECRUITMENT AGENCIES AND SERVICE PROVIDERS,Invoice,BACS,None,12-Apr-20,2020,1,1043102,D5100,DEVELOPMENT CONTROL - FEE EARN,A5191,AGENCY STAFF
GUILDFORD BOROUGH COUNCIL,REFUSE AND RECYCLING,COMENSURA LTD,32435,16-Apr-20,2113429,673.86,0,AGENCY STAFF,OTHER RECRUITMENT AGENCIES AND SERVICE PROVIDERS,Invoice,BACS,None,12-Apr-20,2020,1,1043102,B7766,KERBSIDE RECYCLING,A5191,AGENCY STAFF
GUILDFORD BOROUGH COUNCIL,DEVELOPMENT CONTROL,COMENSURA LTD,32435,16-Apr-20,2113429,602.75,0,AGENCY STAFF,OTHER RECRUITMENT AGENCIES AND SERVICE PROVIDERS,Invoice,BACS,None,12-Apr-20,2020,1,1043102,D5100,DEVELOPMENT CONTROL - FEE EARN,A5191,AGENCY STAFF
GUILDFORD BOROUGH COUNCIL,DEVELOPMENT CONTROL,COMENSURA LTD,32435,16-Apr-20,2113429,488.72,0,AGENCY STAFF,OTHER RECRUITMENT AGENCIES AND SERVICE PROVIDERS,Invoice,BACS,None,12-Apr-20,2020,1,1043102,D5100,DEVELOPMENT CONTROL - FEE EARN,A5191,AGENCY STAFF
GUILDFORD BOROUGH COUNCIL,STREET CLEANSING,COMENSURA LTD,32435,09-Apr-20,2112668,559.08,0,AGENCY STAFF,OTHER RECRUITMENT AGENCIES AND SERVICE PROVIDERS,Invoice,BACS,None,05-Apr-20,2020,1,1042760,K4551,STREET CLEANSING,A5191,AGENCY STAFF
GUILDFORD BOROUGH COUNCIL,REFUSE AND RECYCLING,COMENSURA LTD,32435,09-Apr-20,2112668,-1.02,0,AGENCY STAFF,OTHER RECRUITMENT AGENCIES AND SERVICE PROVIDERS,Invoice,BACS,None,05-Apr-20,2020,1,1042760,K3551,REFUSE COLLECTION,A5191,AGENCY STAFF
GUILDFORD BOROUGH COUNCIL,REFUSE AND RECYCLING,COMENSURA LTD,32435,09-Apr-20,2112668,431.67,0,AGENCY STAFF,OTHER RECRUITMENT AGENCIES AND SERVICE PROVIDERS,Invoice,BACS,None,05-Apr-20,2020,1,1042760,K3551,REFUSE COLLECTION,A5191,AGENCY STAFF
GUILDFORD BOROUGH COUNCIL,MOT BAY,COMENSURA LTD,32435,09-Apr-20,2112668,839.16,0,AGENCY STAFF,OTHER RECRUITMENT AGENCIES AND SERVICE PROVIDERS,Invoice,BACS,None,05-Apr-20,2020,1,1042760,V8598,MOT STATION,A5191,AGENCY STAFF
GUILDFORD BOROUGH COUNCIL,FUTURE GUILDFORD,COMENSURA LTD,32435,30-Apr-20,2117163,272.02,0,AGENCY STAFF,OTHER RECRUITMENT AGENCIES AND SERVICE PROVIDERS,Invoice,BACS,None,26-Apr-20,2020,1,1043758,G3531,FUTURE GUILDFORD,A5191,AGENCY STAFF
GUILDFORD BOROUGH COUNCIL,REFUSE AND RECYCLING,COMENSURA LTD,32435,23-Apr-20,2115248,-1.68,0,AGENCY STAFF,OTHER RECRUITMENT AGENCIES AND SERVICE PROVIDERS,Invoice,BACS,None,19-Apr-20,2020,1,1043426,K3551,REFUSE COLLECTION,A5191,AGENCY STAFF
GUILDFORD BOROUGH COUNCIL,REFUSE AND RECYCLING,COMENSURA LTD,32435,16-Apr-20,2113429,519.2,0,AGENCY STAFF,OTHER RECRUITMENT AGENCIES AND SERVICE PROVIDERS,Invoice,BACS,None,12-Apr-20,2020,1,1043102,B7766,KERBSIDE RECYCLING,A5191,AGENCY STAFF
GUILDFORD BOROUGH COUNCIL,OFF STREET PARKING,COMENSURA LTD,32435,23-Apr-20,2115248,-1.86,0,AGENCY STAFF,OTHER RECRUITMENT AGENCIES AND SERVICE PROVIDERS,Invoice,BACS,None,19-Apr-20,2020,1,1043426,B2111,CAR PARKS - ADMINISTRATION,A5191,AGENCY STAFF
GUILDFORD BOROUGH COUNCIL,REFUSE AND RECYCLING,COMENSURA LTD,32435,23-Apr-20,2115248,-1.68,0,AGENCY STAFF,OTHER RECRUITMENT AGENCIES AND SERVICE PROVIDERS,Invoice,BACS,None,19-Apr-20,2020,1,1043426,B7744,GREEN WASTE,A5191,AGENCY STAFF
GUILDFORD BOROUGH COUNCIL,REFUSE AND RECYCLING,COMENSURA LTD,32435,23-Apr-20,2115248,764.54,0,AGENCY STAFF,OTHER RECRUITMENT AGENCIES AND SERVICE PROVIDERS,Invoice,BACS,None,19-Apr-20,2020,1,1043426,B7744,GREEN WASTE,A5191,AGENCY STAFF
GUILDFORD BOROUGH COUNCIL,REFUSE AND RECYCLING,COMENSURA LTD,32435,23-Apr-20,2115248,716.78,0,AGENCY STAFF,OTHER RECRUITMENT AGENCIES AND SERVICE PROVIDERS,Invoice,BACS,None,19-Apr-20,2020,1,1043426,K3551,REFUSE COLLECTION,A5191,AGENCY STAFF
GUILDFORD BOROUGH COUNCIL,DEVELOPMENT CONTROL,COMENSURA LTD,32435,23-Apr-20,2115248,404.15,0,AGENCY STAFF,OTHER RECRUITMENT AGENCIES AND SERVICE PROVIDERS,Invoice,BACS,None,19-Apr-20,2020,1,1043426,D5100,DEVELOPMENT CONTROL - FEE EARN,A5191,AGENCY STAFF
GUILDFORD BOROUGH COUNCIL,DEVELOPMENT CONTROL,COMENSURA LTD,32435,23-Apr-20,2115248,438.58,0,AGENCY STAFF,OTHER RECRUITMENT AGENCIES AND SERVICE PROVIDERS,Invoice,BACS,None,19-Apr-20,2020,1,1043426,D5100,DEVELOPMENT CONTROL - FEE EARN,A5191,AGENCY STAFF
GUILDFORD BOROUGH COUNCIL,MUSEUM,COMENSURA LTD,32435,23-Apr-20,2115248,705.88,0,AGENCY STAFF,OTHER RECRUITMENT AGENCIES AND SERVICE PROVIDERS,Invoice,BACS,None,19-Apr-20,2020,1,1043426,A5511,MUSEUM,A5191,AGENCY STAFF
GUILDFORD BOROUGH COUNCIL,REFUSE AND RECYCLING,COMENSURA LTD,32435,16-Apr-20,2113429,244.64,0,AGENCY STAFF,OTHER RECRUITMENT AGENCIES AND SERVICE PROVIDERS,Invoice,BACS,None,12-Apr-20,2020,1,1043102,B7744,GREEN WASTE,A5191,AGENCY STAFF
GUILDFORD BOROUGH COUNCIL,REFUSE AND RECYCLING,COMENSURA LTD,32435,16-Apr-20,2113429,481.77,0,AGENCY STAFF,OTHER RECRUITMENT AGENCIES AND SERVICE PROVIDERS,Invoice,BACS,None,12-Apr-20,2020,1,1043102,B7766,KERBSIDE RECYCLING,A5191,AGENCY STAFF
GUILDFORD BOROUGH COUNCIL,STREET CLEANSING,COMENSURA LTD,32435,16-Apr-20,2113429,-0.9,0,AGENCY STAFF,OTHER RECRUITMENT AGENCIES AND SERVICE PROVIDERS,Invoice,BACS,None,12-Apr-20,2020,1,1043102,K4551,STREET CLEANSING,A5191,AGENCY STAFF
GUILDFORD BOROUGH COUNCIL,REFUSE AND RECYCLING,COMENSURA LTD,32435,09-Apr-20,2112668,302.18,0,AGENCY STAFF,OTHER RECRUITMENT AGENCIES AND SERVICE PROVIDERS,Invoice,BACS,None,05-Apr-20,2020,1,1042760,K3551,REFUSE COLLECTION,A5191,AGENCY STAFF
GUILDFORD BOROUGH COUNCIL,REFUSE AND RECYCLING,COMENSURA LTD,32435,16-Apr-20,2113429,563.56,0,AGENCY STAFF,OTHER RECRUITMENT AGENCIES AND SERVICE PROVIDERS,Invoice,BACS,None,12-Apr-20,2020,1,1043102,B7711,RECYCLING ADMINISTRATION,A5191,AGENCY STAFF
GUILDFORD BOROUGH COUNCIL,REFUSE AND RECYCLING,COMENSURA LTD,32435,02-Apr-20,2111777,101.12,0,AGENCY STAFF,OTHER RECRUITMENT AGENCIES AND SERVICE PROVIDERS,Invoice,BACS,None,29-Mar-20,2020,1,1042356,B7766,KERBSIDE RECYCLING,A5191,AGENCY STAFF
GUILDFORD BOROUGH COUNCIL,LEGAL SERVICES,COMENSURA LTD,32435,16-Apr-20,2113429,988.68,0,AGENCY STAFF,OTHER RECRUITMENT AGENCIES AND SERVICE PROVIDERS,Invoice,BACS,None,12-Apr-20,2020,1,1043102,G4525,LEGAL SERVICES,A5191,AGENCY STAFF
GUILDFORD BOROUGH COUNCIL,REFUSE AND RECYCLING,COMENSURA LTD,32435,16-Apr-20,2113429,709.22,0,AGENCY STAFF,OTHER RECRUITMENT AGENCIES AND SERVICE PROVIDERS,Invoice,BACS,None,12-Apr-20,2020,1,1043102,B7766,KERBSIDE RECYCLING,A5191,AGENCY STAFF
GUILDFORD BOROUGH COUNCIL,REFUSE AND RECYCLING,COMENSURA LTD,32435,16-Apr-20,2113429,375.39,0,AGENCY STAFF,OTHER RECRUITMENT AGENCIES AND SERVICE PROVIDERS,Invoice,BACS,None,12-Apr-20,2020,1,1043102,B7744,GREEN WASTE,A5191,AGENCY STAFF
GUILDFORD BOROUGH COUNCIL,REFUSE AND RECYCLING,COMENSURA LTD,32435,16-Apr-20,2113429,-1,0,AGENCY STAFF,OTHER RECRUITMENT AGENCIES AND SERVICE PROVIDERS,Invoice,BACS,None,12-Apr-20,2020,1,1043102,B7766,KERBSIDE RECYCLING,A5191,AGENCY STAFF
GUILDFORD BOROUGH COUNCIL,REFUSE AND RECYCLING,COMENSURA LTD,32435,16-Apr-20,2113429,-1.02,0,AGENCY STAFF,OTHER RECRUITMENT AGENCIES AND SERVICE PROVIDERS,Invoice,BACS,None,12-Apr-20,2020,1,1043102,B7766,KERBSIDE RECYCLING,A5191,AGENCY STAFF
GUILDFORD BOROUGH COUNCIL,REFUSE AND RECYCLING,COMENSURA LTD,32435,16-Apr-20,2113429,768.92,0,AGENCY STAFF,OTHER RECRUITMENT AGENCIES AND SERVICE PROVIDERS,Invoice,BACS,None,12-Apr-20,2020,1,1043102,B7744,GREEN WASTE,A5191,AGENCY STAFF
GUILDFORD BOROUGH COUNCIL,REFUSE AND RECYCLING,COMENSURA LTD,32435,16-Apr-20,2113429,859.33,0,AGENCY STAFF,OTHER RECRUITMENT AGENCIES AND SERVICE PROVIDERS,Invoice,BACS,None,12-Apr-20,2020,1,1043102,B7766,KERBSIDE RECYCLING,A5191,AGENCY STAFF
GUILDFORD BOROUGH COUNCIL,OFF STREET PARKING,COMENSURA LTD,32435,16-Apr-20,2113429,561.9,0,AGENCY STAFF,OTHER RECRUITMENT AGENCIES AND SERVICE PROVIDERS,Invoice,BACS,None,12-Apr-20,2020,1,1043102,B2111,CAR PARKS - ADMINISTRATION,A5191,AGENCY STAFF
GUILDFORD BOROUGH COUNCIL,REFUSE AND RECYCLING,COMENSURA LTD,32435,09-Apr-20,2112668,157.2,0,AGENCY STAFF,OTHER RECRUITMENT AGENCIES AND SERVICE PROVIDERS,Invoice,BACS,None,05-Apr-20,2020,1,1042760,K3551,REFUSE COLLECTION,A5191,AGENCY STAFF
GUILDFORD BOROUGH COUNCIL,MOT BAY,COMENSURA LTD,32435,09-Apr-20,2112668,-2.3,0,AGENCY STAFF,OTHER RECRUITMENT AGENCIES AND SERVICE PROVIDERS,Invoice,BACS,None,05-Apr-20,2020,1,1042760,V8598,MOT STATION,A5191,AGENCY STAFF
GUILDFORD BOROUGH COUNCIL,PUBLIC RELATIONS,COMENSURA LTD,32435,30-Apr-20,2117163,942,0,AGENCY STAFF,OTHER RECRUITMENT AGENCIES AND SERVICE PROVIDERS,Invoice,BACS,None,26-Apr-20,2020,1,1043758,F5551,PUBLIC RELATIONS & MARKETING,A5191,AGENCY STAFF
GUILDFORD BOROUGH COUNCIL,STREET CLEANSING,COMENSURA LTD,32435,16-Apr-20,2113429,409.2,0,AGENCY STAFF,OTHER RECRUITMENT AGENCIES AND SERVICE PROVIDERS,Invoice,BACS,None,12-Apr-20,2020,1,1043102,K4551,STREET CLEANSING,A5191,AGENCY STAFF
GUILDFORD BOROUGH COUNCIL,REFUSE AND RECYCLING,COMENSURA LTD,32435,30-Apr-20,2117163,417.94,0,AGENCY STAFF,OTHER RECRUITMENT AGENCIES AND SERVICE PROVIDERS,Invoice,BACS,None,26-Apr-20,2020,1,1043758,B7766,KERBSIDE RECYCLING,A5191,AGENCY STAFF
GUILDFORD BOROUGH COUNCIL,ENVIRONMENTAL CONTROL,COMENSURA LTD,32435,02-Apr-20,2111777,-1.12,0,AGENCY STAFF,OTHER RECRUITMENT AGENCIES AND SERVICE PROVIDERS,Invoice,BACS,None,29-Mar-20,2020,1,1042356,C1113,ENVIRONMENTAL CONTROL,A5191,AGENCY STAFF
GUILDFORD BOROUGH COUNCIL,DEVELOPMENT CONTROL,COMENSURA LTD,32435,02-Apr-20,2111777,-1.11,0,AGENCY STAFF,OTHER RECRUITMENT AGENCIES AND SERVICE PROVIDERS,Invoice,BACS,None,29-Mar-20,2020,1,1042356,D5100,DEVELOPMENT CONTROL - FEE EARN,A5191,AGENCY STAFF
GUILDFORD BOROUGH COUNCIL,BUILDING CONTROL SUMMARY,COMENSURA LTD,32435,02-Apr-20,2111777,424.7,0,AGENCY STAFF,OTHER RECRUITMENT AGENCIES AND SERVICE PROVIDERS,Invoice,BACS,None,29-Mar-20,2020,1,1042356,D5700,BUILDING CONTROL - FEE,A5191,AGENCY STAFF
GUILDFORD BOROUGH COUNCIL,STREET CLEANSING,COMENSURA LTD,32435,02-Apr-20,2111777,504.68,0,AGENCY STAFF,OTHER RECRUITMENT AGENCIES AND SERVICE PROVIDERS,Invoice,BACS,None,29-Mar-20,2020,1,1042356,K4551,STREET CLEANSING,A5191,AGENCY STAFF
GUILDFORD BOROUGH COUNCIL,REFUSE AND RECYCLING,COMENSURA LTD,32435,02-Apr-20,2111777,475.18,0,AGENCY STAFF,OTHER RECRUITMENT AGENCIES AND SERVICE PROVIDERS,Invoice,BACS,None,29-Mar-20,2020,1,1042356,B7766,KERBSIDE RECYCLING,A5191,AGENCY STAFF
GUILDFORD BOROUGH COUNCIL,STREET CLEANSING,COMENSURA LTD,32435,02-Apr-20,2111777,539.46,0,AGENCY STAFF,OTHER RECRUITMENT AGENCIES AND SERVICE PROVIDERS,Invoice,BACS,None,29-Mar-20,2020,1,1042356,K4551,STREET CLEANSING,A5191,AGENCY STAFF
GUILDFORD BOROUGH COUNCIL,REFUSE AND RECYCLING,COMENSURA LTD,32435,02-Apr-20,2111777,-1.68,0,AGENCY STAFF,OTHER RECRUITMENT AGENCIES AND SERVICE PROVIDERS,Invoice,BACS,None,29-Mar-20,2020,1,1042356,B7766,KERBSIDE RECYCLING,A5191,AGENCY STAFF
GUILDFORD BOROUGH COUNCIL,REFUSE AND RECYCLING,COMENSURA LTD,32435,09-Apr-20,2112668,652.32,0,AGENCY STAFF,OTHER RECRUITMENT AGENCIES AND SERVICE PROVIDERS,Invoice,BACS,None,05-Apr-20,2020,1,1042760,K3551,REFUSE COLLECTION,A5191,AGENCY STAFF
GUILDFORD BOROUGH COUNCIL,REFUSE AND RECYCLING,COMENSURA LTD,32435,09-Apr-20,2112668,404.96,0,AGENCY STAFF,OTHER RECRUITMENT AGENCIES AND SERVICE PROVIDERS,Invoice,BACS,None,05-Apr-20,2020,1,1042760,K3551,REFUSE COLLECTION,A5191,AGENCY STAFF
GUILDFORD BOROUGH COUNCIL,REFUSE AND RECYCLING,COMENSURA LTD,32435,09-Apr-20,2112668,-1.68,0,AGENCY STAFF,OTHER RECRUITMENT AGENCIES AND SERVICE PROVIDERS,Invoice,BACS,None,05-Apr-20,2020,1,1042760,K3551,REFUSE COLLECTION,A5191,AGENCY STAFF
GUILDFORD BOROUGH COUNCIL,REFUSE AND RECYCLING,COMENSURA LTD,32435,09-Apr-20,2112668,454.67,0,AGENCY STAFF,OTHER RECRUITMENT AGENCIES AND SERVICE PROVIDERS,Invoice,BACS,None,05-Apr-20,2020,1,1042760,K3551,REFUSE COLLECTION,A5191,AGENCY STAFF
GUILDFORD BOROUGH COUNCIL,ENVIRONMENTAL CONTROL,COMENSURA LTD,32435,23-Apr-20,2115248,-0.68,0,AGENCY STAFF,OTHER RECRUITMENT AGENCIES AND SERVICE PROVIDERS,Invoice,BACS,None,19-Apr-20,2020,1,1043426,C1113,ENVIRONMENTAL CONTROL,A5191,AGENCY STAFF
GUILDFORD BOROUGH COUNCIL,REFUSE AND RECYCLING,COMENSURA LTD,32435,30-Apr-20,2117163,253.35,0,AGENCY STAFF,OTHER RECRUITMENT AGENCIES AND SERVICE PROVIDERS,Invoice,BACS,None,26-Apr-20,2020,1,1043758,B7744,GREEN WASTE,A5191,AGENCY STAFF
GUILDFORD BOROUGH COUNCIL,OFF STREET PARKING,COMENSURA LTD,32435,02-Apr-20,2111777,-2.18,0,AGENCY STAFF,OTHER RECRUITMENT AGENCIES AND SERVICE PROVIDERS,Invoice,BACS,None,29-Mar-20,2020,1,1042356,B2111,CAR PARKS - ADMINISTRATION,A5191,AGENCY STAFF
GUILDFORD BOROUGH COUNCIL,STREET CLEANSING,COMENSURA LTD,32435,30-Apr-20,2117163,-1.52,0,AGENCY STAFF,OTHER RECRUITMENT AGENCIES AND SERVICE PROVIDERS,Invoice,BACS,None,26-Apr-20,2020,1,1043758,K4551,STREET CLEANSING,A5191,AGENCY STAFF
GUILDFORD BOROUGH COUNCIL,REFUSE AND RECYCLING,COMENSURA LTD,32435,30-Apr-20,2117163,333.03,0,AGENCY STAFF,OTHER RECRUITMENT AGENCIES AND SERVICE PROVIDERS,Invoice,BACS,None,26-Apr-20,2020,1,1043758,B7766,KERBSIDE RECYCLING,A5191,AGENCY STAFF
GUILDFORD BOROUGH COUNCIL,REFUSE AND RECYCLING,COMENSURA LTD,32435,30-Apr-20,2117163,476.37,0,AGENCY STAFF,OTHER RECRUITMENT AGENCIES AND SERVICE PROVIDERS,Invoice,BACS,None,26-Apr-20,2020,1,1043758,B7766,KERBSIDE RECYCLING,A5191,AGENCY STAFF
GUILDFORD BOROUGH COUNCIL,REFUSE AND RECYCLING,COMENSURA LTD,32435,30-Apr-20,2117163,404.96,0,AGENCY STAFF,OTHER RECRUITMENT AGENCIES AND SERVICE PROVIDERS,Invoice,BACS,None,26-Apr-20,2020,1,1043758,B7766,KERBSIDE RECYCLING,A5191,AGENCY STAFF
GUILDFORD BOROUGH COUNCIL,REFUSE AND RECYCLING,COMENSURA LTD,32435,30-Apr-20,2117163,488.73,0,AGENCY STAFF,OTHER RECRUITMENT AGENCIES AND SERVICE PROVIDERS,Invoice,BACS,None,26-Apr-20,2020,1,1043758,B7766,KERBSIDE RECYCLING,A5191,AGENCY STAFF
GUILDFORD BOROUGH COUNCIL,LEGAL SERVICES,COMENSURA LTD,32435,30-Apr-20,2117163,584.22,0,AGENCY STAFF,OTHER RECRUITMENT AGENCIES AND SERVICE PROVIDERS,Invoice,BACS,None,26-Apr-20,2020,1,1043758,G4525,LEGAL SERVICES,A5191,AGENCY STAFF
GUILDFORD BOROUGH COUNCIL,DEVELOPMENT CONTROL,COMENSURA LTD,32435,30-Apr-20,2117163,-1.13,0,AGENCY STAFF,OTHER RECRUITMENT AGENCIES AND SERVICE PROVIDERS,Invoice,BACS,None,26-Apr-20,2020,1,1043758,D5100,DEVELOPMENT CONTROL - FEE EARN,A5191,AGENCY STAFF
GUILDFORD BOROUGH COUNCIL,DEVELOPMENT CONTROL,COMENSURA LTD,32435,02-Apr-20,2111777,532.06,0,AGENCY STAFF,OTHER RECRUITMENT AGENCIES AND SERVICE PROVIDERS,Invoice,BACS,None,29-Mar-20,2020,1,1042356,D5100,DEVELOPMENT CONTROL - FEE EARN,A5191,AGENCY STAFF
GUILDFORD BOROUGH COUNCIL,REFUSE AND RECYCLING,COMENSURA LTD,32435,02-Apr-20,2111777,563.88,0,AGENCY STAFF,OTHER RECRUITMENT AGENCIES AND SERVICE PROVIDERS,Invoice,BACS,None,29-Mar-20,2020,1,1042356,B7711,RECYCLING ADMINISTRATION,A5191,AGENCY STAFF
GUILDFORD BOROUGH COUNCIL,REFUSE AND RECYCLING,COMENSURA LTD,32435,02-Apr-20,2111777,631.73,0,AGENCY STAFF,OTHER RECRUITMENT AGENCIES AND SERVICE PROVIDERS,Invoice,BACS,None,29-Mar-20,2020,1,1042356,B7766,KERBSIDE RECYCLING,A5191,AGENCY STAFF
GUILDFORD BOROUGH COUNCIL,REFUSE AND RECYCLING,COMENSURA LTD,32435,09-Apr-20,2112668,515.18,0,AGENCY STAFF,OTHER RECRUITMENT AGENCIES AND SERVICE PROVIDERS,Invoice,BACS,None,05-Apr-20,2020,1,1042760,B7744,GREEN WASTE,A5191,AGENCY STAFF
GUILDFORD BOROUGH COUNCIL,DEVELOPMENT CONTROL,COMENSURA LTD,32435,09-Apr-20,2112668,602.74,0,AGENCY STAFF,OTHER RECRUITMENT AGENCIES AND SERVICE PROVIDERS,Invoice,BACS,None,05-Apr-20,2020,1,1042760,D5100,DEVELOPMENT CONTROL - FEE EARN,A5191,AGENCY STAFF
GUILDFORD BOROUGH COUNCIL,STREET CLEANSING,COMENSURA LTD,32435,16-Apr-20,2113429,454.2,0,AGENCY STAFF,OTHER RECRUITMENT AGENCIES AND SERVICE PROVIDERS,Invoice,BACS,None,12-Apr-20,2020,1,1043102,K4551,STREET CLEANSING,A5191,AGENCY STAFF
GUILDFORD BOROUGH COUNCIL,MOT BAY,COMENSURA LTD,32435,23-Apr-20,2115248,-2.02,0,AGENCY STAFF,OTHER RECRUITMENT AGENCIES AND SERVICE PROVIDERS,Invoice,BACS,None,19-Apr-20,2020,1,1043426,V8598,MOT STATION,A5191,AGENCY STAFF
GUILDFORD BOROUGH COUNCIL,REFUSE AND RECYCLING,COMENSURA LTD,32435,16-Apr-20,2113429,725.54,0,AGENCY STAFF,OTHER RECRUITMENT AGENCIES AND SERVICE PROVIDERS,Invoice,BACS,None,12-Apr-20,2020,1,1043102,B7744,GREEN WASTE,A5191,AGENCY STAFF
GUILDFORD BOROUGH COUNCIL,DEVELOPMENT CONTROL,COMENSURA LTD,32435,16-Apr-20,2113429,-0.92,0,AGENCY STAFF,OTHER RECRUITMENT AGENCIES AND SERVICE PROVIDERS,Invoice,BACS,None,12-Apr-20,2020,1,1043102,D5100,DEVELOPMENT CONTROL - FEE EARN,A5191,AGENCY STAFF
GUILDFORD BOROUGH COUNCIL,MUSEUM,COMENSURA LTD,32435,16-Apr-20,2113429,479.08,0,AGENCY STAFF,OTHER RECRUITMENT AGENCIES AND SERVICE PROVIDERS,Invoice,BACS,None,12-Apr-20,2020,1,1043102,A5511,MUSEUM,A5191,AGENCY STAFF
GUILDFORD BOROUGH COUNCIL,ENVIRONMENTAL CONTROL,COMENSURA LTD,32435,23-Apr-20,2115248,-0.63,0,AGENCY STAFF,OTHER RECRUITMENT AGENCIES AND SERVICE PROVIDERS,Invoice,BACS,None,19-Apr-20,2020,1,1043426,C1113,ENVIRONMENTAL CONTROL,A5191,AGENCY STAFF
GUILDFORD BOROUGH COUNCIL,ENVIRONMENTAL CONTROL,COMENSURA LTD,32435,23-Apr-20,2115248,351.45,0,AGENCY STAFF,OTHER RECRUITMENT AGENCIES AND SERVICE PROVIDERS,Invoice,BACS,None,19-Apr-20,2020,1,1043426,C1113,ENVIRONMENTAL CONTROL,A5191,AGENCY STAFF
GUILDFORD BOROUGH COUNCIL,CUSTOMER SERVICE CENTRE,COMENSURA LTD,32435,23-Apr-20,2115248,471.28,0,AGENCY STAFF,OTHER RECRUITMENT AGENCIES AND SERVICE PROVIDERS,Invoice,BACS,None,19-Apr-20,2020,1,1043426,G3544,CUSTOMER SERVICE CENTRE,A5191,AGENCY STAFF
GUILDFORD BOROUGH COUNCIL,REFUSE AND RECYCLING,COMENSURA LTD,32435,23-Apr-20,2115248,449.58,0,AGENCY STAFF,OTHER RECRUITMENT AGENCIES AND SERVICE PROVIDERS,Invoice,BACS,None,19-Apr-20,2020,1,1043426,B7711,RECYCLING ADMINISTRATION,A5191,AGENCY STAFF
GUILDFORD BOROUGH COUNCIL,REFUSE AND RECYCLING,COMENSURA LTD,32435,23-Apr-20,2115248,89.48,0,AGENCY STAFF,OTHER RECRUITMENT AGENCIES AND SERVICE PROVIDERS,Invoice,BACS,None,19-Apr-20,2020,1,1043426,K3551,REFUSE COLLECTION,A5191,AGENCY STAFF
GUILDFORD BOROUGH COUNCIL,STREET CLEANSING,COMENSURA LTD,32435,23-Apr-20,2115248,430.11,0,AGENCY STAFF,OTHER RECRUITMENT AGENCIES AND SERVICE PROVIDERS,Invoice,BACS,None,19-Apr-20,2020,1,1043426,K4551,STREET CLEANSING,A5191,AGENCY STAFF
GUILDFORD BOROUGH COUNCIL,MOT BAY,COMENSURA LTD,32435,09-Apr-20,2112668,793.28,0,AGENCY STAFF,OTHER RECRUITMENT AGENCIES AND SERVICE PROVIDERS,Invoice,BACS,None,05-Apr-20,2020,1,1042760,V8598,MOT STATION,A5191,AGENCY STAFF
GUILDFORD BOROUGH COUNCIL,REFUSE AND RECYCLING,COMENSURA LTD,32435,16-Apr-20,2113429,380.53,0,AGENCY STAFF,OTHER RECRUITMENT AGENCIES AND SERVICE PROVIDERS,Invoice,BACS,None,12-Apr-20,2020,1,1043102,B7766,KERBSIDE RECYCLING,A5191,AGENCY STAFF
GUILDFORD BOROUGH COUNCIL,REFUSE AND RECYCLING,COMENSURA LTD,32435,23-Apr-20,2115248,212.89,0,AGENCY STAFF,OTHER RECRUITMENT AGENCIES AND SERVICE PROVIDERS,Invoice,BACS,None,19-Apr-20,2020,1,1043426,B7744,GREEN WASTE,A5191,AGENCY STAFF
GUILDFORD BOROUGH COUNCIL,FUTURE GUILDFORD,COMENSURA LTD,32435,09-Apr-20,2112668,559.44,0,AGENCY STAFF,OTHER RECRUITMENT AGENCIES AND SERVICE PROVIDERS,Invoice,BACS,None,05-Apr-20,2020,1,1042760,G3531,FUTURE GUILDFORD,A5191,AGENCY STAFF
GUILDFORD BOROUGH COUNCIL,REFUSE AND RECYCLING,COMENSURA LTD,32435,09-Apr-20,2112668,603.45,0,AGENCY STAFF,OTHER RECRUITMENT AGENCIES AND SERVICE PROVIDERS,Invoice,BACS,None,05-Apr-20,2020,1,1042760,K3551,REFUSE COLLECTION,A5191,AGENCY STAFF
GUILDFORD BOROUGH COUNCIL,REFUSE AND RECYCLING,COMENSURA LTD,32435,09-Apr-20,2112668,253.8,0,AGENCY STAFF,OTHER RECRUITMENT AGENCIES AND SERVICE PROVIDERS,Invoice,BACS,None,05-Apr-20,2020,1,1042760,B7744,GREEN WASTE,A5191,AGENCY STAFF
GUILDFORD BOROUGH COUNCIL,STREET CLEANSING,COMENSURA LTD,32435,09-Apr-20,2112668,-1.26,0,AGENCY STAFF,OTHER RECRUITMENT AGENCIES AND SERVICE PROVIDERS,Invoice,BACS,None,05-Apr-20,2020,1,1042760,K4551,STREET CLEANSING,A5191,AGENCY STAFF
GUILDFORD BOROUGH COUNCIL,STREET CLEANSING,COMENSURA LTD,32435,09-Apr-20,2112668,518.78,0,AGENCY STAFF,OTHER RECRUITMENT AGENCIES AND SERVICE PROVIDERS,Invoice,BACS,None,05-Apr-20,2020,1,1042760,K4551,STREET CLEANSING,A5191,AGENCY STAFF
GUILDFORD BOROUGH COUNCIL,LEGAL SERVICES,COMENSURA LTD,32435,09-Apr-20,2112668,1677.76,0,AGENCY STAFF,OTHER RECRUITMENT AGENCIES AND SERVICE PROVIDERS,Invoice,BACS,None,05-Apr-20,2020,1,1042760,G4525,LEGAL SERVICES,A5191,AGENCY STAFF
GUILDFORD BOROUGH COUNCIL,REFUSE AND RECYCLING,COMENSURA LTD,32435,09-Apr-20,2112668,392.81,0,AGENCY STAFF,OTHER RECRUITMENT AGENCIES AND SERVICE PROVIDERS,Invoice,BACS,None,05-Apr-20,2020,1,1042760,B7711,RECYCLING ADMINISTRATION,A5191,AGENCY STAFF
GUILDFORD BOROUGH COUNCIL,CUSTOMER SERVICE CENTRE,COMENSURA LTD,32435,09-Apr-20,2112668,585.18,0,AGENCY STAFF,OTHER RECRUITMENT AGENCIES AND SERVICE PROVIDERS,Invoice,BACS,None,05-Apr-20,2020,1,1042760,G3544,CUSTOMER SERVICE CENTRE,A5191,AGENCY STAFF
GUILDFORD BOROUGH COUNCIL,DEVELOPMENT CONTROL,COMENSURA LTD,32435,09-Apr-20,2112668,506.9,0,AGENCY STAFF,OTHER RECRUITMENT AGENCIES AND SERVICE PROVIDERS,Invoice,BACS,None,05-Apr-20,2020,1,1042760,D5100,DEVELOPMENT CONTROL - FEE EARN,A5191,AGENCY STAFF
GUILDFORD BOROUGH COUNCIL,DEVELOPMENT CONTROL,COMENSURA LTD,32435,09-Apr-20,2112668,602.75,0,AGENCY STAFF,OTHER RECRUITMENT AGENCIES AND SERVICE PROVIDERS,Invoice,BACS,None,05-Apr-20,2020,1,1042760,D5100,DEVELOPMENT CONTROL - FEE EARN,A5191,AGENCY STAFF
GUILDFORD BOROUGH COUNCIL,HEATING,CORNERSTONE (EAST ANGLIA) LIMITED,90449,16-Apr-20,2113445,12774.35,0,CONTRACT PYTS-MAIN CONTRACTOR,INSULATION SERVICE PROVIDERS,Invoice,BACS,None,20-Mar-20,2020,1,5399,N44068,EXTERNAL WALL INSUL 2019-20,1233,CONTRACT PYTS-MAIN CONTRACTOR
GUILDFORD BOROUGH COUNCIL,FUTURE GUILDFORD,COMENSURA LTD,32435,16-Apr-20,2113429,523.51,0,AGENCY STAFF,OTHER RECRUITMENT AGENCIES AND SERVICE PROVIDERS,Invoice,BACS,None,12-Apr-20,2020,1,1043102,G3531,FUTURE GUILDFORD,A5191,AGENCY STAFF
GUILDFORD BOROUGH COUNCIL,REFUSE AND RECYCLING,COMENSURA LTD,32435,30-Apr-20,2117163,997.84,0,AGENCY STAFF,OTHER RECRUITMENT AGENCIES AND SERVICE PROVIDERS,Invoice,BACS,None,26-Apr-20,2020,1,1043758,B7744,GREEN WASTE,A5191,AGENCY STAFF
GUILDFORD BOROUGH COUNCIL,REFUSE AND RECYCLING,COMENSURA LTD,32435,09-Apr-20,2112668,347.07,0,AGENCY STAFF,OTHER RECRUITMENT AGENCIES AND SERVICE PROVIDERS,Invoice,BACS,None,05-Apr-20,2020,1,1042760,K3551,REFUSE COLLECTION,A5191,AGENCY STAFF
GUILDFORD BOROUGH COUNCIL,STREET CLEANSING,COMENSURA LTD,32435,09-Apr-20,2112668,560.18,0,AGENCY STAFF,OTHER RECRUITMENT AGENCIES AND SERVICE PROVIDERS,Invoice,BACS,None,05-Apr-20,2020,1,1042760,K4551,STREET CLEANSING,A5191,AGENCY STAFF
GUILDFORD BOROUGH COUNCIL,REFUSE AND RECYCLING,COMENSURA LTD,32435,09-Apr-20,2112668,559.91,0,AGENCY STAFF,OTHER RECRUITMENT AGENCIES AND SERVICE PROVIDERS,Invoice,BACS,None,05-Apr-20,2020,1,1042760,K3551,REFUSE COLLECTION,A5191,AGENCY STAFF
GUILDFORD BOROUGH COUNCIL,REFUSE AND RECYCLING,COMENSURA LTD,32435,09-Apr-20,2112668,-0.88,0,AGENCY STAFF,OTHER RECRUITMENT AGENCIES AND SERVICE PROVIDERS,Invoice,BACS,None,05-Apr-20,2020,1,1042760,B7711,RECYCLING ADMINISTRATION,A5191,AGENCY STAFF
GUILDFORD BOROUGH COUNCIL,REFUSE AND RECYCLING,COMENSURA LTD,32435,09-Apr-20,2112668,383.28,0,AGENCY STAFF,OTHER RECRUITMENT AGENCIES AND SERVICE PROVIDERS,Invoice,BACS,None,05-Apr-20,2020,1,1042760,B7744,GREEN WASTE,A5191,AGENCY STAFF
GUILDFORD BOROUGH COUNCIL,CUSTOMER SERVICE CENTRE,COMENSURA LTD,32435,09-Apr-20,2112668,581.25,0,AGENCY STAFF,OTHER RECRUITMENT AGENCIES AND SERVICE PROVIDERS,Invoice,BACS,None,05-Apr-20,2020,1,1042760,G3544,CUSTOMER SERVICE CENTRE,A5191,AGENCY STAFF
GUILDFORD BOROUGH COUNCIL,MOT BAY,COMENSURA LTD,32435,09-Apr-20,2112668,-2.4,0,AGENCY STAFF,OTHER RECRUITMENT AGENCIES AND SERVICE PROVIDERS,Invoice,BACS,None,05-Apr-20,2020,1,1042760,V8598,MOT STATION,A5191,AGENCY STAFF
GUILDFORD BOROUGH COUNCIL,REFUSE AND RECYCLING,COMENSURA LTD,32435,30-Apr-20,2117163,235.8,0,AGENCY STAFF,OTHER RECRUITMENT AGENCIES AND SERVICE PROVIDERS,Invoice,BACS,None,26-Apr-20,2020,1,1043758,B7744,GREEN WASTE,A5191,AGENCY STAFF
GUILDFORD BOROUGH COUNCIL,PUBLIC RELATIONS,COMENSURA LTD,32435,30-Apr-20,2117163,753.6,0,AGENCY STAFF,OTHER RECRUITMENT AGENCIES AND SERVICE PROVIDERS,Invoice,BACS,None,26-Apr-20,2020,1,1043758,F5551,PUBLIC RELATIONS & MARKETING,A5191,AGENCY STAFF
GUILDFORD BOROUGH COUNCIL,STREET CLEANSING,COMENSURA LTD,32435,30-Apr-20,2117163,1073.09,0,AGENCY STAFF,OTHER RECRUITMENT AGENCIES AND SERVICE PROVIDERS,Invoice,BACS,None,26-Apr-20,2020,1,1043758,K4551,STREET CLEANSING,A5191,AGENCY STAFF
GUILDFORD BOROUGH COUNCIL,REFUSE AND RECYCLING,COMENSURA LTD,32435,30-Apr-20,2117163,499.71,0,AGENCY STAFF,OTHER RECRUITMENT AGENCIES AND SERVICE PROVIDERS,Invoice,BACS,None,26-Apr-20,2020,1,1043758,B7766,KERBSIDE RECYCLING,A5191,AGENCY STAFF
GUILDFORD BOROUGH COUNCIL,REFUSE AND RECYCLING,COMENSURA LTD,32435,23-Apr-20,2115248,659.36,0,AGENCY STAFF,OTHER RECRUITMENT AGENCIES AND SERVICE PROVIDERS,Invoice,BACS,None,19-Apr-20,2020,1,1043426,K3551,REFUSE COLLECTION,A5191,AGENCY STAFF
GUILDFORD BOROUGH COUNCIL,REFUSE AND RECYCLING,COMENSURA LTD,32435,30-Apr-20,2117163,441.43,0,AGENCY STAFF,OTHER RECRUITMENT AGENCIES AND SERVICE PROVIDERS,Invoice,BACS,None,26-Apr-20,2020,1,1043758,B7766,KERBSIDE RECYCLING,A5191,AGENCY STAFF
GUILDFORD BOROUGH COUNCIL,REFUSE AND RECYCLING,COMENSURA LTD,32435,23-Apr-20,2115248,793.02,0,AGENCY STAFF,OTHER RECRUITMENT AGENCIES AND SERVICE PROVIDERS,Invoice,BACS,None,19-Apr-20,2020,1,1043426,K3551,REFUSE COLLECTION,A5191,AGENCY STAFF
GUILDFORD BOROUGH COUNCIL,MOT BAY,COMENSURA LTD,32435,30-Apr-20,2117163,827.69,0,AGENCY STAFF,OTHER RECRUITMENT AGENCIES AND SERVICE PROVIDERS,Invoice,BACS,None,26-Apr-20,2020,1,1043758,V8598,MOT STATION,A5191,AGENCY STAFF
GUILDFORD BOROUGH COUNCIL,OFF STREET PARKING,COMENSURA LTD,32435,30-Apr-20,2117163,749.2,0,AGENCY STAFF,OTHER RECRUITMENT AGENCIES AND SERVICE PROVIDERS,Invoice,BACS,None,26-Apr-20,2020,1,1043758,B2111,CAR PARKS - ADMINISTRATION,A5191,AGENCY STAFF
GUILDFORD BOROUGH COUNCIL,MUSEUM,COMENSURA LTD,32435,30-Apr-20,2117163,479.08,0,AGENCY STAFF,OTHER RECRUITMENT AGENCIES AND SERVICE PROVIDERS,Invoice,BACS,None,26-Apr-20,2020,1,1043758,A5511,MUSEUM,A5191,AGENCY STAFF
GUILDFORD BOROUGH COUNCIL,DEVELOPMENT CONTROL,COMENSURA LTD,32435,30-Apr-20,2117163,602.75,0,AGENCY STAFF,OTHER RECRUITMENT AGENCIES AND SERVICE PROVIDERS,Invoice,BACS,None,26-Apr-20,2020,1,1043758,D5100,DEVELOPMENT CONTROL - FEE EARN,A5191,AGENCY STAFF
GUILDFORD BOROUGH COUNCIL,MUSEUM,COMENSURA LTD,32435,02-Apr-20,2111777,675.84,0,AGENCY STAFF,OTHER RECRUITMENT AGENCIES AND SERVICE PROVIDERS,Invoice,BACS,None,29-Mar-20,2020,1,1042356,A5511,MUSEUM,A5191,AGENCY STAFF
GUILDFORD BOROUGH COUNCIL,REFUSE AND RECYCLING,COMENSURA LTD,32435,02-Apr-20,2111777,499.71,0,AGENCY STAFF,OTHER RECRUITMENT AGENCIES AND SERVICE PROVIDERS,Invoice,BACS,None,29-Mar-20,2020,1,1042356,B7766,KERBSIDE RECYCLING,A5191,AGENCY STAFF
GUILDFORD BOROUGH COUNCIL,STREET CLEANSING,COMENSURA LTD,32435,02-Apr-20,2111777,-1.53,0,AGENCY STAFF,OTHER RECRUITMENT AGENCIES AND SERVICE PROVIDERS,Invoice,BACS,None,29-Mar-20,2020,1,1042356,K4551,STREET CLEANSING,A5191,AGENCY STAFF
GUILDFORD BOROUGH COUNCIL,REFUSE AND RECYCLING,COMENSURA LTD,32435,02-Apr-20,2111777,398.47,0,AGENCY STAFF,OTHER RECRUITMENT AGENCIES AND SERVICE PROVIDERS,Invoice,BACS,None,29-Mar-20,2020,1,1042356,B7766,KERBSIDE RECYCLING,A5191,AGENCY STAFF
GUILDFORD BOROUGH COUNCIL,DEVELOPMENT CONTROL,COMENSURA LTD,32435,02-Apr-20,2111777,602.75,0,AGENCY STAFF,OTHER RECRUITMENT AGENCIES AND SERVICE PROVIDERS,Invoice,BACS,None,29-Mar-20,2020,1,1042356,D5100,DEVELOPMENT CONTROL - FEE EARN,A5191,AGENCY STAFF
GUILDFORD BOROUGH COUNCIL,ENVIRONMENTAL CONTROL,COMENSURA LTD,32435,23-Apr-20,2115248,588.88,0,AGENCY STAFF,OTHER RECRUITMENT AGENCIES AND SERVICE PROVIDERS,Invoice,BACS,None,19-Apr-20,2020,1,1043426,C1113,ENVIRONMENTAL CONTROL,A5191,AGENCY STAFF
GUILDFORD BOROUGH COUNCIL,DEVELOPMENT CONTROL,COMENSURA LTD,32435,30-Apr-20,2117163,542.82,0,AGENCY STAFF,OTHER RECRUITMENT AGENCIES AND SERVICE PROVIDERS,Invoice,BACS,None,26-Apr-20,2020,1,1043758,D5100,DEVELOPMENT CONTROL - FEE EARN,A5191,AGENCY STAFF
GUILDFORD BOROUGH COUNCIL,REFUSE AND RECYCLING,COMENSURA LTD,32435,30-Apr-20,2117163,504.68,0,AGENCY STAFF,OTHER RECRUITMENT AGENCIES AND SERVICE PROVIDERS,Invoice,BACS,None,26-Apr-20,2020,1,1043758,B7711,RECYCLING ADMINISTRATION,A5191,AGENCY STAFF
GUILDFORD BOROUGH COUNCIL,HOMELESSNESS,REDACTED,0,07-Apr-20,2111193,200,0,ACCOMMODATION: EMERGENCY B&B,OTHER CONSTRUCTION CONTRACTORS,Invoice,BACS,None,26-Feb-20,2020,1,REDACTED,C3316,EMERGENCY ACCOMMODATION,D4401,ACCOMMODATION: EMERGENCY B&B
GUILDFORD BOROUGH COUNCIL,SUPPORTED HOUSING MANAGEMENT,F & G CLEANERS LTD,95908,20-Apr-20,2114120,6,0,WINDOW CLEANING,OTHER CLEANING AND JANITORIAL SERVICE PROVIDERS,Invoice,BACS,None,17-Mar-20,2020,1,57517,M3692,SUPPORTED HSG-79 YORK RD (SHS),B6286,WINDOW CLEANING
GUILDFORD BOROUGH COUNCIL,FLATS COMMUNAL SERVICES,F & G CLEANERS LTD,95908,30-Apr-20,2116965,130,0,R&M - GENERAL,OTHER CLEANING AND JANITORIAL SERVICE PROVIDERS,Invoice,BACS,None,10-Mar-20,2020,1,57513,M2651,BROOMFIELD 81-95 ODD (8),B1231,R&M - GENERAL
GUILDFORD BOROUGH COUNCIL,FLATS COMMUNAL SERVICES,F & G CLEANERS LTD,95908,30-Apr-20,2116965,130,0,R&M - GENERAL,OTHER CLEANING AND JANITORIAL SERVICE PROVIDERS,Invoice,BACS,None,10-Mar-20,2020,1,57513,M2654,CABELL RD 133-147 ODD (8),B1231,R&M - GENERAL
GUILDFORD BOROUGH COUNCIL,INCOME COLLECTION,EE LIMITED,85364,02-Apr-20,2109808,11.25,0,TELECOMMS; MOBILE PHONES,MOBILE COMMUNICATIONS SERVICE PROVIDERS,Invoice,BACS,None,03-Feb-20,2020,1,01285485538,M1121,INCOME COLLECTION (BHS),D5487,TELECOMMS; MOBILE PHONES
GUILDFORD BOROUGH COUNCIL,FLATS COMMUNAL SERVICES,F & G CLEANERS LTD,95908,30-Apr-20,2116965,130,0,R&M - GENERAL,OTHER CLEANING AND JANITORIAL SERVICE PROVIDERS,Invoice,BACS,None,10-Mar-20,2020,1,57513,M2779,LITTLE PLATT 22-36  (8),B1231,R&M - GENERAL
GUILDFORD BOROUGH COUNCIL,FLATS COMMUNAL SERVICES,F & G CLEANERS LTD,95908,30-Apr-20,2116965,130,0,R&M - GENERAL,OTHER CLEANING AND JANITORIAL SERVICE PROVIDERS,Invoice,BACS,None,10-Mar-20,2020,1,57513,M2908,STONEY BROOK 5-19(8),B1231,R&M - GENERAL
GUILDFORD BOROUGH COUNCIL,INDUSTRIAL ESTATES,EE LIMITED,85364,02-Apr-20,2111774,1136.69,0,TELECOMMS; MOBILE PHONES,MOBILE COMMUNICATIONS SERVICE PROVIDERS,Invoice,BACS,None,03-Mar-20,2020,1,01285522318,B5311,INDUSTRIAL ESTATES ADMIN.,D5487,TELECOMMS; MOBILE PHONES
GUILDFORD BOROUGH COUNCIL,LICENSING SERVICES,EE LIMITED,85364,02-Apr-20,2109808,22.5,0,TELECOMMS; MOBILE PHONES,MOBILE COMMUNICATIONS SERVICE PROVIDERS,Invoice,BACS,None,03-Feb-20,2020,1,01285485538,H2100,LICENSING SERVICES,D5487,TELECOMMS; MOBILE PHONES
GUILDFORD BOROUGH COUNCIL,HOMELESSNESS,REDACTED,0,07-Apr-20,2111194,400,0,ACCOMMODATION: EMERGENCY B&B,OTHER CONSTRUCTION CONTRACTORS,Invoice,BACS,None,26-Feb-20,2020,1,REDACTED,C3316,EMERGENCY ACCOMMODATION,D4401,ACCOMMODATION: EMERGENCY B&B
GUILDFORD BOROUGH COUNCIL,BUSINESS RATES,EE LIMITED,85364,02-Apr-20,2109808,22.5,0,TELECOMMS; MOBILE PHONES,MOBILE COMMUNICATIONS SERVICE PROVIDERS,Invoice,BACS,None,03-Feb-20,2020,1,01285485538,F6151,BUSINESS RATES COLLECTION EXPS,D5487,TELECOMMS; MOBILE PHONES
GUILDFORD BOROUGH COUNCIL,HEATING,EUROPEAN ASBESTOS SERVICES LIMITED,91991,16-Apr-20,2113377,85,0,CONTRACT PYTS-MAIN CONTRACTOR,ASBESTOS REMOVAL SERVICE PROVIDERS,Invoice,BACS,None,26-Mar-20,2020,1,ISS24930,N44069,CENTRAL HEATING/BOILER 2019-20,1233,CONTRACT PYTS-MAIN CONTRACTOR
GUILDFORD BOROUGH COUNCIL,HEATING,EUROPEAN ASBESTOS SERVICES LIMITED,91991,30-Apr-20,2117035,85,0,CONTRACT PYTS-MAIN CONTRACTOR,ASBESTOS REMOVAL SERVICE PROVIDERS,Invoice,BACS,None,20-Mar-20,2020,1,ISS24802,N44069,CENTRAL HEATING/BOILER 2019-20,1233,CONTRACT PYTS-MAIN CONTRACTOR
GUILDFORD BOROUGH COUNCIL,RESPONSIVE & PLANNED MAINTENAN,EUROPEAN ASBESTOS SERVICES LIMITED,91991,09-Apr-20,2112792,85,0,MAIN CONTRACTORS PAYMENTS,ASBESTOS REMOVAL SERVICE PROVIDERS,Invoice,BACS,None,28-Feb-20,2020,1,ISS24536,M5113,REPAIRS-RESPONSIVE (BHS),B8921,MAIN CONTRACTORS PAYMENTS
GUILDFORD BOROUGH COUNCIL,HEATING,EUROPEAN ASBESTOS SERVICES LIMITED,91991,30-Apr-20,2117034,85,0,CONTRACT PYTS-MAIN CONTRACTOR,ASBESTOS REMOVAL SERVICE PROVIDERS,Invoice,BACS,None,15-Apr-20,2020,1,ISS24803,N44069,CENTRAL HEATING/BOILER 2019-20,1233,CONTRACT PYTS-MAIN CONTRACTOR
GUILDFORD BOROUGH COUNCIL,INFORMATION RIGHTS OFFICER,FIVIUM LIMITED,87877,09-Apr-20,2112522,900,0,COMPUTER SOFTWARE LICENCE COST,SOFTWARE AS A SERVICE PROVIDERS,Invoice,BACS,None,01-Feb-20,2020,1,INV-1698,G4520,INFORMATION GOVERNANCE SERVICE,D5445,COMPUTER SOFTWARE LICENCE COST
GUILDFORD BOROUGH COUNCIL,HEATING,EUROPEAN ASBESTOS SERVICES LIMITED,91991,20-Apr-20,2114117,85,0,CONTRACT PYTS-MAIN CONTRACTOR,ASBESTOS REMOVAL SERVICE PROVIDERS,Invoice,BACS,None,27-Mar-20,2020,1,ISS24941,N44069,CENTRAL HEATING/BOILER 2019-20,1233,CONTRACT PYTS-MAIN CONTRACTOR
GUILDFORD BOROUGH COUNCIL,INFORMATION RIGHTS OFFICER,FIVIUM LIMITED,87877,09-Apr-20,2112521,900,0,COMPUTER SOFTWARE LICENCE COST,SOFTWARE AS A SERVICE PROVIDERS,Invoice,BACS,None,31-Mar-20,2020,1,INV-1786,G4520,INFORMATION GOVERNANCE SERVICE,D5445,COMPUTER SOFTWARE LICENCE COST
GUILDFORD BOROUGH COUNCIL,RESPONSIVE & PLANNED MAINTENAN,EUROPEAN ASBESTOS SERVICES LIMITED,91991,20-Apr-20,2114116,320,0,MAIN CONTRACTORS PAYMENTS,ASBESTOS REMOVAL SERVICE PROVIDERS,Invoice,BACS,None,30-Mar-20,2020,1,IA24947,M5113,REPAIRS-RESPONSIVE (BHS),B8921,MAIN CONTRACTORS PAYMENTS
GUILDFORD BOROUGH COUNCIL,FLATS COMMUNAL SERVICES,F & G CLEANERS LTD,95908,20-Apr-20,2114120,12,0,WINDOW CLEANING,OTHER CLEANING AND JANITORIAL SERVICE PROVIDERS,Invoice,BACS,None,17-Mar-20,2020,1,57517,M2611,FLATS SERVICES GENERAL (BHS),B6286,WINDOW CLEANING
GUILDFORD BOROUGH COUNCIL,SUPPORTED HOUSING MANAGEMENT,F & G CLEANERS LTD,95908,20-Apr-20,2114120,70,0,WINDOW CLEANING,OTHER CLEANING AND JANITORIAL SERVICE PROVIDERS,Invoice,BACS,None,17-Mar-20,2020,1,57517,M3691,SUPP HSG-WILLIAM SWAYNE (SHS),B6286,WINDOW CLEANING
GUILDFORD BOROUGH COUNCIL,COUNCIL & COMMITTEE SUPPORT,EE LIMITED,85364,02-Apr-20,2111774,11.25,0,TELECOMMS; MOBILE PHONES,MOBILE COMMUNICATIONS SERVICE PROVIDERS,Invoice,BACS,None,03-Mar-20,2020,1,01285522318,F1320,OVERVIEW AND SCRUTINY COMMITTE,D5487,TELECOMMS; MOBILE PHONES
GUILDFORD BOROUGH COUNCIL,PRIVATE SECTOR HOUSING,EE LIMITED,85364,02-Apr-20,2111774,11.25,0,TELECOMMS; MOBILE PHONES,MOBILE COMMUNICATIONS SERVICE PROVIDERS,Invoice,BACS,None,03-Mar-20,2020,1,01285522318,C5136,HANDYPERSON SERVICE,D5487,TELECOMMS; MOBILE PHONES
GUILDFORD BOROUGH COUNCIL,OFF STREET PARKING,ETHOS VO LIMITED,92339,23-Apr-20,2114042,34100.73,0,COMPUTER SOFTWARE DEVELOPMENT,OTHER BUSINESS AND MANAGEMENT CONSULTANTS,Invoice,BACS,None,23-Mar-20,2020,1,INV000888,B2216,GENERAL UPKEEP- URBAN CAR PKS,D5442,COMPUTER SOFTWARE DEVELOPMENT
GUILDFORD BOROUGH COUNCIL,ON STREET PARKING,ETHOS VO LIMITED,92339,28-Apr-20,2106726,18547.51,0,COMPUTER SOFTWARE DEVELOPMENT,OTHER BUSINESS AND MANAGEMENT CONSULTANTS,Invoice,BACS,None,06-Dec-19,2020,1,INV000888,B2217,GUILDFORD ON-STREET,D5442,COMPUTER SOFTWARE DEVELOPMENT
GUILDFORD BOROUGH COUNCIL,COMMUNITY DEVELOPMENT,EE LIMITED,85364,02-Apr-20,2111774,11.25,0,TELECOMMS; MOBILE PHONES,MOBILE COMMUNICATIONS SERVICE PROVIDERS,Invoice,BACS,None,03-Mar-20,2020,1,01285522318,F5724,SAFER GUILDFORD PARTNERSHIP,D5487,TELECOMMS; MOBILE PHONES
GUILDFORD BOROUGH COUNCIL,INDUSTRIAL ESTATES,EE LIMITED,85364,02-Apr-20,2109808,1135.54,0,TELECOMMS; MOBILE PHONES,MOBILE COMMUNICATIONS SERVICE PROVIDERS,Invoice,BACS,None,03-Feb-20,2020,1,01285485538,B5311,INDUSTRIAL ESTATES ADMIN.,D5487,TELECOMMS; MOBILE PHONES
GUILDFORD BOROUGH COUNCIL,OFF STREET PARKING,ETHOS VO LIMITED,92339,23-Apr-20,2115210,-18547.51,0,COMPUTER SOFTWARE DEVELOPMENT,OTHER BUSINESS AND MANAGEMENT CONSULTANTS,Credit Note,,None,06-Dec-19,2020,1,SCN000924,B2216,GENERAL UPKEEP- URBAN CAR PKS,D5442,COMPUTER SOFTWARE DEVELOPMENT
GUILDFORD BOROUGH COUNCIL,PRIVATE SECTOR HOUSING,EE LIMITED,85364,02-Apr-20,2109808,11.25,0,TELECOMMS; MOBILE PHONES,MOBILE COMMUNICATIONS SERVICE PROVIDERS,Invoice,BACS,None,03-Feb-20,2020,1,01285485538,C5136,HANDYPERSON SERVICE,D5487,TELECOMMS; MOBILE PHONES
GUILDFORD BOROUGH COUNCIL,TENANT SELECTION,EE LIMITED,85364,02-Apr-20,2109808,42.25,0,TELECOMMS; MOBILE PHONES,MOBILE COMMUNICATIONS SERVICE PROVIDERS,Invoice,BACS,None,03-Feb-20,2020,1,01285485538,M1131,"ADVICE,REGS,TENANT SELECT(SHS)",D5487,TELECOMMS; MOBILE PHONES
GUILDFORD BOROUGH COUNCIL,REFUSE AND RECYCLING,EE LIMITED,85364,02-Apr-20,2111774,109.75,0,TELECOMMS; MOBILE PHONES,MOBILE COMMUNICATIONS SERVICE PROVIDERS,Invoice,BACS,None,03-Mar-20,2020,1,01285522318,B7766,KERBSIDE RECYCLING,D5487,TELECOMMS; MOBILE PHONES
GUILDFORD BOROUGH COUNCIL,CEMETERIES,EE LIMITED,85364,02-Apr-20,2109808,33.75,0,TELECOMMS; MOBILE PHONES,MOBILE COMMUNICATIONS SERVICE PROVIDERS,Invoice,BACS,None,03-Feb-20,2020,1,01285485538,A1430,STOKE CEMETERY,D5487,TELECOMMS; MOBILE PHONES
GUILDFORD BOROUGH COUNCIL,PROPERTY,ETON ENVIRONMENTAL GROUP LTD,81520,30-Apr-20,2115359,1500,0,CONTRACT PYTS-MINOR CONTRACTOR,ASBESTOS REMOVAL SERVICE PROVIDERS,Invoice,BACS,None,31-Mar-20,2020,1,33983,P74073,FOXENDEN TUNNELS SAFETY WORKS,1234,CONTRACT PYTS-MINOR CONTRACTOR
GUILDFORD BOROUGH COUNCIL,FLATS COMMUNAL SERVICES,F & G CLEANERS LTD,95908,30-Apr-20,2116965,130,0,R&M - GENERAL,OTHER CLEANING AND JANITORIAL SERVICE PROVIDERS,Invoice,BACS,None,10-Mar-20,2020,1,57513,M2650,BROOMFIELD 22-36 EVEN (8),B1231,R&M - GENERAL
GUILDFORD BOROUGH COUNCIL,REFUSE AND RECYCLING,EE LIMITED,85364,02-Apr-20,2109808,19.88,0,TELECOMMS; MOBILE PHONES,MOBILE COMMUNICATIONS SERVICE PROVIDERS,Invoice,BACS,None,03-Feb-20,2020,1,01285485538,B7744,GREEN WASTE,D5487,TELECOMMS; MOBILE PHONES
GUILDFORD BOROUGH COUNCIL,STREET CLEANSING,EE LIMITED,85364,02-Apr-20,2109808,11.25,0,TELECOMMS; MOBILE PHONES,MOBILE COMMUNICATIONS SERVICE PROVIDERS,Invoice,BACS,None,03-Feb-20,2020,1,01285485538,B8512,ENVIRONMENTAL AND DOG CONTROL,D5487,TELECOMMS; MOBILE PHONES
GUILDFORD BOROUGH COUNCIL,COMMUNITY DEVELOPMENT,EE LIMITED,85364,02-Apr-20,2109808,11.25,0,TELECOMMS; MOBILE PHONES,MOBILE COMMUNICATIONS SERVICE PROVIDERS,Invoice,BACS,None,03-Feb-20,2020,1,01285485538,F5724,SAFER GUILDFORD PARTNERSHIP,D5487,TELECOMMS; MOBILE PHONES
GUILDFORD BOROUGH COUNCIL,STREET CLEANSING,EE LIMITED,85364,02-Apr-20,2111774,697.5,0,TELECOMMS; MOBILE PHONES,MOBILE COMMUNICATIONS SERVICE PROVIDERS,Invoice,BACS,None,03-Mar-20,2020,1,01285522318,K4551,STREET CLEANSING,D5487,TELECOMMS; MOBILE PHONES
GUILDFORD BOROUGH COUNCIL,OPERATIONS TECHNICAL SERVICES,EE LIMITED,85364,02-Apr-20,2109808,33.75,0,TELECOMMS; MOBILE PHONES,MOBILE COMMUNICATIONS SERVICE PROVIDERS,Invoice,BACS,None,03-Feb-20,2020,1,01285485538,G3546,ICT SERVICE DESK,D5487,TELECOMMS; MOBILE PHONES
GUILDFORD BOROUGH COUNCIL,SURREY FAMILY SUPPORT PROG,EE LIMITED,85364,02-Apr-20,2109808,166,0,TELECOMMS; MOBILE PHONES,MOBILE COMMUNICATIONS SERVICE PROVIDERS,Invoice,BACS,None,03-Feb-20,2020,1,01285485538,C3320,SURREY FAMILY SUPPORT PROG,D5487,TELECOMMS; MOBILE PHONES
GUILDFORD BOROUGH COUNCIL,TENANTS' SERVICES,EE LIMITED,85364,02-Apr-20,2109808,225.25,0,TELECOMMS; MOBILE PHONES,MOBILE COMMUNICATIONS SERVICE PROVIDERS,Invoice,BACS,None,03-Feb-20,2020,1,01285485538,M1151,TENANTS SERVICES (BHS),D5487,TELECOMMS; MOBILE PHONES
GUILDFORD BOROUGH COUNCIL,OFF STREET PARKING,EE LIMITED,85364,02-Apr-20,2111774,258.88,0,TELECOMMS; MOBILE PHONES,MOBILE COMMUNICATIONS SERVICE PROVIDERS,Invoice,BACS,None,03-Mar-20,2020,1,01285522318,B2111,CAR PARKS - ADMINISTRATION,D5487,TELECOMMS; MOBILE PHONES
GUILDFORD BOROUGH COUNCIL,OPERATIONS TECHNICAL SERVICES,EE LIMITED,85364,02-Apr-20,2111774,144.79,0,TELECOMMS; MOBILE PHONES,MOBILE COMMUNICATIONS SERVICE PROVIDERS,Invoice,BACS,None,03-Mar-20,2020,1,01285522318,G3546,ICT SERVICE DESK,D5487,TELECOMMS; MOBILE PHONES
GUILDFORD BOROUGH COUNCIL,LEISURE RANGERS,EE LIMITED,85364,02-Apr-20,2111774,67.63,0,TELECOMMS; MOBILE PHONES,MOBILE COMMUNICATIONS SERVICE PROVIDERS,Invoice,BACS,None,03-Mar-20,2020,1,01285522318,A1700,PARKS RANGER SERVICE,D5487,TELECOMMS; MOBILE PHONES
GUILDFORD BOROUGH COUNCIL,ON STREET PARKING,FLOWBIRD SMART CITY UK LIMITED,68667,30-Apr-20,2115847,590,0,PAY & DISPLAY MACHINERY MTCE,PARKING MANAGEMENT PROVIDERS,Invoice,BACS,None,15-Apr-20,2020,1,UK127299,B2217,GUILDFORD ON-STREET,D1479,PAY & DISPLAY MACHINERY MTCE
GUILDFORD BOROUGH COUNCIL,RESPONSIVE & PLANNED MAINTENAN,EUROPEAN ASBESTOS SERVICES LIMITED,91991,20-Apr-20,2114118,132,0,MAIN CONTRACTORS PAYMENTS,ASBESTOS REMOVAL SERVICE PROVIDERS,Invoice,BACS,None,27-Mar-20,2020,1,ISS24940,M5113,REPAIRS-RESPONSIVE (BHS),B8921,MAIN CONTRACTORS PAYMENTS
GUILDFORD BOROUGH COUNCIL,HEATING,EUROPEAN ASBESTOS SERVICES LIMITED,91991,20-Apr-20,2114115,85,0,CONTRACT PYTS-MAIN CONTRACTOR,ASBESTOS REMOVAL SERVICE PROVIDERS,Invoice,BACS,None,26-Mar-20,2020,1,ISS24928,N44069,CENTRAL HEATING/BOILER 2019-20,1233,CONTRACT PYTS-MAIN CONTRACTOR
GUILDFORD BOROUGH COUNCIL,HEATING,EUROPEAN ASBESTOS SERVICES LIMITED,91991,30-Apr-20,2117033,85,0,CONTRACT PYTS-MAIN CONTRACTOR,ASBESTOS REMOVAL SERVICE PROVIDERS,Invoice,BACS,None,20-Mar-20,2020,1,ISS24798,N44069,CENTRAL HEATING/BOILER 2019-20,1233,CONTRACT PYTS-MAIN CONTRACTOR
GUILDFORD BOROUGH COUNCIL,RESPONSIVE & PLANNED MAINTENAN,EUROPEAN ASBESTOS SERVICES LIMITED,91991,30-Apr-20,2117036,69,0,MAIN CONTRACTORS PAYMENTS,ASBESTOS REMOVAL SERVICE PROVIDERS,Invoice,BACS,None,20-Mar-20,2020,1,ISS24801,M5113,REPAIRS-RESPONSIVE (BHS),B8921,MAIN CONTRACTORS PAYMENTS
GUILDFORD BOROUGH COUNCIL,ON STREET PARKING,EE LIMITED,85364,02-Apr-20,2111774,42.25,0,TELECOMMS; MOBILE PHONES,MOBILE COMMUNICATIONS SERVICE PROVIDERS,Invoice,BACS,None,03-Mar-20,2020,1,01285522318,B2215,WAVERLEY ON-STREET,D5487,TELECOMMS; MOBILE PHONES
GUILDFORD BOROUGH COUNCIL,BUSINESS & TOURISM,EE LIMITED,85364,02-Apr-20,2109808,17,0,TELECOMMS; MOBILE PHONES,MOBILE COMMUNICATIONS SERVICE PROVIDERS,Invoice,BACS,None,03-Feb-20,2020,1,01285485538,F5547,BUSINESS,D5487,TELECOMMS; MOBILE PHONES
GUILDFORD BOROUGH COUNCIL,OPERATIONS TECHNICAL SERVICES,EE LIMITED,85364,02-Apr-20,2109808,112.5,0,TELECOMMS; MOBILE PHONES,MOBILE COMMUNICATIONS SERVICE PROVIDERS,Invoice,BACS,None,03-Feb-20,2020,1,01285485538,G3548,ICT TECHNICAL & INFRASTRUCTURE,D5487,TELECOMMS; MOBILE PHONES
GUILDFORD BOROUGH COUNCIL,MUSEUM,EXCEL FACILITIES & MAINTENANCE UK LTD,95811,28-Apr-20,2115258,863.86,0,PS - R&M PLANNED WORKS,ELECTRICAL ENGINEERS,Invoice,BACS,None,09-Apr-20,2020,1,1124,A5561,CASTLE STREET 39.5 (SALTERS),B1610,PS - R&M PLANNED WORKS
GUILDFORD BOROUGH COUNCIL,MUSEUM,EXCEL FACILITIES & MAINTENANCE UK LTD,95811,28-Apr-20,2115258,10974,0,PS - R&M PLANNED WORKS,ELECTRICAL ENGINEERS,Invoice,BACS,None,09-Apr-20,2020,1,1124,A5561,CASTLE STREET 39.5 (SALTERS),B1610,PS - R&M PLANNED WORKS
GUILDFORD BOROUGH COUNCIL,PRIVATE SECTOR HOUSING,EE LIMITED,85364,02-Apr-20,2109808,109.75,0,TELECOMMS; MOBILE PHONES,MOBILE COMMUNICATIONS SERVICE PROVIDERS,Invoice,BACS,None,03-Feb-20,2020,1,01285485538,C5122,PRIVATE SECTOR HOUSING STANDAR,D5487,TELECOMMS; MOBILE PHONES
GUILDFORD BOROUGH COUNCIL,OPERATIONS TECHNICAL SERVICES,EE LIMITED,85364,02-Apr-20,2109808,104.25,0,TELECOMMS; MOBILE PHONES,MOBILE COMMUNICATIONS SERVICE PROVIDERS,Invoice,BACS,None,03-Feb-20,2020,1,01285485538,G3546,ICT SERVICE DESK,D5487,TELECOMMS; MOBILE PHONES
GUILDFORD BOROUGH COUNCIL,CORPORATE PROPERTY SERVICES,EXCITECH  LIMITED,1958,30-Apr-20,2116839,6855,0,COMPUTER SOFTWARE LICENCE COST,COMPUTER SYSTEMS INTEGRATORS,Invoice,BACS,None,17-Apr-20,2020,1,47718,G4575,CORPORATE PROPERTY SERVICES,D5445,COMPUTER SOFTWARE LICENCE COST
GUILDFORD BOROUGH COUNCIL,CORPORATE PROPERTY SERVICES,EXCITECH  LIMITED,1958,23-Apr-20,2115280,740,0,COMPUTER SOFTWARE LICENCE COST,COMPUTER SYSTEMS INTEGRATORS,Invoice,BACS,None,08-Apr-20,2020,1,47587,G4575,CORPORATE PROPERTY SERVICES,D5445,COMPUTER SOFTWARE LICENCE COST
GUILDFORD BOROUGH COUNCIL,DEVELOPMENT CONTROL,EE LIMITED,85364,02-Apr-20,2109808,87.25,0,TELECOMMS; MOBILE PHONES,MOBILE COMMUNICATIONS SERVICE PROVIDERS,Invoice,BACS,None,03-Feb-20,2020,1,01285485538,D5100,DEVELOPMENT CONTROL - FEE EARN,D5487,TELECOMMS; MOBILE PHONES
GUILDFORD BOROUGH COUNCIL,OFFICE SERVICES TEAM,EE LIMITED,85364,02-Apr-20,2111774,63.97,0,TELECOMMS; MOBILE PHONES,MOBILE COMMUNICATIONS SERVICE PROVIDERS,Invoice,BACS,None,03-Mar-20,2020,1,01285522318,G4585,OFFICE SERVICES,D5487,TELECOMMS; MOBILE PHONES
GUILDFORD BOROUGH COUNCIL,HOUSING SURVEYING SERVICES,EE LIMITED,85364,02-Apr-20,2109808,180,0,TELECOMMS; MOBILE PHONES,MOBILE COMMUNICATIONS SERVICE PROVIDERS,Invoice,BACS,None,03-Feb-20,2020,1,01285485538,G6525,HOUSING SURVEYING SERVICES,D5487,TELECOMMS; MOBILE PHONES
GUILDFORD BOROUGH COUNCIL,OTHER ST DEBTORS,REDACTED,0,21-Apr-20,2112073,3000,0,CASH PAID,PROPERTY LETTING AND ESTATE AGENTS,Invoice,BACS,None,25-Mar-20,2020,1,REDACTED,J01064,HOUSING H4U SCHEME,2175,CASH PAID
GUILDFORD BOROUGH COUNCIL,ACCOUNTANCY,EE LIMITED,85364,02-Apr-20,2109808,22.5,0,TELECOMMS; MOBILE PHONES,MOBILE COMMUNICATIONS SERVICE PROVIDERS,Invoice,BACS,None,03-Feb-20,2020,1,01285485538,G3565,ACCOUNTANCY SERVICES,D5487,TELECOMMS; MOBILE PHONES
GUILDFORD BOROUGH COUNCIL,FOOD AND SAFETY SERVICES,EE LIMITED,85364,02-Apr-20,2111774,45,0,TELECOMMS; MOBILE PHONES,MOBILE COMMUNICATIONS SERVICE PROVIDERS,Invoice,BACS,None,03-Mar-20,2020,1,01285522318,C1111,FOOD AND SAFETY SERVICES,D5487,TELECOMMS; MOBILE PHONES
GUILDFORD BOROUGH COUNCIL,CORPORATE PROPERTY SERVICES,EE LIMITED,85364,02-Apr-20,2111774,45,0,TELECOMMS; MOBILE PHONES,MOBILE COMMUNICATIONS SERVICE PROVIDERS,Invoice,BACS,None,03-Mar-20,2020,1,01285522318,G4575,CORPORATE PROPERTY SERVICES,D5487,TELECOMMS; MOBILE PHONES
GUILDFORD BOROUGH COUNCIL,SHELTERED HOUSING,EE LIMITED,85364,02-Apr-20,2111774,34,0,TELECOMMS; MOBILE PHONES,MOBILE COMMUNICATIONS SERVICE PROVIDERS,Invoice,BACS,None,03-Mar-20,2020,1,01285522318,M1515,SHELTERED ACCOMODATION,D5487,TELECOMMS; MOBILE PHONES
GUILDFORD BOROUGH COUNCIL,CEMETERIES,EE LIMITED,85364,02-Apr-20,2111774,33.75,0,TELECOMMS; MOBILE PHONES,MOBILE COMMUNICATIONS SERVICE PROVIDERS,Invoice,BACS,None,03-Mar-20,2020,1,01285522318,A1430,STOKE CEMETERY,D5487,TELECOMMS; MOBILE PHONES
GUILDFORD BOROUGH COUNCIL,REFUSE AND RECYCLING,EE LIMITED,85364,02-Apr-20,2111774,19.75,0,TELECOMMS; MOBILE PHONES,MOBILE COMMUNICATIONS SERVICE PROVIDERS,Invoice,BACS,None,03-Mar-20,2020,1,01285522318,B7744,GREEN WASTE,D5487,TELECOMMS; MOBILE PHONES
GUILDFORD BOROUGH COUNCIL,CORP SERVICES,EE LIMITED,85364,02-Apr-20,2111774,11.25,0,TELECOMMS; MOBILE PHONES,MOBILE COMMUNICATIONS SERVICE PROVIDERS,Invoice,BACS,None,03-Mar-20,2020,1,01285522318,F1111,CORPORATE SERVICES,D5487,TELECOMMS; MOBILE PHONES
GUILDFORD BOROUGH COUNCIL,DEVELOPMENT CONTROL,EE LIMITED,85364,02-Apr-20,2109808,11.25,0,TELECOMMS; MOBILE PHONES,MOBILE COMMUNICATIONS SERVICE PROVIDERS,Invoice,BACS,None,03-Feb-20,2020,1,01285485538,D5100,DEVELOPMENT CONTROL - FEE EARN,D5487,TELECOMMS; MOBILE PHONES
GUILDFORD BOROUGH COUNCIL,BUILDING MAINTENANCE,EE LIMITED,85364,02-Apr-20,2109808,283.75,0,TELECOMMS; MOBILE PHONES,MOBILE COMMUNICATIONS SERVICE PROVIDERS,Invoice,BACS,None,03-Feb-20,2020,1,01285485538,K1515,BUILDING MAINTENANCE,D5487,TELECOMMS; MOBILE PHONES
GUILDFORD BOROUGH COUNCIL,SUPPORTED HOUSING MANAGEMENT,EE LIMITED,85364,02-Apr-20,2109808,11.25,0,TELECOMMS; MOBILE PHONES,MOBILE COMMUNICATIONS SERVICE PROVIDERS,Invoice,BACS,None,03-Feb-20,2020,1,01285485538,M3690,SUPPORTED HSG-GENERAL (SHS),D5487,TELECOMMS; MOBILE PHONES
GUILDFORD BOROUGH COUNCIL,GUILDFORD HOUSE,EE LIMITED,85364,02-Apr-20,2109808,43.19,0,TELECOMMS; MOBILE PHONES,MOBILE COMMUNICATIONS SERVICE PROVIDERS,Invoice,BACS,None,03-Feb-20,2020,1,01285485538,A4511,GUILDFORD HOUSE ADMINISTRATION,D5487,TELECOMMS; MOBILE PHONES
GUILDFORD BOROUGH COUNCIL,PRIVATE SECTOR HOUSING,EE LIMITED,85364,02-Apr-20,2109808,35.56,0,TELECOMMS; MOBILE PHONES,MOBILE COMMUNICATIONS SERVICE PROVIDERS,Invoice,BACS,None,03-Feb-20,2020,1,01285485538,C5132,CARE & REPAIR (DETR),D5487,TELECOMMS; MOBILE PHONES
GUILDFORD BOROUGH COUNCIL,HEATING,EUROPEAN ASBESTOS SERVICES LIMITED,91991,09-Apr-20,2112793,69,0,CONTRACT PYTS-MAIN CONTRACTOR,ASBESTOS REMOVAL SERVICE PROVIDERS,Invoice,BACS,None,29-Feb-20,2020,1,ISS24614,N44069,CENTRAL HEATING/BOILER 2019-20,1233,CONTRACT PYTS-MAIN CONTRACTOR
GUILDFORD BOROUGH COUNCIL,RESPONSIVE & PLANNED MAINTENAN,EUROPEAN ASBESTOS SERVICES LIMITED,91991,16-Apr-20,2113376,85,0,MAIN CONTRACTORS PAYMENTS,ASBESTOS REMOVAL SERVICE PROVIDERS,Invoice,BACS,None,16-Mar-20,2020,1,ISS24712,M5113,REPAIRS-RESPONSIVE (BHS),B8921,MAIN CONTRACTORS PAYMENTS
GUILDFORD BOROUGH COUNCIL,COMMUNITY DEVELOPMENT,EE LIMITED,85364,02-Apr-20,2109808,34,0,TELECOMMS; MOBILE PHONES,MOBILE COMMUNICATIONS SERVICE PROVIDERS,Invoice,BACS,None,03-Feb-20,2020,1,01285485538,F5711,COMMUNITY SAFETY TEAM,D5487,TELECOMMS; MOBILE PHONES
GUILDFORD BOROUGH COUNCIL,FLATS COMMUNAL SERVICES,EUROPEAN ASBESTOS SERVICES LIMITED,91991,09-Apr-20,2112794,265,0,R&M - GENERAL,ASBESTOS REMOVAL SERVICE PROVIDERS,Invoice,BACS,None,29-Feb-20,2020,1,ISS24600,M2903,SOUTHWAY 278-288 (4),B1231,R&M - GENERAL
GUILDFORD BOROUGH COUNCIL,LICENSING SERVICES,EE LIMITED,85364,02-Apr-20,2109808,33.75,0,TELECOMMS; MOBILE PHONES,MOBILE COMMUNICATIONS SERVICE PROVIDERS,Invoice,BACS,None,03-Feb-20,2020,1,01285485538,H2101,GAMBLING ACT,D5487,TELECOMMS; MOBILE PHONES
GUILDFORD BOROUGH COUNCIL,HOUSING SURVEYING SERVICES,EE LIMITED,85364,02-Apr-20,2111774,180,0,TELECOMMS; MOBILE PHONES,MOBILE COMMUNICATIONS SERVICE PROVIDERS,Invoice,BACS,None,03-Mar-20,2020,1,01285522318,G6525,HOUSING SURVEYING SERVICES,D5487,TELECOMMS; MOBILE PHONES
GUILDFORD BOROUGH COUNCIL,PARKS & COUNTRYSIDE,EE LIMITED,85364,02-Apr-20,2109808,360,0,TELECOMMS; MOBILE PHONES,MOBILE COMMUNICATIONS SERVICE PROVIDERS,Invoice,BACS,None,03-Feb-20,2020,1,01285485538,A1900,PARKS MANAGEMENT AND ADMIN,D5487,TELECOMMS; MOBILE PHONES
GUILDFORD BOROUGH COUNCIL,COMMUNITY MEALS & TPT,EE LIMITED,85364,02-Apr-20,2111774,23.75,0,TELECOMMS; MOBILE PHONES,MOBILE COMMUNICATIONS SERVICE PROVIDERS,Invoice,BACS,None,03-Mar-20,2020,1,01285522318,C8142,COMMUNITY MEALS SERVICE,D5487,TELECOMMS; MOBILE PHONES
GUILDFORD BOROUGH COUNCIL,SUPPORTED HOUSING MANAGEMENT,F & G CLEANERS LTD,95908,20-Apr-20,2114120,30,0,WINDOW CLEANING,OTHER CLEANING AND JANITORIAL SERVICE PROVIDERS,Invoice,BACS,None,17-Mar-20,2020,1,57517,M3692,SUPPORTED HSG-79 YORK RD (SHS),B6286,WINDOW CLEANING
GUILDFORD BOROUGH COUNCIL,COMMUNITY DEVELOPMENT,EE LIMITED,85364,02-Apr-20,2111774,11.25,0,TELECOMMS; MOBILE PHONES,MOBILE COMMUNICATIONS SERVICE PROVIDERS,Invoice,BACS,None,03-Mar-20,2020,1,01285522318,F1127,COMMUNITY DEVELOPMENT,D5487,TELECOMMS; MOBILE PHONES
GUILDFORD BOROUGH COUNCIL,HR SERVICES,EE LIMITED,85364,02-Apr-20,2111774,11.25,0,TELECOMMS; MOBILE PHONES,MOBILE COMMUNICATIONS SERVICE PROVIDERS,Invoice,BACS,None,03-Mar-20,2020,1,01285522318,G2555,HR SERVICES,D5487,TELECOMMS; MOBILE PHONES
GUILDFORD BOROUGH COUNCIL,OPERATIONAL SERVS OVERHEAD AC,EE LIMITED,85364,02-Apr-20,2111774,31,0,TELECOMMS; MOBILE PHONES,MOBILE COMMUNICATIONS SERVICE PROVIDERS,Invoice,BACS,None,03-Mar-20,2020,1,01285522318,K1519,OPERATIONAL SERVS OVERHEAD AC,D5487,TELECOMMS; MOBILE PHONES
GUILDFORD BOROUGH COUNCIL,GUILDFORD HOUSE,EE LIMITED,85364,02-Apr-20,2111774,42.48,0,TELECOMMS; MOBILE PHONES,MOBILE COMMUNICATIONS SERVICE PROVIDERS,Invoice,BACS,None,03-Mar-20,2020,1,01285522318,A4511,GUILDFORD HOUSE ADMINISTRATION,D5487,TELECOMMS; MOBILE PHONES
GUILDFORD BOROUGH COUNCIL,LICENSING SERVICES,EE LIMITED,85364,02-Apr-20,2111774,33.75,0,TELECOMMS; MOBILE PHONES,MOBILE COMMUNICATIONS SERVICE PROVIDERS,Invoice,BACS,None,03-Mar-20,2020,1,01285522318,H2101,GAMBLING ACT,D5487,TELECOMMS; MOBILE PHONES
GUILDFORD BOROUGH COUNCIL,TENANT SELECTION,EE LIMITED,85364,02-Apr-20,2111774,42.25,0,TELECOMMS; MOBILE PHONES,MOBILE COMMUNICATIONS SERVICE PROVIDERS,Invoice,BACS,None,03-Mar-20,2020,1,01285522318,M1131,"ADVICE,REGS,TENANT SELECT(SHS)",D5487,TELECOMMS; MOBILE PHONES
GUILDFORD BOROUGH COUNCIL,PARKS & COUNTRYSIDE,EE LIMITED,85364,02-Apr-20,2111774,320.75,0,TELECOMMS; MOBILE PHONES,MOBILE COMMUNICATIONS SERVICE PROVIDERS,Invoice,BACS,None,03-Mar-20,2020,1,01285522318,A1109,PARKS CONTRACTS GENERAL,D5487,TELECOMMS; MOBILE PHONES
GUILDFORD BOROUGH COUNCIL,STREET CLEANSING,EE LIMITED,85364,02-Apr-20,2111774,31,0,TELECOMMS; MOBILE PHONES,MOBILE COMMUNICATIONS SERVICE PROVIDERS,Invoice,BACS,None,03-Mar-20,2020,1,01285522318,B8512,ENVIRONMENTAL AND DOG CONTROL,D5487,TELECOMMS; MOBILE PHONES
GUILDFORD BOROUGH COUNCIL,OFF STREET PARKING,EE LIMITED,85364,02-Apr-20,2109808,258.75,0,TELECOMMS; MOBILE PHONES,MOBILE COMMUNICATIONS SERVICE PROVIDERS,Invoice,BACS,None,03-Feb-20,2020,1,01285485538,B2111,CAR PARKS - ADMINISTRATION,D5487,TELECOMMS; MOBILE PHONES
GUILDFORD BOROUGH COUNCIL,HOUSING OUTSIDE THE HRA,EE LIMITED,85364,02-Apr-20,2111774,22.5,0,TELECOMMS; MOBILE PHONES,MOBILE COMMUNICATIONS SERVICE PROVIDERS,Invoice,BACS,None,03-Mar-20,2020,1,01285522318,C3313,HOUSING COMPANY,D5487,TELECOMMS; MOBILE PHONES
GUILDFORD BOROUGH COUNCIL,ACCOUNTANCY,EE LIMITED,85364,02-Apr-20,2111774,22.5,0,TELECOMMS; MOBILE PHONES,MOBILE COMMUNICATIONS SERVICE PROVIDERS,Invoice,BACS,None,03-Mar-20,2020,1,01285522318,G3565,ACCOUNTANCY SERVICES,D5487,TELECOMMS; MOBILE PHONES
GUILDFORD BOROUGH COUNCIL,CIVIL EMERGENCIES,EE LIMITED,85364,02-Apr-20,2111774,11.25,0,TELECOMMS; MOBILE PHONES,MOBILE COMMUNICATIONS SERVICE PROVIDERS,Invoice,BACS,None,03-Mar-20,2020,1,01285522318,F1511,CIVIL EMERGENCIES ADMIN.,D5487,TELECOMMS; MOBILE PHONES
GUILDFORD BOROUGH COUNCIL,LEISURE PLAY DEVELOPMENT,EE LIMITED,85364,02-Apr-20,2111774,11.25,0,TELECOMMS; MOBILE PHONES,MOBILE COMMUNICATIONS SERVICE PROVIDERS,Invoice,BACS,None,03-Mar-20,2020,1,01285522318,A7211,PLAY DEVELOPMENT,D5487,TELECOMMS; MOBILE PHONES
GUILDFORD BOROUGH COUNCIL,BUILDING CONTROL SUMMARY,EE LIMITED,85364,02-Apr-20,2111774,78.75,0,TELECOMMS; MOBILE PHONES,MOBILE COMMUNICATIONS SERVICE PROVIDERS,Invoice,BACS,None,03-Mar-20,2020,1,01285522318,D5700,BUILDING CONTROL - FEE,D5487,TELECOMMS; MOBILE PHONES
GUILDFORD BOROUGH COUNCIL,DEVELOPMENT CONTROL,EE LIMITED,85364,02-Apr-20,2111774,87.25,0,TELECOMMS; MOBILE PHONES,MOBILE COMMUNICATIONS SERVICE PROVIDERS,Invoice,BACS,None,03-Mar-20,2020,1,01285522318,D5100,DEVELOPMENT CONTROL - FEE EARN,D5487,TELECOMMS; MOBILE PHONES
GUILDFORD BOROUGH COUNCIL,SURREY FAMILY SUPPORT PROG,EE LIMITED,85364,02-Apr-20,2111774,166,0,TELECOMMS; MOBILE PHONES,MOBILE COMMUNICATIONS SERVICE PROVIDERS,Invoice,BACS,None,03-Mar-20,2020,1,01285522318,C3320,SURREY FAMILY SUPPORT PROG,D5487,TELECOMMS; MOBILE PHONES
GUILDFORD BOROUGH COUNCIL,FLATS COMMUNAL SERVICES,F & G CLEANERS LTD,95908,20-Apr-20,2114120,50,0,WINDOW CLEANING,OTHER CLEANING AND JANITORIAL SERVICE PROVIDERS,Invoice,BACS,None,17-Mar-20,2020,1,57517,M2761,HOPTON COURT 1-8 (8),B6286,WINDOW CLEANING
GUILDFORD BOROUGH COUNCIL,ENVIRONMENTAL CONTROL,EE LIMITED,85364,02-Apr-20,2111774,67.5,0,TELECOMMS; MOBILE PHONES,MOBILE COMMUNICATIONS SERVICE PROVIDERS,Invoice,BACS,None,03-Mar-20,2020,1,01285522318,C1113,ENVIRONMENTAL CONTROL,D5487,TELECOMMS; MOBILE PHONES
GUILDFORD BOROUGH COUNCIL,TOWN CENTRE MANAGEMENT,FASTSIGNS (GUILDFORD) LTD,1993,16-Apr-20,2111989,380,0,PUBLICITY,BUILDING SIGNAGE SUPPLIERS,Invoice,BACS,None,22-Nov-19,2020,1,858-16767,F5550,FARMERS MARKET,D9410,PUBLICITY
GUILDFORD BOROUGH COUNCIL,PARKS & COUNTRYSIDE,FASTSIGNS (GUILDFORD) LTD,1993,30-Apr-20,2112044,257,0,MISCELLANEOUS EXPENSES,BUILDING SIGNAGE SUPPLIERS,Invoice,BACS,None,24-Mar-20,2020,1,858--16985,A1209,PARKS AND OPEN SPACES GENERAL,D9483,MISCELLANEOUS EXPENSES
GUILDFORD BOROUGH COUNCIL,COUNCIL TAX,EE LIMITED,85364,02-Apr-20,2109808,22.5,0,TELECOMMS; MOBILE PHONES,MOBILE COMMUNICATIONS SERVICE PROVIDERS,Invoice,BACS,None,03-Feb-20,2020,1,01285485538,F6141,COUNCIL TAX COLLECTN EXPENSES,D5487,TELECOMMS; MOBILE PHONES
GUILDFORD BOROUGH COUNCIL,REFUSE AND RECYCLING,EE LIMITED,85364,02-Apr-20,2109808,22.5,0,TELECOMMS; MOBILE PHONES,MOBILE COMMUNICATIONS SERVICE PROVIDERS,Invoice,BACS,None,03-Feb-20,2020,1,01285485538,K3551,REFUSE COLLECTION,D5487,TELECOMMS; MOBILE PHONES
GUILDFORD BOROUGH COUNCIL,ON STREET PARKING,EE LIMITED,85364,02-Apr-20,2109808,42.25,0,TELECOMMS; MOBILE PHONES,MOBILE COMMUNICATIONS SERVICE PROVIDERS,Invoice,BACS,None,03-Feb-20,2020,1,01285485538,B2215,WAVERLEY ON-STREET,D5487,TELECOMMS; MOBILE PHONES
GUILDFORD BOROUGH COUNCIL,WOKING ROAD DEPOT,EE LIMITED,85364,02-Apr-20,2109808,45,0,TELECOMMS; MOBILE PHONES,MOBILE COMMUNICATIONS SERVICE PROVIDERS,Invoice,BACS,None,03-Feb-20,2020,1,01285485538,B4452,WOKING ROAD DEPOT,D5487,TELECOMMS; MOBILE PHONES
GUILDFORD BOROUGH COUNCIL,ENGINEERING AND TRANS SERVICES,EE LIMITED,85364,02-Apr-20,2109808,22.5,0,TELECOMMS; MOBILE PHONES,MOBILE COMMUNICATIONS SERVICE PROVIDERS,Invoice,BACS,None,03-Feb-20,2020,1,01285485538,G5538,ENGINEERING AND TRANS SERVICES,D5487,TELECOMMS; MOBILE PHONES
GUILDFORD BOROUGH COUNCIL,TOWN CENTRE MANAGEMENT,FASTSIGNS (GUILDFORD) LTD,1993,07-Apr-20,2111990,250,0,PUBLICITY,BUILDING SIGNAGE SUPPLIERS,Invoice,BACS,None,31-Dec-19,2020,1,858-16825,F5550,FARMERS MARKET,D9410,PUBLICITY
GUILDFORD BOROUGH COUNCIL,VEHICLE MAINTENANCE,F G BARNES & SONS LTD T/A BARNES DAF,882,07-Apr-20,2110627,106.31,0,SPARES FOR VEHICLES,CAR AND VAN DEALERS,Invoice,BACS,None,13-Mar-20,2020,1,40301818,K5551,VEHICLE MAINTENANCE,D1589,SPARES FOR VEHICLES
GUILDFORD BOROUGH COUNCIL,RESPONSIVE & PLANNED MAINTENAN,F & G CLEANERS LTD,95908,20-Apr-20,2114120,60,0,WINDOW CLEANING,OTHER CLEANING AND JANITORIAL SERVICE PROVIDERS,Invoice,BACS,None,17-Mar-20,2020,1,57517,M5113,REPAIRS-RESPONSIVE (BHS),B6286,WINDOW CLEANING
GUILDFORD BOROUGH COUNCIL,DAY SERVICES,F & G CLEANERS LTD,95908,20-Apr-20,2114120,16,0,WINDOW CLEANING,OTHER CLEANING AND JANITORIAL SERVICE PROVIDERS,Invoice,BACS,None,17-Mar-20,2020,1,57517,C8188,WEST HUB SHAWFIELD,B6286,WINDOW CLEANING
GUILDFORD BOROUGH COUNCIL,RESPONSIVE & PLANNED MAINTENAN,EE LIMITED,85364,02-Apr-20,2111774,11.25,0,TELECOMMS; MOBILE PHONES,MOBILE COMMUNICATIONS SERVICE PROVIDERS,Invoice,BACS,None,03-Mar-20,2020,1,01285522318,M5114,REPAIRS-CYCLICAL (BHS),D5487,TELECOMMS; MOBILE PHONES
GUILDFORD BOROUGH COUNCIL,ELDERLY PERSONS DWELLINGS,F & G CLEANERS LTD,95908,20-Apr-20,2114120,24,0,WINDOW CLEANING,OTHER CLEANING AND JANITORIAL SERVICE PROVIDERS,Invoice,BACS,None,17-Mar-20,2020,1,57517,M2612,CASTLE CLIFFE FLATS,B6286,WINDOW CLEANING
GUILDFORD BOROUGH COUNCIL,FLATS COMMUNAL SERVICES,F & G CLEANERS LTD,95908,20-Apr-20,2114120,75,0,WINDOW CLEANING,OTHER CLEANING AND JANITORIAL SERVICE PROVIDERS,Invoice,BACS,None,17-Mar-20,2020,1,57517,M2636,BEDFORD HOUSE (67),B6286,WINDOW CLEANING
GUILDFORD BOROUGH COUNCIL,CORPORATE PROPERTY SERVICES,EE LIMITED,85364,02-Apr-20,2111774,45.07,0,TELECOMMS; MOBILE PHONES,MOBILE COMMUNICATIONS SERVICE PROVIDERS,Invoice,BACS,None,03-Mar-20,2020,1,01285522318,G4575,CORPORATE PROPERTY SERVICES,D5487,TELECOMMS; MOBILE PHONES
GUILDFORD BOROUGH COUNCIL,CORPORATE PROPERTY SERVICES,COOPER & WITHYCOMBE LTD,1469,07-Apr-20,2110801,1846.18,0,CONSULTANTS (ADVICE),OTHER CONSTRUCTION CONSULTANTS,Invoice,BACS,None,20-Mar-20,2020,1,20-3447,G4575,CORPORATE PROPERTY SERVICES,D4520,CONSULTANTS (ADVICE)
GUILDFORD BOROUGH COUNCIL,FLATS COMMUNAL SERVICES,F & G CLEANERS LTD,95908,20-Apr-20,2114120,45,0,WINDOW CLEANING,OTHER CLEANING AND JANITORIAL SERVICE PROVIDERS,Invoice,BACS,None,17-Mar-20,2020,1,57517,M2685,EGERTON COURT 1-12,B6286,WINDOW CLEANING
GUILDFORD BOROUGH COUNCIL,OFFICE SERVICES TEAM,EE LIMITED,85364,02-Apr-20,2109808,86.52,0,TELECOMMS; MOBILE PHONES,MOBILE COMMUNICATIONS SERVICE PROVIDERS,Invoice,BACS,None,03-Feb-20,2020,1,01285485538,G4585,OFFICE SERVICES,D5487,TELECOMMS; MOBILE PHONES
GUILDFORD BOROUGH COUNCIL,COMMUNITY WELLBEING,EE LIMITED,85364,02-Apr-20,2109808,101.25,0,TELECOMMS; MOBILE PHONES,MOBILE COMMUNICATIONS SERVICE PROVIDERS,Invoice,BACS,None,03-Feb-20,2020,1,01285485538,F5713,COMMUNITY WELLBEING,D5487,TELECOMMS; MOBILE PHONES
GUILDFORD BOROUGH COUNCIL,PARISH & LOCAL LIAISON,EFFINGHAM PARISH COUNCIL,1839,07-Apr-20,2112192,780.5,0,LCTSS PARISH GRANT,LOCAL GOVERNMENT [UK ONLY],Invoice,BACS,None,31-Mar-20,2020,1,PARISH PRECEPT,F1115,PARISH LIAISON,D7431,LCTSS PARISH GRANT
GUILDFORD BOROUGH COUNCIL,PARKS & COUNTRYSIDE,F & G CLEANERS LTD,95908,20-Apr-20,2114120,30,0,WINDOW CLEANING,OTHER CLEANING AND JANITORIAL SERVICE PROVIDERS,Invoice,BACS,None,17-Mar-20,2020,1,57517,A1601,STOKE NURSERY OFFICES,B6286,WINDOW CLEANING
GUILDFORD BOROUGH COUNCIL,GF CONTRIBUTIONS,ERMC LIMITED,69846,07-Apr-20,2112224,520,0,CONSULTANTS FEES - PROJECTS,CONSTRUCTION PROJECT MANAGEMENT CONSULTANTS,Invoice,BACS,None,31-Mar-20,2020,1,08101,P91100,WOODBRIDGE RD GARAGES TW,1221,CONSULTANTS FEES - PROJECTS
GUILDFORD BOROUGH COUNCIL,OFFICE SERVICES TEAM,ENCORE ENVELOPES LIMITED,96996,16-Apr-20,2111545,63.88,0,EXTERNAL PRINTING & DESIGN,STATIONERY AND OFFICE PRODUCTS SUPPLIERS,Invoice,BACS,None,24-Mar-20,2020,1,653074,G4545,REPROGRAPHICS UNIT,D3454,EXTERNAL PRINTING & DESIGN
GUILDFORD BOROUGH COUNCIL,STREET CLEANSING,EE LIMITED,85364,02-Apr-20,2109808,31,0,TELECOMMS; MOBILE PHONES,MOBILE COMMUNICATIONS SERVICE PROVIDERS,Invoice,BACS,None,03-Feb-20,2020,1,01285485538,B8512,ENVIRONMENTAL AND DOG CONTROL,D5487,TELECOMMS; MOBILE PHONES
GUILDFORD BOROUGH COUNCIL,PROPERTY,ENERGY ASSESS UK LTD,70458,14-Apr-20,2112075,75,0,CONSULTANTS FEES - ADVICE,SURVEYORS AND INSPECTORS,Invoice,BACS,None,19-Dec-19,2020,1,15407,P74058,ENERGY EFFICIENCY COMPLIANCE,1227,CONSULTANTS FEES - ADVICE
GUILDFORD BOROUGH COUNCIL,HOUSING OUTSIDE THE HRA,EE LIMITED,85364,02-Apr-20,2109808,22.5,0,TELECOMMS; MOBILE PHONES,MOBILE COMMUNICATIONS SERVICE PROVIDERS,Invoice,BACS,None,03-Feb-20,2020,1,01285485538,C3313,HOUSING COMPANY,D5487,TELECOMMS; MOBILE PHONES
GUILDFORD BOROUGH COUNCIL,SHELTERED HOUSING,F & G CLEANERS LTD,95908,20-Apr-20,2114120,22,0,WINDOW CLEANING,OTHER CLEANING AND JANITORIAL SERVICE PROVIDERS,Invoice,BACS,None,17-Mar-20,2020,1,57517,M1515,SHELTERED ACCOMODATION,B6286,WINDOW CLEANING
GUILDFORD BOROUGH COUNCIL,TENANTS' SERVICES,EE LIMITED,85364,02-Apr-20,2111774,225.25,0,TELECOMMS; MOBILE PHONES,MOBILE COMMUNICATIONS SERVICE PROVIDERS,Invoice,BACS,None,03-Mar-20,2020,1,01285522318,M1151,TENANTS SERVICES (BHS),D5487,TELECOMMS; MOBILE PHONES
GUILDFORD BOROUGH COUNCIL,PARKS & COUNTRYSIDE,EE LIMITED,85364,02-Apr-20,2111774,78.75,0,TELECOMMS; MOBILE PHONES,MOBILE COMMUNICATIONS SERVICE PROVIDERS,Invoice,BACS,None,03-Mar-20,2020,1,01285522318,A1300,TREES & COUNTRYSIDE,D5487,TELECOMMS; MOBILE PHONES
GUILDFORD BOROUGH COUNCIL,COMMUNITY MEALS & TPT,EE LIMITED,85364,02-Apr-20,2111774,225,0,TELECOMMS; MOBILE PHONES,MOBILE COMMUNICATIONS SERVICE PROVIDERS,Invoice,BACS,None,03-Mar-20,2020,1,01285522318,C3115,COMMUNITY TRANSPORT SCHEME,D5487,TELECOMMS; MOBILE PHONES
GUILDFORD BOROUGH COUNCIL,INDUSTRIAL ESTATES,ERMC LIMITED,69846,09-Apr-20,2112186,637.5,0,CONSULTANTS FEES - PROJECTS,CONSTRUCTION PROJECT MANAGEMENT CONSULTANTS,Invoice,BACS,None,31-Mar-20,2020,1,08096,P72037,MIDLETON IND EST REDEVELOP,1221,CONSULTANTS FEES - PROJECTS
GUILDFORD BOROUGH COUNCIL,MISCELLANEOUS,FIDELIS SECURITY LIMITED,2000,09-Apr-20,2111754,172.65,0,SECURITY SERVICES,SECURITY GUARDS,Invoice,BACS,None,31-Mar-20,2020,1,10066,F7539,COVID19,D4477,SECURITY SERVICES
GUILDFORD BOROUGH COUNCIL,REFUSE AND RECYCLING,EE LIMITED,85364,02-Apr-20,2111774,22.5,0,TELECOMMS; MOBILE PHONES,MOBILE COMMUNICATIONS SERVICE PROVIDERS,Invoice,BACS,None,03-Mar-20,2020,1,01285522318,K3551,REFUSE COLLECTION,D5487,TELECOMMS; MOBILE PHONES
GUILDFORD BOROUGH COUNCIL,BUSINESS RATES,EE LIMITED,85364,02-Apr-20,2111774,22.5,0,TELECOMMS; MOBILE PHONES,MOBILE COMMUNICATIONS SERVICE PROVIDERS,Invoice,BACS,None,03-Mar-20,2020,1,01285522318,F6151,BUSINESS RATES COLLECTION EXPS,D5487,TELECOMMS; MOBILE PHONES
GUILDFORD BOROUGH COUNCIL,OTHER PROPERTY,FIDELIS SECURITY LIMITED,2000,07-Apr-20,2111752,312.45,0,SECURITY SERVICES,SECURITY GUARDS,Invoice,BACS,None,31-Mar-20,2020,1,10060,B6550,"MULTIPLEX CINEMA, BEDFORD ROAD",D4477,SECURITY SERVICES
GUILDFORD BOROUGH COUNCIL,FLATS COMMUNAL SERVICES,F & G CLEANERS LTD,95908,20-Apr-20,2114120,35,0,WINDOW CLEANING,OTHER CLEANING AND JANITORIAL SERVICE PROVIDERS,Invoice,BACS,None,17-Mar-20,2020,1,57517,M2611,FLATS SERVICES GENERAL (BHS),B6286,WINDOW CLEANING
GUILDFORD BOROUGH COUNCIL,OTHER ST DEBTORS,REDACTED,0,21-Apr-20,2112073,800,0,CASH PAID,PROPERTY LETTING AND ESTATE AGENTS,Invoice,BACS,None,25-Mar-20,2020,1,REDACTED,J01064,HOUSING H4U SCHEME,2175,CASH PAID
GUILDFORD BOROUGH COUNCIL,FLATS COMMUNAL SERVICES,F & G CLEANERS LTD,95908,20-Apr-20,2114120,18,0,WINDOW CLEANING,OTHER CLEANING AND JANITORIAL SERVICE PROVIDERS,Invoice,BACS,None,17-Mar-20,2020,1,57517,M2623,ANSTON COURT 1-12 (12),B6286,WINDOW CLEANING
GUILDFORD BOROUGH COUNCIL,ENGINEERING AND TRANS SERVICES,EE LIMITED,85364,02-Apr-20,2111774,22.5,0,TELECOMMS; MOBILE PHONES,MOBILE COMMUNICATIONS SERVICE PROVIDERS,Invoice,BACS,None,03-Mar-20,2020,1,01285522318,G5538,ENGINEERING AND TRANS SERVICES,D5487,TELECOMMS; MOBILE PHONES
GUILDFORD BOROUGH COUNCIL,WOKING ROAD DEPOT,EE LIMITED,85364,02-Apr-20,2111774,45,0,TELECOMMS; MOBILE PHONES,MOBILE COMMUNICATIONS SERVICE PROVIDERS,Invoice,BACS,None,03-Mar-20,2020,1,01285522318,B4452,WOKING ROAD DEPOT,D5487,TELECOMMS; MOBILE PHONES
GUILDFORD BOROUGH COUNCIL,PRIVATE SECTOR HOUSING,EE LIMITED,85364,02-Apr-20,2111774,35.11,0,TELECOMMS; MOBILE PHONES,MOBILE COMMUNICATIONS SERVICE PROVIDERS,Invoice,BACS,None,03-Mar-20,2020,1,01285522318,C5132,CARE & REPAIR (DETR),D5487,TELECOMMS; MOBILE PHONES
GUILDFORD BOROUGH COUNCIL,REFUSE AND RECYCLING,EE LIMITED,85364,02-Apr-20,2109808,109.75,0,TELECOMMS; MOBILE PHONES,MOBILE COMMUNICATIONS SERVICE PROVIDERS,Invoice,BACS,None,03-Feb-20,2020,1,01285485538,B7766,KERBSIDE RECYCLING,D5487,TELECOMMS; MOBILE PHONES
GUILDFORD BOROUGH COUNCIL,GF NET REVENUE ACCOUNT,EFFINGHAM PARISH COUNCIL,1839,07-Apr-20,2112192,60885,0,OOE - PARISH PRECEPTS PAID,LOCAL GOVERNMENT [UK ONLY],Invoice,BACS,None,31-Mar-20,2020,1,PARISH PRECEPT,V01005,GF NET REVENUE ACCOUNT,2482,OOE - PARISH PRECEPTS PAID
GUILDFORD BOROUGH COUNCIL,RESPONSIVE & PLANNED MAINTENAN,EE LIMITED,85364,02-Apr-20,2111774,11.25,0,TELECOMMS; MOBILE PHONES,MOBILE COMMUNICATIONS SERVICE PROVIDERS,Invoice,BACS,None,03-Mar-20,2020,1,01285522318,M5111,REPAIRS-ADMIN (BHS),D5487,TELECOMMS; MOBILE PHONES
GUILDFORD BOROUGH COUNCIL,VEHICLE MAINTENANCE,FAUN ZOELLER (UK) LIMITED,87521,07-Apr-20,2111240,127.8,0,SPARES FOR VEHICLES,WASTE DISPOSAL EQUIPMENT SUPPLIERS,Invoice,BACS,None,24-Mar-20,2020,1,SI116522,K5551,VEHICLE MAINTENANCE,D1589,SPARES FOR VEHICLES
GUILDFORD BOROUGH COUNCIL,FLATS COMMUNAL SERVICES,F & G CLEANERS LTD,95908,30-Apr-20,2116965,165,0,R&M - GENERAL,OTHER CLEANING AND JANITORIAL SERVICE PROVIDERS,Invoice,BACS,None,10-Mar-20,2020,1,57513,M2747,GT GOODWIN DR 127-141 (8),B1231,R&M - GENERAL
GUILDFORD BOROUGH COUNCIL,OTHER ST CREDITORS,ELMBRIDGE BOROUGH COUNCIL GENERAL ACCOUNT,98205,16-Apr-20,2113427,50,0,RECEIPTS,,Invoice,BACS,None,24-Mar-20,2020,1,PA300/D926,L02096,MAYORS CHARITABLE EVENTS,2633,RECEIPTS
GUILDFORD BOROUGH COUNCIL,VEHICLE & PLANTS ACQS,ELMTRONICS LTD,91946,07-Apr-20,2110349,3557.2,0,VEHICLE PURCHASE,OTHER VEHICLE EQUIPMENT PROVIDERS,Invoice,BACS,None,18-Mar-20,2020,1,1844,P58011,VEHICLE & PLANT ACQS 2019-20,1745,VEHICLE PURCHASE
GUILDFORD BOROUGH COUNCIL,FLATS COMMUNAL SERVICES,F & G CLEANERS LTD,95908,30-Apr-20,2116965,165,0,R&M - GENERAL,OTHER CLEANING AND JANITORIAL SERVICE PROVIDERS,Invoice,BACS,None,10-Mar-20,2020,1,57513,M2752,GREAT GOODWIN DRIVE 143-157(8),B1231,R&M - GENERAL
GUILDFORD BOROUGH COUNCIL,FLATS COMMUNAL SERVICES,F & G CLEANERS LTD,95908,30-Apr-20,2116965,130,0,R&M - GENERAL,OTHER CLEANING AND JANITORIAL SERVICE PROVIDERS,Invoice,BACS,None,10-Mar-20,2020,1,57513,M2872,11-12A THE RIDGES,B1231,R&M - GENERAL
GUILDFORD BOROUGH COUNCIL,OFFICE SERVICES TEAM,ENCORE ENVELOPES LIMITED,96996,09-Apr-20,2098896,63.88,0,EXTERNAL PRINTING & DESIGN,STATIONERY AND OFFICE PRODUCTS SUPPLIERS,Invoice,BACS,None,07-Jan-20,2020,1,644993,G4545,REPROGRAPHICS UNIT,D3454,EXTERNAL PRINTING & DESIGN
GUILDFORD BOROUGH COUNCIL,STREET CLEANSING,EE LIMITED,85364,02-Apr-20,2109808,700.21,0,TELECOMMS; MOBILE PHONES,MOBILE COMMUNICATIONS SERVICE PROVIDERS,Invoice,BACS,None,03-Feb-20,2020,1,01285485538,K4551,STREET CLEANSING,D5487,TELECOMMS; MOBILE PHONES
GUILDFORD BOROUGH COUNCIL,DAY SERVICES,F & G CLEANERS LTD,95908,20-Apr-20,2114120,75,0,WINDOW CLEANING,OTHER CLEANING AND JANITORIAL SERVICE PROVIDERS,Invoice,BACS,None,17-Mar-20,2020,1,57517,C8189,CENTRAL HUB PARK BARN,B6286,WINDOW CLEANING
GUILDFORD BOROUGH COUNCIL,PARKS & COUNTRYSIDE,EE LIMITED,85364,02-Apr-20,2109808,67.5,0,TELECOMMS; MOBILE PHONES,MOBILE COMMUNICATIONS SERVICE PROVIDERS,Invoice,BACS,None,03-Feb-20,2020,1,01285485538,A1300,TREES & COUNTRYSIDE,D5487,TELECOMMS; MOBILE PHONES
GUILDFORD BOROUGH COUNCIL,RESPONSIVE & PLANNED MAINTENAN,F & G CLEANERS LTD,95908,30-Apr-20,2116965,65,0,R&M - GENERAL,OTHER CLEANING AND JANITORIAL SERVICE PROVIDERS,Invoice,BACS,None,10-Mar-20,2020,1,57513,M5114,REPAIRS-CYCLICAL (BHS),B1231,R&M - GENERAL
GUILDFORD BOROUGH COUNCIL,VEHICLE & PLANTS ACQS,ELMTRONICS LTD,91946,21-Apr-20,2113750,5258.89,0,VEHICLE PURCHASE,OTHER VEHICLE EQUIPMENT PROVIDERS,Invoice,BACS,None,17-Mar-20,2020,1,1843,P58011,VEHICLE & PLANT ACQS 2019-20,1745,VEHICLE PURCHASE
GUILDFORD BOROUGH COUNCIL,CREMATORIUM,EE LIMITED,85364,02-Apr-20,2109808,56.25,0,TELECOMMS; MOBILE PHONES,MOBILE COMMUNICATIONS SERVICE PROVIDERS,Invoice,BACS,None,03-Feb-20,2020,1,01285485538,A1500,GUILDFORD CREMATORIUM,D5487,TELECOMMS; MOBILE PHONES
GUILDFORD BOROUGH COUNCIL,TOWN CENTRE MANAGEMENT,EE LIMITED,85364,02-Apr-20,2109808,33.75,0,TELECOMMS; MOBILE PHONES,MOBILE COMMUNICATIONS SERVICE PROVIDERS,Invoice,BACS,None,03-Feb-20,2020,1,01285485538,F5550,FARMERS MARKET,D5487,TELECOMMS; MOBILE PHONES
GUILDFORD BOROUGH COUNCIL,INDUSTRIAL ESTATES,FIDELIS SECURITY LIMITED,2000,07-Apr-20,2111753,661.05,0,TRAVELLER INCURSION COSTS,SECURITY GUARDS,Invoice,BACS,None,31-Mar-20,2020,1,10063,B5311,INDUSTRIAL ESTATES ADMIN.,D1449,TRAVELLER INCURSION COSTS
GUILDFORD BOROUGH COUNCIL,PROPERTY,FIDELIS SECURITY LIMITED,2000,07-Apr-20,2110251,190.35,0,CONTRACT PYTS-MINOR CONTRACTOR,SECURITY GUARDS,Invoice,BACS,None,17-Mar-20,2020,1,10051,P74075,LIONGATE VOID WORKS,1234,CONTRACT PYTS-MINOR CONTRACTOR
GUILDFORD BOROUGH COUNCIL,FLATS COMMUNAL SERVICES,F & G CLEANERS LTD,95908,20-Apr-20,2114120,250,0,WINDOW CLEANING,OTHER CLEANING AND JANITORIAL SERVICE PROVIDERS,Invoice,BACS,None,17-Mar-20,2020,1,57517,M2636,BEDFORD HOUSE (67),B6286,WINDOW CLEANING
GUILDFORD BOROUGH COUNCIL,VEHICLE & PLANTS ACQS,ELMTRONICS LTD,91946,16-Apr-20,2110328,4011.19,0,VEHICLE PURCHASE,OTHER VEHICLE EQUIPMENT PROVIDERS,Invoice,BACS,None,20-Mar-20,2020,1,1850,P58011,VEHICLE & PLANT ACQS 2019-20,1745,VEHICLE PURCHASE
GUILDFORD BOROUGH COUNCIL,RESPONSIVE & PLANNED MAINTENAN,EE LIMITED,85364,02-Apr-20,2109808,11.25,0,TELECOMMS; MOBILE PHONES,MOBILE COMMUNICATIONS SERVICE PROVIDERS,Invoice,BACS,None,03-Feb-20,2020,1,01285485538,M5111,REPAIRS-ADMIN (BHS),D5487,TELECOMMS; MOBILE PHONES
GUILDFORD BOROUGH COUNCIL,GUILDFORD HOUSE,F & G CLEANERS LTD,95908,20-Apr-20,2114120,24,0,WINDOW CLEANING,OTHER CLEANING AND JANITORIAL SERVICE PROVIDERS,Invoice,BACS,None,17-Mar-20,2020,1,57517,A4511,GUILDFORD HOUSE ADMINISTRATION,B6286,WINDOW CLEANING
GUILDFORD BOROUGH COUNCIL,CIVIL EMERGENCIES,EE LIMITED,85364,02-Apr-20,2109808,11.25,0,TELECOMMS; MOBILE PHONES,MOBILE COMMUNICATIONS SERVICE PROVIDERS,Invoice,BACS,None,03-Feb-20,2020,1,01285485538,F1511,CIVIL EMERGENCIES ADMIN.,D5487,TELECOMMS; MOBILE PHONES
GUILDFORD BOROUGH COUNCIL,COMMUNITY DEVELOPMENT,EE LIMITED,85364,02-Apr-20,2109808,11.25,0,TELECOMMS; MOBILE PHONES,MOBILE COMMUNICATIONS SERVICE PROVIDERS,Invoice,BACS,None,03-Feb-20,2020,1,01285485538,F1127,COMMUNITY DEVELOPMENT,D5487,TELECOMMS; MOBILE PHONES
GUILDFORD BOROUGH COUNCIL,RESPONSIVE & PLANNED MAINTENAN,F & G CLEANERS LTD,95908,30-Apr-20,2116965,495,0,DRAINAGE; SURFACE WATER/GUTTER,OTHER CLEANING AND JANITORIAL SERVICE PROVIDERS,Invoice,BACS,None,10-Mar-20,2020,1,57513,M5107,REPAIRS-SHELT-CYCLICAL (BHS),B1327,DRAINAGE; SURFACE WATER/GUTTER
GUILDFORD BOROUGH COUNCIL,FLATS COMMUNAL SERVICES,F & G CLEANERS LTD,95908,30-Apr-20,2116965,130,0,R&M - GENERAL,OTHER CLEANING AND JANITORIAL SERVICE PROVIDERS,Invoice,BACS,None,10-Mar-20,2020,1,57513,M2688,THE ELMS 9-12A  (8),B1231,R&M - GENERAL
GUILDFORD BOROUGH COUNCIL,RESPONSIVE & PLANNED MAINTENAN,EE LIMITED,85364,02-Apr-20,2109808,11.25,0,TELECOMMS; MOBILE PHONES,MOBILE COMMUNICATIONS SERVICE PROVIDERS,Invoice,BACS,None,03-Feb-20,2020,1,01285485538,M5114,REPAIRS-CYCLICAL (BHS),D5487,TELECOMMS; MOBILE PHONES
GUILDFORD BOROUGH COUNCIL,RESPONSIVE & PLANNED MAINTENAN,F & G CLEANERS LTD,95908,30-Apr-20,2116965,195,0,DRAINAGE; SURFACE WATER/GUTTER,OTHER CLEANING AND JANITORIAL SERVICE PROVIDERS,Invoice,BACS,None,10-Mar-20,2020,1,57513,M5114,REPAIRS-CYCLICAL (BHS),B1327,DRAINAGE; SURFACE WATER/GUTTER
GUILDFORD BOROUGH COUNCIL,SHELTERED HOUSING,F & G CLEANERS LTD,95908,20-Apr-20,2114120,165,0,WINDOW CLEANING,OTHER CLEANING AND JANITORIAL SERVICE PROVIDERS,Invoice,BACS,None,17-Mar-20,2020,1,57517,M1515,SHELTERED ACCOMODATION,B6286,WINDOW CLEANING
GUILDFORD BOROUGH COUNCIL,RESPONSIVE & PLANNED MAINTENAN,F & G CLEANERS LTD,95908,30-Apr-20,2116965,260,0,DRAINAGE; SURFACE WATER/GUTTER,OTHER CLEANING AND JANITORIAL SERVICE PROVIDERS,Invoice,BACS,None,10-Mar-20,2020,1,57513,M5114,REPAIRS-CYCLICAL (BHS),B1327,DRAINAGE; SURFACE WATER/GUTTER
GUILDFORD BOROUGH COUNCIL,VEHICLE MAINTENANCE,FLUID SYSTEMS LTD T/A PIRTEK (GUILDFORD),6670,30-Apr-20,2116776,931.52,0,SPARES FOR VEHICLES,PLANT AND CONSTRUCTION EQUIPMENT SUPPLIERS,Invoice,BACS,None,14-Apr-20,2020,1,GUI371,K5551,VEHICLE MAINTENANCE,D1589,SPARES FOR VEHICLES
GUILDFORD BOROUGH COUNCIL,SHELTERED HOUSING,F & G CLEANERS LTD,95908,20-Apr-20,2114120,30,0,WINDOW CLEANING,OTHER CLEANING AND JANITORIAL SERVICE PROVIDERS,Invoice,BACS,None,17-Mar-20,2020,1,57517,M1515,SHELTERED ACCOMODATION,B6286,WINDOW CLEANING
GUILDFORD BOROUGH COUNCIL,SHELTERED HOUSING,F & G CLEANERS LTD,95908,20-Apr-20,2114120,40,0,WINDOW CLEANING,OTHER CLEANING AND JANITORIAL SERVICE PROVIDERS,Invoice,BACS,None,17-Mar-20,2020,1,57517,M1515,SHELTERED ACCOMODATION,B6286,WINDOW CLEANING
GUILDFORD BOROUGH COUNCIL,VEHICLE MAINTENANCE,FLUID SYSTEMS LTD T/A PIRTEK (GUILDFORD),6670,09-Apr-20,2112123,195.43,0,SPARES FOR VEHICLES,PLANT AND CONSTRUCTION EQUIPMENT SUPPLIERS,Invoice,BACS,None,31-Mar-20,2020,1,GUI296,K5551,VEHICLE MAINTENANCE,D1589,SPARES FOR VEHICLES
GUILDFORD BOROUGH COUNCIL,SHELTERED HOUSING,F & G CLEANERS LTD,95908,20-Apr-20,2114120,45,0,WINDOW CLEANING,OTHER CLEANING AND JANITORIAL SERVICE PROVIDERS,Invoice,BACS,None,17-Mar-20,2020,1,57517,M1515,SHELTERED ACCOMODATION,B6286,WINDOW CLEANING
GUILDFORD BOROUGH COUNCIL,FLATS COMMUNAL SERVICES,F & G CLEANERS LTD,95908,20-Apr-20,2114120,12,0,WINDOW CLEANING,OTHER CLEANING AND JANITORIAL SERVICE PROVIDERS,Invoice,BACS,None,17-Mar-20,2020,1,57517,M2611,FLATS SERVICES GENERAL (BHS),B6286,WINDOW CLEANING
GUILDFORD BOROUGH COUNCIL,PARKS & COUNTRYSIDE,EE LIMITED,85364,02-Apr-20,2111774,360.13,0,TELECOMMS; MOBILE PHONES,MOBILE COMMUNICATIONS SERVICE PROVIDERS,Invoice,BACS,None,03-Mar-20,2020,1,01285522318,A1900,PARKS MANAGEMENT AND ADMIN,D5487,TELECOMMS; MOBILE PHONES
GUILDFORD BOROUGH COUNCIL,RESPONSIVE & PLANNED MAINTENAN,F & G CLEANERS LTD,95908,30-Apr-20,2116965,95,0,DRAINAGE; SURFACE WATER/GUTTER,OTHER CLEANING AND JANITORIAL SERVICE PROVIDERS,Invoice,BACS,None,10-Mar-20,2020,1,57513,M5114,REPAIRS-CYCLICAL (BHS),B1327,DRAINAGE; SURFACE WATER/GUTTER
GUILDFORD BOROUGH COUNCIL,BUILDING MAINTENANCE,EE LIMITED,85364,02-Apr-20,2111774,281.65,0,TELECOMMS; MOBILE PHONES,MOBILE COMMUNICATIONS SERVICE PROVIDERS,Invoice,BACS,None,03-Mar-20,2020,1,01285522318,K1515,BUILDING MAINTENANCE,D5487,TELECOMMS; MOBILE PHONES
GUILDFORD BOROUGH COUNCIL,HOUSING OUTSIDE THE HRA,F & G CLEANERS LTD,95908,20-Apr-20,2114120,60,0,WINDOW CLEANING,OTHER CLEANING AND JANITORIAL SERVICE PROVIDERS,Invoice,BACS,None,17-Mar-20,2020,1,57517,C5571,"OLD MANOR HOUSE, EAST HORSLEY",B6286,WINDOW CLEANING
GUILDFORD BOROUGH COUNCIL,VEHICLE MAINTENANCE,FLUID SYSTEMS LTD T/A PIRTEK (GUILDFORD),6670,30-Apr-20,2116834,70.85,0,SPARES FOR VEHICLES,PLANT AND CONSTRUCTION EQUIPMENT SUPPLIERS,Invoice,BACS,None,17-Apr-20,2020,1,GUI379,K5551,VEHICLE MAINTENANCE,D1589,SPARES FOR VEHICLES
GUILDFORD BOROUGH COUNCIL,FLATS COMMUNAL SERVICES,F & G CLEANERS LTD,95908,20-Apr-20,2114120,18,0,WINDOW CLEANING,OTHER CLEANING AND JANITORIAL SERVICE PROVIDERS,Invoice,BACS,None,17-Mar-20,2020,1,57517,M2685,EGERTON COURT 1-12,B6286,WINDOW CLEANING
GUILDFORD BOROUGH COUNCIL,FLATS COMMUNAL SERVICES,F & G CLEANERS LTD,95908,20-Apr-20,2114120,60,0,WINDOW CLEANING,OTHER CLEANING AND JANITORIAL SERVICE PROVIDERS,Invoice,BACS,None,17-Mar-20,2020,1,57517,M2846,PURBECK COURT 1-12 (12),B6286,WINDOW CLEANING
GUILDFORD BOROUGH COUNCIL,TENANT SELECTION,EE LIMITED,85364,02-Apr-20,2111774,11.25,0,TELECOMMS; MOBILE PHONES,MOBILE COMMUNICATIONS SERVICE PROVIDERS,Invoice,BACS,None,03-Mar-20,2020,1,01285522318,M1131,"ADVICE,REGS,TENANT SELECT(SHS)",D5487,TELECOMMS; MOBILE PHONES
GUILDFORD BOROUGH COUNCIL,FLATS COMMUNAL SERVICES,F & G CLEANERS LTD,95908,20-Apr-20,2114120,20,0,WINDOW CLEANING,OTHER CLEANING AND JANITORIAL SERVICE PROVIDERS,Invoice,BACS,None,17-Mar-20,2020,1,57517,M2882,ROWAN CL 19 - 29 (6 ODD),B6286,WINDOW CLEANING
GUILDFORD BOROUGH COUNCIL,RESPONSIVE & PLANNED MAINTENAN,F & G CLEANERS LTD,95908,30-Apr-20,2116965,455,0,DRAINAGE; SURFACE WATER/GUTTER,OTHER CLEANING AND JANITORIAL SERVICE PROVIDERS,Invoice,BACS,None,10-Mar-20,2020,1,57513,M5107,REPAIRS-SHELT-CYCLICAL (BHS),B1327,DRAINAGE; SURFACE WATER/GUTTER
GUILDFORD BOROUGH COUNCIL,PARKS & COUNTRYSIDE,EE LIMITED,85364,02-Apr-20,2109808,320.75,0,TELECOMMS; MOBILE PHONES,MOBILE COMMUNICATIONS SERVICE PROVIDERS,Invoice,BACS,None,03-Feb-20,2020,1,01285485538,A1109,PARKS CONTRACTS GENERAL,D5487,TELECOMMS; MOBILE PHONES
GUILDFORD BOROUGH COUNCIL,FLATS COMMUNAL SERVICES,F & G CLEANERS LTD,95908,20-Apr-20,2114120,10,0,WINDOW CLEANING,OTHER CLEANING AND JANITORIAL SERVICE PROVIDERS,Invoice,BACS,None,17-Mar-20,2020,1,57517,M2611,FLATS SERVICES GENERAL (BHS),B6286,WINDOW CLEANING
GUILDFORD BOROUGH COUNCIL,BUILDING CONTROL SUMMARY,EE LIMITED,85364,02-Apr-20,2109808,78.75,0,TELECOMMS; MOBILE PHONES,MOBILE COMMUNICATIONS SERVICE PROVIDERS,Invoice,BACS,None,03-Feb-20,2020,1,01285485538,D5700,BUILDING CONTROL - FEE,D5487,TELECOMMS; MOBILE PHONES
GUILDFORD BOROUGH COUNCIL,RESPONSIVE & PLANNED MAINTENAN,F & G CLEANERS LTD,95908,30-Apr-20,2116965,130,0,DRAINAGE; SURFACE WATER/GUTTER,OTHER CLEANING AND JANITORIAL SERVICE PROVIDERS,Invoice,BACS,None,10-Mar-20,2020,1,57513,M5114,REPAIRS-CYCLICAL (BHS),B1327,DRAINAGE; SURFACE WATER/GUTTER
GUILDFORD BOROUGH COUNCIL,SHELTERED HOUSING,EE LIMITED,85364,02-Apr-20,2109808,33.75,0,TELECOMMS; MOBILE PHONES,MOBILE COMMUNICATIONS SERVICE PROVIDERS,Invoice,BACS,None,03-Feb-20,2020,1,01285485538,M1515,SHELTERED ACCOMODATION,D5487,TELECOMMS; MOBILE PHONES
GUILDFORD BOROUGH COUNCIL,FLATS COMMUNAL SERVICES,F & G CLEANERS LTD,95908,30-Apr-20,2116965,130,0,R&M - GENERAL,OTHER CLEANING AND JANITORIAL SERVICE PROVIDERS,Invoice,BACS,None,10-Mar-20,2020,1,57513,M2905,SANDMORE 5-12(8),B1231,R&M - GENERAL
GUILDFORD BOROUGH COUNCIL,EMI SERVICES,F & G CLEANERS LTD,95908,20-Apr-20,2114120,36,0,WINDOW CLEANING,OTHER CLEANING AND JANITORIAL SERVICE PROVIDERS,Invoice,BACS,None,17-Mar-20,2020,1,57517,C8117,MEADOWS CENTRE,B6286,WINDOW CLEANING
GUILDFORD BOROUGH COUNCIL,PARKS & COUNTRYSIDE,F & G CLEANERS LTD,95908,20-Apr-20,2114120,18,0,WINDOW CLEANING,OTHER CLEANING AND JANITORIAL SERVICE PROVIDERS,Invoice,BACS,None,17-Mar-20,2020,1,57517,A1324,HOME FARM COTTAGE - STOKE PARK,B6286,WINDOW CLEANING
GUILDFORD BOROUGH COUNCIL,COUNCIL & COMMITTEE SUPPORT,EE LIMITED,85364,02-Apr-20,2109808,11.25,0,TELECOMMS; MOBILE PHONES,MOBILE COMMUNICATIONS SERVICE PROVIDERS,Invoice,BACS,None,03-Feb-20,2020,1,01285485538,F1320,OVERVIEW AND SCRUTINY COMMITTE,D5487,TELECOMMS; MOBILE PHONES
GUILDFORD BOROUGH COUNCIL,SUPPORTED HOUSING MANAGEMENT,F & G CLEANERS LTD,95908,20-Apr-20,2114120,20,0,WINDOW CLEANING,OTHER CLEANING AND JANITORIAL SERVICE PROVIDERS,Invoice,BACS,None,17-Mar-20,2020,1,57517,M3691,SUPP HSG-WILLIAM SWAYNE (SHS),B6286,WINDOW CLEANING
GUILDFORD BOROUGH COUNCIL,SUPPORTED HOUSING MANAGEMENT,F & G CLEANERS LTD,95908,20-Apr-20,2114120,12,0,WINDOW CLEANING,OTHER CLEANING AND JANITORIAL SERVICE PROVIDERS,Invoice,BACS,None,17-Mar-20,2020,1,57517,M2614,SUPPORTED HSG-DENE ROAD (SHS),B6286,WINDOW CLEANING
GUILDFORD BOROUGH COUNCIL,VEHICLE MAINTENANCE,FLUID SYSTEMS LTD T/A PIRTEK (GUILDFORD),6670,07-Apr-20,2110268,533.18,0,SPARES FOR VEHICLES,PLANT AND CONSTRUCTION EQUIPMENT SUPPLIERS,Invoice,BACS,None,13-Mar-20,2020,1,GUI141,K5551,VEHICLE MAINTENANCE,D1589,SPARES FOR VEHICLES
GUILDFORD BOROUGH COUNCIL,RESPONSIVE & PLANNED MAINTENAN,F & G CLEANERS LTD,95908,30-Apr-20,2116965,95,0,DRAINAGE; SURFACE WATER/GUTTER,OTHER CLEANING AND JANITORIAL SERVICE PROVIDERS,Invoice,BACS,None,10-Mar-20,2020,1,57513,M5114,REPAIRS-CYCLICAL (BHS),B1327,DRAINAGE; SURFACE WATER/GUTTER
GUILDFORD BOROUGH COUNCIL,FLATS COMMUNAL SERVICES,F & G CLEANERS LTD,95908,30-Apr-20,2116965,165,0,R&M - GENERAL,OTHER CLEANING AND JANITORIAL SERVICE PROVIDERS,Invoice,BACS,None,10-Mar-20,2020,1,57513,M2748,GT GOODWIN DR 159-173(8),B1231,R&M - GENERAL
GUILDFORD BOROUGH COUNCIL,FLATS COMMUNAL SERVICES,F & G CLEANERS LTD,95908,30-Apr-20,2116965,165,0,R&M - GENERAL,OTHER CLEANING AND JANITORIAL SERVICE PROVIDERS,Invoice,BACS,None,10-Mar-20,2020,1,57513,M2665,CINNAMON GARDENS 9-14 (6),B1231,R&M - GENERAL
GUILDFORD BOROUGH COUNCIL,RESPONSIVE & PLANNED MAINTENAN,F & G CLEANERS LTD,95908,20-Apr-20,2114120,45,0,WINDOW CLEANING,OTHER CLEANING AND JANITORIAL SERVICE PROVIDERS,Invoice,BACS,None,17-Mar-20,2020,1,57517,M5114,REPAIRS-CYCLICAL (BHS),B6286,WINDOW CLEANING
GUILDFORD BOROUGH COUNCIL,SUPPORTED HOUSING MANAGEMENT,F & G CLEANERS LTD,95908,20-Apr-20,2114120,14,0,WINDOW CLEANING,OTHER CLEANING AND JANITORIAL SERVICE PROVIDERS,Invoice,BACS,None,17-Mar-20,2020,1,57517,M3691,SUPP HSG-WILLIAM SWAYNE (SHS),B6286,WINDOW CLEANING
GUILDFORD BOROUGH COUNCIL,GUILDFORD HOUSE,F & G CLEANERS LTD,95908,20-Apr-20,2114120,68,0,WINDOW CLEANING,OTHER CLEANING AND JANITORIAL SERVICE PROVIDERS,Invoice,BACS,None,17-Mar-20,2020,1,57517,A4511,GUILDFORD HOUSE ADMINISTRATION,B6286,WINDOW CLEANING
GUILDFORD BOROUGH COUNCIL,SUPPORTED HOUSING MANAGEMENT,F & G CLEANERS LTD,95908,20-Apr-20,2114120,30,0,WINDOW CLEANING,OTHER CLEANING AND JANITORIAL SERVICE PROVIDERS,Invoice,BACS,None,17-Mar-20,2020,1,57517,M2614,SUPPORTED HSG-DENE ROAD (SHS),B6286,WINDOW CLEANING
GUILDFORD BOROUGH COUNCIL,SHELTERED HOUSING,F & G CLEANERS LTD,95908,20-Apr-20,2114120,90,0,WINDOW CLEANING,OTHER CLEANING AND JANITORIAL SERVICE PROVIDERS,Invoice,BACS,None,17-Mar-20,2020,1,57517,M1515,SHELTERED ACCOMODATION,B6286,WINDOW CLEANING
GUILDFORD BOROUGH COUNCIL,CREMATORIUM,F & G CLEANERS LTD,95908,20-Apr-20,2114120,95,0,WINDOW CLEANING,OTHER CLEANING AND JANITORIAL SERVICE PROVIDERS,Invoice,BACS,None,17-Mar-20,2020,1,57517,A1500,GUILDFORD CREMATORIUM,B6286,WINDOW CLEANING
GUILDFORD BOROUGH COUNCIL,FLATS COMMUNAL SERVICES,F & G CLEANERS LTD,95908,30-Apr-20,2116965,95,0,R&M - GENERAL,OTHER CLEANING AND JANITORIAL SERVICE PROVIDERS,Invoice,BACS,None,10-Mar-20,2020,1,57513,M2750,57-59A GT GOODWIN DRIVE (4),B1231,R&M - GENERAL
GUILDFORD BOROUGH COUNCIL,TENANTS' SERVICES,EDF ENERGY,65619,07-Apr-20,2112293,17.09,0,ELECTRICITY,MAINS ELECTRICITY SUPPLIERS,Invoice,BACS,None,09-Mar-20,2020,1,671126405305,M1151,TENANTS SERVICES (BHS),B2215,ELECTRICITY
GUILDFORD BOROUGH COUNCIL,TENANTS' SERVICES,EDF ENERGY,65619,07-Apr-20,2112293,22.64,0,ELECTRICITY,MAINS ELECTRICITY SUPPLIERS,Invoice,BACS,None,09-Mar-20,2020,1,671126405305,M1151,TENANTS SERVICES (BHS),B2215,ELECTRICITY
GUILDFORD BOROUGH COUNCIL,PARKS & COUNTRYSIDE,FOREST & GARDEN TIMBER SERVICES,2049,02-Apr-20,2110892,180,0,RISK MANAGEMENT TREE WORKS,TREE WORK CONTRACTORS,Invoice,BACS,None,24-Mar-20,2020,1,8516,A1389,SHALFORD COMMON,B1244,RISK MANAGEMENT TREE WORKS
GUILDFORD BOROUGH COUNCIL,RESPONSIVE & PLANNED MAINTENAN,F & G CLEANERS LTD,95908,30-Apr-20,2116965,95,0,DRAINAGE; SURFACE WATER/GUTTER,OTHER CLEANING AND JANITORIAL SERVICE PROVIDERS,Invoice,BACS,None,10-Mar-20,2020,1,57513,M5114,REPAIRS-CYCLICAL (BHS),B1327,DRAINAGE; SURFACE WATER/GUTTER
GUILDFORD BOROUGH COUNCIL,RESPONSIVE & PLANNED MAINTENAN,F & G CLEANERS LTD,95908,30-Apr-20,2116965,65,0,DRAINAGE; SURFACE WATER/GUTTER,OTHER CLEANING AND JANITORIAL SERVICE PROVIDERS,Invoice,BACS,None,10-Mar-20,2020,1,57513,M5114,REPAIRS-CYCLICAL (BHS),B1327,DRAINAGE; SURFACE WATER/GUTTER
GUILDFORD BOROUGH COUNCIL,FLATS COMMUNAL SERVICES,F & G CLEANERS LTD,95908,20-Apr-20,2114120,18,0,WINDOW CLEANING,OTHER CLEANING AND JANITORIAL SERVICE PROVIDERS,Invoice,BACS,None,17-Mar-20,2020,1,57517,M2761,HOPTON COURT 1-8 (8),B6286,WINDOW CLEANING
GUILDFORD BOROUGH COUNCIL,FLATS COMMUNAL SERVICES,F & G CLEANERS LTD,95908,20-Apr-20,2114120,20,0,WINDOW CLEANING,OTHER CLEANING AND JANITORIAL SERVICE PROVIDERS,Invoice,BACS,None,17-Mar-20,2020,1,57517,M2615,PRIMROSE CT SITE - COMM HALL,B6286,WINDOW CLEANING
GUILDFORD BOROUGH COUNCIL,COMMUNITY MEALS & TPT,EE LIMITED,85364,02-Apr-20,2109808,225,0,TELECOMMS; MOBILE PHONES,MOBILE COMMUNICATIONS SERVICE PROVIDERS,Invoice,BACS,None,03-Feb-20,2020,1,01285485538,C3115,COMMUNITY TRANSPORT SCHEME,D5487,TELECOMMS; MOBILE PHONES
GUILDFORD BOROUGH COUNCIL,FLATS COMMUNAL SERVICES,F & G CLEANERS LTD,95908,20-Apr-20,2114120,38,0,WINDOW CLEANING,OTHER CLEANING AND JANITORIAL SERVICE PROVIDERS,Invoice,BACS,None,17-Mar-20,2020,1,57517,M2611,FLATS SERVICES GENERAL (BHS),B6286,WINDOW CLEANING
GUILDFORD BOROUGH COUNCIL,PARKS & COUNTRYSIDE,EE LIMITED,85364,02-Apr-20,2111774,53.5,0,TELECOMMS; MOBILE PHONES,MOBILE COMMUNICATIONS SERVICE PROVIDERS,Invoice,BACS,None,03-Mar-20,2020,1,01285522318,A1000,HOUSING,D5487,TELECOMMS; MOBILE PHONES
GUILDFORD BOROUGH COUNCIL,FLATS COMMUNAL SERVICES,F & G CLEANERS LTD,95908,20-Apr-20,2114120,20,0,WINDOW CLEANING,OTHER CLEANING AND JANITORIAL SERVICE PROVIDERS,Invoice,BACS,None,17-Mar-20,2020,1,57517,M2881,ROWAN CLOSE 7-17 (6 ODD),B6286,WINDOW CLEANING
GUILDFORD BOROUGH COUNCIL,PRIVATE SECTOR HOUSING,EE LIMITED,85364,02-Apr-20,2111774,109.75,0,TELECOMMS; MOBILE PHONES,MOBILE COMMUNICATIONS SERVICE PROVIDERS,Invoice,BACS,None,03-Mar-20,2020,1,01285522318,C5122,PRIVATE SECTOR HOUSING STANDAR,D5487,TELECOMMS; MOBILE PHONES
GUILDFORD BOROUGH COUNCIL,FLATS COMMUNAL SERVICES,F & G CLEANERS LTD,95908,20-Apr-20,2114120,12,0,WINDOW CLEANING,OTHER CLEANING AND JANITORIAL SERVICE PROVIDERS,Invoice,BACS,None,17-Mar-20,2020,1,57517,M2846,PURBECK COURT 1-12 (12),B6286,WINDOW CLEANING
GUILDFORD BOROUGH COUNCIL,COMMUNITY WELLBEING,EE LIMITED,85364,02-Apr-20,2111774,101.25,0,TELECOMMS; MOBILE PHONES,MOBILE COMMUNICATIONS SERVICE PROVIDERS,Invoice,BACS,None,03-Mar-20,2020,1,01285522318,F5713,COMMUNITY WELLBEING,D5487,TELECOMMS; MOBILE PHONES
GUILDFORD BOROUGH COUNCIL,FLATS COMMUNAL SERVICES,F & G CLEANERS LTD,95908,30-Apr-20,2116965,130,0,R&M - GENERAL,OTHER CLEANING AND JANITORIAL SERVICE PROVIDERS,Invoice,BACS,None,10-Mar-20,2020,1,57513,M2686,THE ELMS 3-5A(6),B1231,R&M - GENERAL
GUILDFORD BOROUGH COUNCIL,LICENSING SERVICES,EE LIMITED,85364,02-Apr-20,2111774,22.5,0,TELECOMMS; MOBILE PHONES,MOBILE COMMUNICATIONS SERVICE PROVIDERS,Invoice,BACS,None,03-Mar-20,2020,1,01285522318,H2100,LICENSING SERVICES,D5487,TELECOMMS; MOBILE PHONES
GUILDFORD BOROUGH COUNCIL,RESPONSIVE & PLANNED MAINTENAN,F & G CLEANERS LTD,95908,30-Apr-20,2116965,520,0,DRAINAGE; SURFACE WATER/GUTTER,OTHER CLEANING AND JANITORIAL SERVICE PROVIDERS,Invoice,BACS,None,10-Mar-20,2020,1,57513,M5107,REPAIRS-SHELT-CYCLICAL (BHS),B1327,DRAINAGE; SURFACE WATER/GUTTER
GUILDFORD BOROUGH COUNCIL,FLATS COMMUNAL SERVICES,F & G CLEANERS LTD,95908,20-Apr-20,2114120,38,0,WINDOW CLEANING,OTHER CLEANING AND JANITORIAL SERVICE PROVIDERS,Invoice,BACS,None,17-Mar-20,2020,1,57517,M2617,STOKE PARK COURT FLATS,B6286,WINDOW CLEANING
GUILDFORD BOROUGH COUNCIL,FLATS COMMUNAL SERVICES,F & G CLEANERS LTD,95908,20-Apr-20,2114120,65,0,WINDOW CLEANING,OTHER CLEANING AND JANITORIAL SERVICE PROVIDERS,Invoice,BACS,None,17-Mar-20,2020,1,57517,M2611,FLATS SERVICES GENERAL (BHS),B6286,WINDOW CLEANING
GUILDFORD BOROUGH COUNCIL,PARKS & COUNTRYSIDE,F & G CLEANERS LTD,95908,20-Apr-20,2114120,83,0,WINDOW CLEANING,OTHER CLEANING AND JANITORIAL SERVICE PROVIDERS,Invoice,BACS,None,17-Mar-20,2020,1,57517,A1273,WOODBRIDGE RD PAVILION,B6286,WINDOW CLEANING
GUILDFORD BOROUGH COUNCIL,FLATS COMMUNAL SERVICES,F & G CLEANERS LTD,95908,20-Apr-20,2114120,34,0,WINDOW CLEANING,OTHER CLEANING AND JANITORIAL SERVICE PROVIDERS,Invoice,BACS,None,17-Mar-20,2020,1,57517,M2611,FLATS SERVICES GENERAL (BHS),B6286,WINDOW CLEANING
GUILDFORD BOROUGH COUNCIL,FLATS COMMUNAL SERVICES,F & G CLEANERS LTD,95908,20-Apr-20,2114120,45,0,WINDOW CLEANING,OTHER CLEANING AND JANITORIAL SERVICE PROVIDERS,Invoice,BACS,None,17-Mar-20,2020,1,57517,M2623,ANSTON COURT 1-12 (12),B6286,WINDOW CLEANING
GUILDFORD BOROUGH COUNCIL,FLATS COMMUNAL SERVICES,F & G CLEANERS LTD,95908,30-Apr-20,2116965,65,0,R&M - GENERAL,OTHER CLEANING AND JANITORIAL SERVICE PROVIDERS,Invoice,BACS,None,10-Mar-20,2020,1,57513,M2647,BISHOPS PARKHURST 1-4(4),B1231,R&M - GENERAL
GUILDFORD BOROUGH COUNCIL,DAY SERVICES,F & G CLEANERS LTD,95908,20-Apr-20,2114120,12,0,WINDOW CLEANING,OTHER CLEANING AND JANITORIAL SERVICE PROVIDERS,Invoice,BACS,None,17-Mar-20,2020,1,57517,C8188,WEST HUB SHAWFIELD,B6286,WINDOW CLEANING
GUILDFORD BOROUGH COUNCIL,LEGAL SERVICES,EE LIMITED,85364,02-Apr-20,2111774,100.14,0,TELECOMMS; MOBILE PHONES,MOBILE COMMUNICATIONS SERVICE PROVIDERS,Invoice,BACS,None,03-Mar-20,2020,1,01285522318,G4525,LEGAL SERVICES,D5487,TELECOMMS; MOBILE PHONES
GUILDFORD BOROUGH COUNCIL,PARKS & COUNTRYSIDE,EE LIMITED,85364,02-Apr-20,2109808,53.63,0,TELECOMMS; MOBILE PHONES,MOBILE COMMUNICATIONS SERVICE PROVIDERS,Invoice,BACS,None,03-Feb-20,2020,1,01285485538,A1000,HOUSING,D5487,TELECOMMS; MOBILE PHONES
GUILDFORD BOROUGH COUNCIL,DEMOCRATIC REPRESENTATION,EE LIMITED,85364,02-Apr-20,2109808,231.5,0,TELECOMMS; MOBILE PHONES,MOBILE COMMUNICATIONS SERVICE PROVIDERS,Invoice,BACS,None,03-Feb-20,2020,1,01285485538,F2121,COUNCILLOR SERVICES,D5487,TELECOMMS; MOBILE PHONES
GUILDFORD BOROUGH COUNCIL,ENVIRONMENTAL CONTROL,EE LIMITED,85364,02-Apr-20,2109808,67.5,0,TELECOMMS; MOBILE PHONES,MOBILE COMMUNICATIONS SERVICE PROVIDERS,Invoice,BACS,None,03-Feb-20,2020,1,01285485538,C1113,ENVIRONMENTAL CONTROL,D5487,TELECOMMS; MOBILE PHONES
GUILDFORD BOROUGH COUNCIL,LEISURE RANGERS,EE LIMITED,85364,02-Apr-20,2109808,67.5,0,TELECOMMS; MOBILE PHONES,MOBILE COMMUNICATIONS SERVICE PROVIDERS,Invoice,BACS,None,03-Feb-20,2020,1,01285485538,A1700,PARKS RANGER SERVICE,D5487,TELECOMMS; MOBILE PHONES
GUILDFORD BOROUGH COUNCIL,HOUSING BENEFITS,EDEN BROWN LTD,82954,09-Apr-20,2110342,1023.75,0,AGENCY STAFF,OTHER RECRUITMENT AGENCIES AND SERVICE PROVIDERS,Invoice,BACS,None,18-Mar-20,2020,1,1242940,C4511,HOUSING BENEFITS ADMIN.,A5191,AGENCY STAFF
GUILDFORD BOROUGH COUNCIL,FLATS COMMUNAL SERVICES,F & G CLEANERS LTD,95908,20-Apr-20,2114120,16,0,WINDOW CLEANING,OTHER CLEANING AND JANITORIAL SERVICE PROVIDERS,Invoice,BACS,None,17-Mar-20,2020,1,57517,M2611,FLATS SERVICES GENERAL (BHS),B6286,WINDOW CLEANING
GUILDFORD BOROUGH COUNCIL,SHELTERED HOUSING,F & G CLEANERS LTD,95908,20-Apr-20,2114120,130,0,WINDOW CLEANING,OTHER CLEANING AND JANITORIAL SERVICE PROVIDERS,Invoice,BACS,None,17-Mar-20,2020,1,57517,M1515,SHELTERED ACCOMODATION,B6286,WINDOW CLEANING
GUILDFORD BOROUGH COUNCIL,RESPONSIVE & PLANNED MAINTENAN,F & G CLEANERS LTD,95908,20-Apr-20,2114120,25,0,WINDOW CLEANING,OTHER CLEANING AND JANITORIAL SERVICE PROVIDERS,Invoice,BACS,None,17-Mar-20,2020,1,57517,M5114,REPAIRS-CYCLICAL (BHS),B6286,WINDOW CLEANING
GUILDFORD BOROUGH COUNCIL,RESPONSIVE & PLANNED MAINTENAN,F & G CLEANERS LTD,95908,30-Apr-20,2116965,130,0,DRAINAGE; SURFACE WATER/GUTTER,OTHER CLEANING AND JANITORIAL SERVICE PROVIDERS,Invoice,BACS,None,10-Mar-20,2020,1,57513,M5114,REPAIRS-CYCLICAL (BHS),B1327,DRAINAGE; SURFACE WATER/GUTTER
GUILDFORD BOROUGH COUNCIL,FLATS COMMUNAL SERVICES,F & G CLEANERS LTD,95908,20-Apr-20,2114120,20,0,WINDOW CLEANING,OTHER CLEANING AND JANITORIAL SERVICE PROVIDERS,Invoice,BACS,None,17-Mar-20,2020,1,57517,M2883,ROWAN CL 31 - 41 (6 ODD),B6286,WINDOW CLEANING
GUILDFORD BOROUGH COUNCIL,FLATS COMMUNAL SERVICES,F & G CLEANERS LTD,95908,30-Apr-20,2116965,65,0,R&M - GENERAL,OTHER CLEANING AND JANITORIAL SERVICE PROVIDERS,Invoice,BACS,None,10-Mar-20,2020,1,57513,M2894,SANDFIELDS NOS 57-58A,B1231,R&M - GENERAL
GUILDFORD BOROUGH COUNCIL,FLATS COMMUNAL SERVICES,F & G CLEANERS LTD,95908,30-Apr-20,2116965,130,0,R&M - GENERAL,OTHER CLEANING AND JANITORIAL SERVICE PROVIDERS,Invoice,BACS,None,10-Mar-20,2020,1,57513,M2871,THE RIDGES 5-6A (4),B1231,R&M - GENERAL
GUILDFORD BOROUGH COUNCIL,WEBSITE,EE LIMITED,85364,02-Apr-20,2111774,11.25,0,TELECOMMS; MOBILE PHONES,MOBILE COMMUNICATIONS SERVICE PROVIDERS,Invoice,BACS,None,03-Mar-20,2020,1,01285522318,F1141,INTERNET SITE ACCESS,D5487,TELECOMMS; MOBILE PHONES
GUILDFORD BOROUGH COUNCIL,FLATS COMMUNAL SERVICES,F & G CLEANERS LTD,95908,30-Apr-20,2116965,130,0,R&M - GENERAL,OTHER CLEANING AND JANITORIAL SERVICE PROVIDERS,Invoice,BACS,None,10-Mar-20,2020,1,57513,M2775,KINGSTON AVE 17-18A (4),B1231,R&M - GENERAL
GUILDFORD BOROUGH COUNCIL,FLATS COMMUNAL SERVICES,F & G CLEANERS LTD,95908,30-Apr-20,2116965,130,0,R&M - GENERAL,OTHER CLEANING AND JANITORIAL SERVICE PROVIDERS,Invoice,BACS,None,10-Mar-20,2020,1,57513,M2687,THE ELMS 6-8A(6),B1231,R&M - GENERAL
GUILDFORD BOROUGH COUNCIL,COMMUNITY MEALS & TPT,EE LIMITED,85364,02-Apr-20,2109808,22.5,0,TELECOMMS; MOBILE PHONES,MOBILE COMMUNICATIONS SERVICE PROVIDERS,Invoice,BACS,None,03-Feb-20,2020,1,01285485538,C8142,COMMUNITY MEALS SERVICE,D5487,TELECOMMS; MOBILE PHONES
GUILDFORD BOROUGH COUNCIL,LEISURE PLAY DEVELOPMENT,EE LIMITED,85364,02-Apr-20,2109808,11.25,0,TELECOMMS; MOBILE PHONES,MOBILE COMMUNICATIONS SERVICE PROVIDERS,Invoice,BACS,None,03-Feb-20,2020,1,01285485538,A7211,PLAY DEVELOPMENT,D5487,TELECOMMS; MOBILE PHONES
GUILDFORD BOROUGH COUNCIL,GUILDHALL,F & G CLEANERS LTD,95908,20-Apr-20,2114120,56,0,WINDOW CLEANING,OTHER CLEANING AND JANITORIAL SERVICE PROVIDERS,Invoice,BACS,None,17-Mar-20,2020,1,57517,F3311,GUILDHALL,B6286,WINDOW CLEANING
GUILDFORD BOROUGH COUNCIL,DEMOCRATIC REPRESENTATION,EE LIMITED,85364,02-Apr-20,2111774,231.5,0,TELECOMMS; MOBILE PHONES,MOBILE COMMUNICATIONS SERVICE PROVIDERS,Invoice,BACS,None,03-Mar-20,2020,1,01285522318,F2121,COUNCILLOR SERVICES,D5487,TELECOMMS; MOBILE PHONES
GUILDFORD BOROUGH COUNCIL,CORPORATE PROPERTY SERVICES,EE LIMITED,85364,02-Apr-20,2109808,45,0,TELECOMMS; MOBILE PHONES,MOBILE COMMUNICATIONS SERVICE PROVIDERS,Invoice,BACS,None,03-Feb-20,2020,1,01285485538,G4575,CORPORATE PROPERTY SERVICES,D5487,TELECOMMS; MOBILE PHONES
GUILDFORD BOROUGH COUNCIL,OPERATIONAL SERVS OVERHEAD AC,EE LIMITED,85364,02-Apr-20,2109808,31,0,TELECOMMS; MOBILE PHONES,MOBILE COMMUNICATIONS SERVICE PROVIDERS,Invoice,BACS,None,03-Feb-20,2020,1,01285485538,K1519,OPERATIONAL SERVS OVERHEAD AC,D5487,TELECOMMS; MOBILE PHONES
GUILDFORD BOROUGH COUNCIL,SHELTERED HOUSING,F & G CLEANERS LTD,95908,20-Apr-20,2114120,85,0,WINDOW CLEANING,OTHER CLEANING AND JANITORIAL SERVICE PROVIDERS,Invoice,BACS,None,17-Mar-20,2020,1,57517,M1515,SHELTERED ACCOMODATION,B6286,WINDOW CLEANING
GUILDFORD BOROUGH COUNCIL,SHELTERED HOUSING,F & G CLEANERS LTD,95908,20-Apr-20,2114120,22,0,WINDOW CLEANING,OTHER CLEANING AND JANITORIAL SERVICE PROVIDERS,Invoice,BACS,None,17-Mar-20,2020,1,57517,M1515,SHELTERED ACCOMODATION,B6286,WINDOW CLEANING
GUILDFORD BOROUGH COUNCIL,DAY SERVICES,F & G CLEANERS LTD,95908,20-Apr-20,2114120,36,0,WINDOW CLEANING,OTHER CLEANING AND JANITORIAL SERVICE PROVIDERS,Invoice,BACS,None,17-Mar-20,2020,1,57517,C8188,WEST HUB SHAWFIELD,B6286,WINDOW CLEANING
GUILDFORD BOROUGH COUNCIL,HR SERVICES,EE LIMITED,85364,02-Apr-20,2109808,11.25,0,TELECOMMS; MOBILE PHONES,MOBILE COMMUNICATIONS SERVICE PROVIDERS,Invoice,BACS,None,03-Feb-20,2020,1,01285485538,G2555,HR SERVICES,D5487,TELECOMMS; MOBILE PHONES
GUILDFORD BOROUGH COUNCIL,WEBSITE,EE LIMITED,85364,02-Apr-20,2109808,11.25,0,TELECOMMS; MOBILE PHONES,MOBILE COMMUNICATIONS SERVICE PROVIDERS,Invoice,BACS,None,03-Feb-20,2020,1,01285485538,F1141,INTERNET SITE ACCESS,D5487,TELECOMMS; MOBILE PHONES
GUILDFORD BOROUGH COUNCIL,FLATS COMMUNAL SERVICES,F & G CLEANERS LTD,95908,20-Apr-20,2114120,65,0,WINDOW CLEANING,OTHER CLEANING AND JANITORIAL SERVICE PROVIDERS,Invoice,BACS,None,17-Mar-20,2020,1,57517,M2611,FLATS SERVICES GENERAL (BHS),B6286,WINDOW CLEANING
GUILDFORD BOROUGH COUNCIL,RESPONSIVE & PLANNED MAINTENAN,F & G CLEANERS LTD,95908,20-Apr-20,2114120,10,0,WINDOW CLEANING,OTHER CLEANING AND JANITORIAL SERVICE PROVIDERS,Invoice,BACS,None,17-Mar-20,2020,1,57517,M5113,REPAIRS-RESPONSIVE (BHS),B6286,WINDOW CLEANING
GUILDFORD BOROUGH COUNCIL,FLATS COMMUNAL SERVICES,F & G CLEANERS LTD,95908,20-Apr-20,2114120,50,0,WINDOW CLEANING,OTHER CLEANING AND JANITORIAL SERVICE PROVIDERS,Invoice,BACS,None,17-Mar-20,2020,1,57517,M2692,CAXTONS COURT 1-12 (12),B6286,WINDOW CLEANING
GUILDFORD BOROUGH COUNCIL,CREMATORIUM,EE LIMITED,85364,02-Apr-20,2111774,56.25,0,TELECOMMS; MOBILE PHONES,MOBILE COMMUNICATIONS SERVICE PROVIDERS,Invoice,BACS,None,03-Mar-20,2020,1,01285522318,A1500,GUILDFORD CREMATORIUM,D5487,TELECOMMS; MOBILE PHONES
GUILDFORD BOROUGH COUNCIL,FLATS COMMUNAL SERVICES,F & G CLEANERS LTD,95908,20-Apr-20,2114120,135,0,WINDOW CLEANING,OTHER CLEANING AND JANITORIAL SERVICE PROVIDERS,Invoice,BACS,None,17-Mar-20,2020,1,57517,M3513,EPSOM ROAD EQUITY SHARE,B6286,WINDOW CLEANING
GUILDFORD BOROUGH COUNCIL,BUSINESS & TOURISM,EE LIMITED,85364,02-Apr-20,2111774,17,0,TELECOMMS; MOBILE PHONES,MOBILE COMMUNICATIONS SERVICE PROVIDERS,Invoice,BACS,None,03-Mar-20,2020,1,01285522318,F5547,BUSINESS,D5487,TELECOMMS; MOBILE PHONES
GUILDFORD BOROUGH COUNCIL,DEVELOPMENT CONTROL,EE LIMITED,85364,02-Apr-20,2111774,11.25,0,TELECOMMS; MOBILE PHONES,MOBILE COMMUNICATIONS SERVICE PROVIDERS,Invoice,BACS,None,03-Mar-20,2020,1,01285522318,D5100,DEVELOPMENT CONTROL - FEE EARN,D5487,TELECOMMS; MOBILE PHONES
GUILDFORD BOROUGH COUNCIL,INCOME COLLECTION,EE LIMITED,85364,02-Apr-20,2111774,11.25,0,TELECOMMS; MOBILE PHONES,MOBILE COMMUNICATIONS SERVICE PROVIDERS,Invoice,BACS,None,03-Mar-20,2020,1,01285522318,M1121,INCOME COLLECTION (BHS),D5487,TELECOMMS; MOBILE PHONES
GUILDFORD BOROUGH COUNCIL,FLATS COMMUNAL SERVICES,F & G CLEANERS LTD,95908,20-Apr-20,2114120,40,0,WINDOW CLEANING,OTHER CLEANING AND JANITORIAL SERVICE PROVIDERS,Invoice,BACS,None,17-Mar-20,2020,1,57517,M2885,FLATS-ROWAN CLOSE 18-32 (EVEN),B6286,WINDOW CLEANING
GUILDFORD BOROUGH COUNCIL,LEGAL SERVICES,EE LIMITED,85364,02-Apr-20,2109808,98.5,0,TELECOMMS; MOBILE PHONES,MOBILE COMMUNICATIONS SERVICE PROVIDERS,Invoice,BACS,None,03-Feb-20,2020,1,01285485538,G4525,LEGAL SERVICES,D5487,TELECOMMS; MOBILE PHONES
GUILDFORD BOROUGH COUNCIL,FLATS COMMUNAL SERVICES,F & G CLEANERS LTD,95908,30-Apr-20,2116965,165,0,R&M - GENERAL,OTHER CLEANING AND JANITORIAL SERVICE PROVIDERS,Invoice,BACS,None,10-Mar-20,2020,1,57513,M2673,CINNAMAN GARDENS 15 - 20 (6),B1231,R&M - GENERAL
GUILDFORD BOROUGH COUNCIL,SUPPORTED HOUSING MANAGEMENT,EE LIMITED,85364,02-Apr-20,2111774,11.25,0,TELECOMMS; MOBILE PHONES,MOBILE COMMUNICATIONS SERVICE PROVIDERS,Invoice,BACS,None,03-Mar-20,2020,1,01285522318,M3690,SUPPORTED HSG-GENERAL (SHS),D5487,TELECOMMS; MOBILE PHONES
GUILDFORD BOROUGH COUNCIL,COMMUNITY DEVELOPMENT,EE LIMITED,85364,02-Apr-20,2111774,33.75,0,TELECOMMS; MOBILE PHONES,MOBILE COMMUNICATIONS SERVICE PROVIDERS,Invoice,BACS,None,03-Mar-20,2020,1,01285522318,F5711,COMMUNITY SAFETY TEAM,D5487,TELECOMMS; MOBILE PHONES
GUILDFORD BOROUGH COUNCIL,FOOD AND SAFETY SERVICES,EE LIMITED,85364,02-Apr-20,2109808,45,0,TELECOMMS; MOBILE PHONES,MOBILE COMMUNICATIONS SERVICE PROVIDERS,Invoice,BACS,None,03-Feb-20,2020,1,01285485538,C1111,FOOD AND SAFETY SERVICES,D5487,TELECOMMS; MOBILE PHONES
GUILDFORD BOROUGH COUNCIL,PARKS & COUNTRYSIDE,F & G CLEANERS LTD,95908,20-Apr-20,2114120,24,0,WINDOW CLEANING,OTHER CLEANING AND JANITORIAL SERVICE PROVIDERS,Invoice,BACS,None,17-Mar-20,2020,1,57517,A1810,BURCHATTS FARM BARN,B6286,WINDOW CLEANING
GUILDFORD BOROUGH COUNCIL,COUNCIL TAX,EE LIMITED,85364,02-Apr-20,2111774,22.5,0,TELECOMMS; MOBILE PHONES,MOBILE COMMUNICATIONS SERVICE PROVIDERS,Invoice,BACS,None,03-Mar-20,2020,1,01285522318,F6141,COUNCIL TAX COLLECTN EXPENSES,D5487,TELECOMMS; MOBILE PHONES
GUILDFORD BOROUGH COUNCIL,VEHICLE MAINTENANCE,FLUID SYSTEMS LTD T/A PIRTEK (GUILDFORD),6670,09-Apr-20,2111529,125.72,0,SPARES FOR VEHICLES,PLANT AND CONSTRUCTION EQUIPMENT SUPPLIERS,Invoice,BACS,None,25-Mar-20,2020,1,GUI262,K5551,VEHICLE MAINTENANCE,D1589,SPARES FOR VEHICLES
GUILDFORD BOROUGH COUNCIL,STREET CLEANSING,EE LIMITED,85364,02-Apr-20,2111774,11.25,0,TELECOMMS; MOBILE PHONES,MOBILE COMMUNICATIONS SERVICE PROVIDERS,Invoice,BACS,None,03-Mar-20,2020,1,01285522318,B8512,ENVIRONMENTAL AND DOG CONTROL,D5487,TELECOMMS; MOBILE PHONES
GUILDFORD BOROUGH COUNCIL,FLATS COMMUNAL SERVICES,F & G CLEANERS LTD,95908,20-Apr-20,2114120,10,0,WINDOW CLEANING,OTHER CLEANING AND JANITORIAL SERVICE PROVIDERS,Invoice,BACS,None,17-Mar-20,2020,1,57517,M2617,STOKE PARK COURT FLATS,B6286,WINDOW CLEANING
GUILDFORD BOROUGH COUNCIL,FLATS COMMUNAL SERVICES,F & G CLEANERS LTD,95908,20-Apr-20,2114120,16,0,WINDOW CLEANING,OTHER CLEANING AND JANITORIAL SERVICE PROVIDERS,Invoice,BACS,None,17-Mar-20,2020,1,57517,M2628,BARGATE COURT 1-16 (16),B6286,WINDOW CLEANING
GUILDFORD BOROUGH COUNCIL,FLATS COMMUNAL SERVICES,F & G CLEANERS LTD,95908,20-Apr-20,2114120,45,0,WINDOW CLEANING,OTHER CLEANING AND JANITORIAL SERVICE PROVIDERS,Invoice,BACS,None,17-Mar-20,2020,1,57517,M2628,BARGATE COURT 1-16 (16),B6286,WINDOW CLEANING
GUILDFORD BOROUGH COUNCIL,FLATS COMMUNAL SERVICES,F & G CLEANERS LTD,95908,20-Apr-20,2114120,20,0,WINDOW CLEANING,OTHER CLEANING AND JANITORIAL SERVICE PROVIDERS,Invoice,BACS,None,17-Mar-20,2020,1,57517,M2884,ROWAN CL 43 - 53 (6 ODD),B6286,WINDOW CLEANING
GUILDFORD BOROUGH COUNCIL,TOWN CENTRE MANAGEMENT,EE LIMITED,85364,02-Apr-20,2111774,33.99,0,TELECOMMS; MOBILE PHONES,MOBILE COMMUNICATIONS SERVICE PROVIDERS,Invoice,BACS,None,03-Mar-20,2020,1,01285522318,F5550,FARMERS MARKET,D5487,TELECOMMS; MOBILE PHONES
GUILDFORD BOROUGH COUNCIL,TENANT SELECTION,EE LIMITED,85364,02-Apr-20,2109808,11.25,0,TELECOMMS; MOBILE PHONES,MOBILE COMMUNICATIONS SERVICE PROVIDERS,Invoice,BACS,None,03-Feb-20,2020,1,01285485538,M1131,"ADVICE,REGS,TENANT SELECT(SHS)",D5487,TELECOMMS; MOBILE PHONES
GUILDFORD BOROUGH COUNCIL,HOUSING BENEFITS,EDEN BROWN LTD,82954,09-Apr-20,2111262,984.38,0,AGENCY STAFF,OTHER RECRUITMENT AGENCIES AND SERVICE PROVIDERS,Invoice,BACS,None,25-Mar-20,2020,1,1243655,C4511,HOUSING BENEFITS ADMIN.,A5191,AGENCY STAFF
GUILDFORD BOROUGH COUNCIL,CORP SERVICES,EE LIMITED,85364,02-Apr-20,2109808,11.25,0,TELECOMMS; MOBILE PHONES,MOBILE COMMUNICATIONS SERVICE PROVIDERS,Invoice,BACS,None,03-Feb-20,2020,1,01285485538,F1111,CORPORATE SERVICES,D5487,TELECOMMS; MOBILE PHONES
GUILDFORD BOROUGH COUNCIL,GUILDFORD HOUSE,F & G CLEANERS LTD,95908,20-Apr-20,2114120,12,0,WINDOW CLEANING,OTHER CLEANING AND JANITORIAL SERVICE PROVIDERS,Invoice,BACS,None,17-Mar-20,2020,1,57517,A4511,GUILDFORD HOUSE ADMINISTRATION,B6286,WINDOW CLEANING
GUILDFORD BOROUGH COUNCIL,OPERATIONS TECHNICAL SERVICES,EE LIMITED,85364,02-Apr-20,2111774,112.52,0,TELECOMMS; MOBILE PHONES,MOBILE COMMUNICATIONS SERVICE PROVIDERS,Invoice,BACS,None,03-Mar-20,2020,1,01285522318,G3548,ICT TECHNICAL & INFRASTRUCTURE,D5487,TELECOMMS; MOBILE PHONES
GUILDFORD BOROUGH COUNCIL,PUBLIC CONVENIENCES,JC ELECTRICS (GUILDFORD) LTD,74836,30-Apr-20,2117194,148.21,0,MECHANICAL/ELECTRICAL MNTCE AG,ELECTRICAL WIRING AND PARTS SUPPLIERS,Invoice,BACS,None,20-Jan-20,2020,1,S744,K6552,ONSLOW REC PUB CON,B1221,MECHANICAL/ELECTRICAL MNTCE AG
GUILDFORD BOROUGH COUNCIL,GF CONTRIBUTIONS,LAMBERT SMITH HAMPTON,26806,21-Apr-20,2114960,-69060,0,CONSULTANTS FEES - PROJECTS,OTHER TECHNICAL CONSULTANTS,Credit Note,,None,17-Apr-20,2020,1,00384447,P91100,WOODBRIDGE RD GARAGES TW,1221,CONSULTANTS FEES - PROJECTS
GUILDFORD BOROUGH COUNCIL,GUILDFORD HOUSE,JC ELECTRICS (GUILDFORD) LTD,74836,30-Apr-20,2117208,131.2,0,MECHANICAL/ELECTRICAL MNTCE AG,ELECTRICAL WIRING AND PARTS SUPPLIERS,Invoice,BACS,None,19-Feb-20,2020,1,S857,A4511,GUILDFORD HOUSE ADMINISTRATION,B1221,MECHANICAL/ELECTRICAL MNTCE AG
GUILDFORD BOROUGH COUNCIL,DAY SERVICES,JC ELECTRICS (GUILDFORD) LTD,74836,30-Apr-20,2117210,90,0,ELECTRICAL EXCLUDING HEATING,ELECTRICAL WIRING AND PARTS SUPPLIERS,Invoice,BACS,None,19-Feb-20,2020,1,S859,C8189,CENTRAL HUB PARK BARN,B1331,ELECTRICAL EXCLUDING HEATING
GUILDFORD BOROUGH COUNCIL,SPECTRUM,JC ELECTRICS (GUILDFORD) LTD,74836,21-Apr-20,2112076,450,0,CONTRACT PYTS-MINOR CONTRACTOR,ELECTRICAL WIRING AND PARTS SUPPLIERS,Invoice,BACS,None,12-Mar-20,2020,1,S934,P22062,SPECTRUM ROOF,1234,CONTRACT PYTS-MINOR CONTRACTOR
GUILDFORD BOROUGH COUNCIL,GUILDFORD HOUSE,JC ELECTRICS (GUILDFORD) LTD,74836,20-Apr-20,2114101,61,0,MECHANICAL/ELECTRICAL MNTCE AG,ELECTRICAL WIRING AND PARTS SUPPLIERS,Invoice,BACS,None,26-Mar-20,2020,1,S967,A4511,GUILDFORD HOUSE ADMINISTRATION,B1221,MECHANICAL/ELECTRICAL MNTCE AG
GUILDFORD BOROUGH COUNCIL,GUILDFORD HOUSE,JC ELECTRICS (GUILDFORD) LTD,74836,20-Apr-20,2114102,61,0,MECHANICAL/ELECTRICAL MNTCE AG,ELECTRICAL WIRING AND PARTS SUPPLIERS,Invoice,BACS,None,26-Mar-20,2020,1,S966,A4511,GUILDFORD HOUSE ADMINISTRATION,B1221,MECHANICAL/ELECTRICAL MNTCE AG
GUILDFORD BOROUGH COUNCIL,DAY SERVICES,JC ELECTRICS (GUILDFORD) LTD,74836,09-Apr-20,2112622,61,0,ELECTRICAL EXCLUDING HEATING,ELECTRICAL WIRING AND PARTS SUPPLIERS,Invoice,BACS,None,11-Mar-20,2020,1,S912,C8189,CENTRAL HUB PARK BARN,B1331,ELECTRICAL EXCLUDING HEATING
GUILDFORD BOROUGH COUNCIL,RESPONSIVE & PLANNED MAINTENAN,JC ELECTRICS (GUILDFORD) LTD,74836,09-Apr-20,2112630,90,0,ELECTRICAL EXCLUDING HEATING,ELECTRICAL WIRING AND PARTS SUPPLIERS,Invoice,BACS,None,24-Mar-20,2020,1,S626,M5106,REPAIRS-SHELT-RESPONSIVE (BHS),B1331,ELECTRICAL EXCLUDING HEATING
GUILDFORD BOROUGH COUNCIL,OFF STREET PARKING,JC ELECTRICS (GUILDFORD) LTD,74836,30-Apr-20,2117204,370.1,0,MECHANICAL/ELECTRICAL MNTCE AG,ELECTRICAL WIRING AND PARTS SUPPLIERS,Invoice,BACS,None,12-Feb-20,2020,1,S843,B2219,BEDFORD ROAD MSCP,B1221,MECHANICAL/ELECTRICAL MNTCE AG
GUILDFORD BOROUGH COUNCIL,PARKS & COUNTRYSIDE,JC ELECTRICS (GUILDFORD) LTD,74836,30-Apr-20,2117191,760.1,0,MECHANICAL/ELECTRICAL MNTCE AG,ELECTRICAL WIRING AND PARTS SUPPLIERS,Invoice,BACS,None,20-Jan-20,2020,1,S729,A1230,SUTH'LAND MEM PRK PAVILION-GBC,B1221,MECHANICAL/ELECTRICAL MNTCE AG
GUILDFORD BOROUGH COUNCIL,RESPONSIVE & PLANNED MAINTENAN,JC ELECTRICS (GUILDFORD) LTD,74836,30-Apr-20,2117201,146.69,0,ELECTRICAL EXCLUDING HEATING,ELECTRICAL WIRING AND PARTS SUPPLIERS,Invoice,BACS,None,12-Feb-20,2020,1,S840,M5106,REPAIRS-SHELT-RESPONSIVE (BHS),B1331,ELECTRICAL EXCLUDING HEATING
GUILDFORD BOROUGH COUNCIL,OFFICE SERVICES TEAM,JC ELECTRICS (GUILDFORD) LTD,74836,30-Apr-20,2117196,717.4,0,CAR PARKS GENERAL MAINTENANCE,ELECTRICAL WIRING AND PARTS SUPPLIERS,Invoice,BACS,None,21-Jan-20,2020,1,S770,G7511,MILLMEAD HOUSE,B1248,CAR PARKS GENERAL MAINTENANCE
GUILDFORD BOROUGH COUNCIL,INVESTMENT PROPERTY,JC ELECTRICS (GUILDFORD) LTD,74836,30-Apr-20,2117182,90,0,MECHANICAL/ELECTRICAL MNTCE AG,ELECTRICAL WIRING AND PARTS SUPPLIERS,Invoice,BACS,None,19-Feb-20,2020,1,S860,B6131,HAYDON PLACE 15 - 17,B1221,MECHANICAL/ELECTRICAL MNTCE AG
GUILDFORD BOROUGH COUNCIL,OFF STREET PARKING,JC ELECTRICS (GUILDFORD) LTD,74836,16-Apr-20,2113316,444.1,0,MECHANICAL/ELECTRICAL MNTCE AG,ELECTRICAL WIRING AND PARTS SUPPLIERS,Invoice,BACS,None,26-Nov-19,2020,1,S616,B2254,LAWN ROAD CAR PARK,B1221,MECHANICAL/ELECTRICAL MNTCE AG
GUILDFORD BOROUGH COUNCIL,OFF STREET PARKING,JC ELECTRICS (GUILDFORD) LTD,74836,16-Apr-20,2113322,169.4,0,MECHANICAL/ELECTRICAL MNTCE AG,ELECTRICAL WIRING AND PARTS SUPPLIERS,Invoice,BACS,None,03-Dec-19,2020,1,S649,B2219,BEDFORD ROAD MSCP,B1221,MECHANICAL/ELECTRICAL MNTCE AG
GUILDFORD BOROUGH COUNCIL,DAY SERVICES,JC ELECTRICS (GUILDFORD) LTD,74836,09-Apr-20,2112624,402.5,0,ELECTRICAL EXCLUDING HEATING,ELECTRICAL WIRING AND PARTS SUPPLIERS,Invoice,BACS,None,26-Nov-19,2020,1,S615,C8189,CENTRAL HUB PARK BARN,B1331,ELECTRICAL EXCLUDING HEATING
GUILDFORD BOROUGH COUNCIL,INVESTMENT PROPERTY,JC ELECTRICS (GUILDFORD) LTD,74836,30-Apr-20,2117203,119,0,MECHANICAL/ELECTRICAL MNTCE AG,ELECTRICAL WIRING AND PARTS SUPPLIERS,Invoice,BACS,None,12-Feb-20,2020,1,S842,B6131,HAYDON PLACE 15 - 17,B1221,MECHANICAL/ELECTRICAL MNTCE AG
GUILDFORD BOROUGH COUNCIL,PARKS & COUNTRYSIDE,JC ELECTRICS (GUILDFORD) LTD,74836,30-Apr-20,2117189,233.4,0,MECHANICAL/ELECTRICAL MNTCE AG,ELECTRICAL WIRING AND PARTS SUPPLIERS,Invoice,BACS,None,20-Jan-20,2020,1,S727,A1324,HOME FARM COTTAGE - STOKE PARK,B1221,MECHANICAL/ELECTRICAL MNTCE AG
GUILDFORD BOROUGH COUNCIL,OFFICE SERVICES TEAM,JC ELECTRICS (GUILDFORD) LTD,74836,30-Apr-20,2117192,177.3,0,MECHANICAL/ELECTRICAL MNTCE AG,ELECTRICAL WIRING AND PARTS SUPPLIERS,Invoice,BACS,None,20-Jan-20,2020,1,S732,G7515,OLD MILLMEAD HOUSE,B1221,MECHANICAL/ELECTRICAL MNTCE AG
GUILDFORD BOROUGH COUNCIL,RESPONSIVE & PLANNED MAINTENAN,JC ELECTRICS (GUILDFORD) LTD,74836,09-Apr-20,2112620,443.4,0,ELECTRICAL EXCLUDING HEATING,ELECTRICAL WIRING AND PARTS SUPPLIERS,Invoice,BACS,None,05-Nov-19,2020,1,S542,M5114,REPAIRS-CYCLICAL (BHS),B1331,ELECTRICAL EXCLUDING HEATING
GUILDFORD BOROUGH COUNCIL,CEMETERIES,JC ELECTRICS (GUILDFORD) LTD,74836,09-Apr-20,2112785,890.5,0,MECHANICAL/ELECTRICAL MNTCE AG,ELECTRICAL WIRING AND PARTS SUPPLIERS,Invoice,BACS,None,10-Mar-20,2020,1,S901,A1432,STOKE CEMET MESSROOM TOOLSHED,B1221,MECHANICAL/ELECTRICAL MNTCE AG
GUILDFORD BOROUGH COUNCIL,PARKS & COUNTRYSIDE,JC ELECTRICS (GUILDFORD) LTD,74836,30-Apr-20,2117197,307.5,0,MECHANICAL/ELECTRICAL MNTCE AG,ELECTRICAL WIRING AND PARTS SUPPLIERS,Invoice,BACS,None,21-Jan-20,2020,1,S771,A1600,STOKE NURSERY DEPOT,B1221,MECHANICAL/ELECTRICAL MNTCE AG
GUILDFORD BOROUGH COUNCIL,DAY SERVICES,JC ELECTRICS (GUILDFORD) LTD,74836,30-Apr-20,2117193,206.53,0,ELECTRICAL EXCLUDING HEATING,ELECTRICAL WIRING AND PARTS SUPPLIERS,Invoice,BACS,None,20-Jan-20,2020,1,S733,C8189,CENTRAL HUB PARK BARN,B1331,ELECTRICAL EXCLUDING HEATING
GUILDFORD BOROUGH COUNCIL,PARKS & COUNTRYSIDE,JC ELECTRICS (GUILDFORD) LTD,74836,30-Apr-20,2117195,225.1,0,MECHANICAL/ELECTRICAL MNTCE AG,ELECTRICAL WIRING AND PARTS SUPPLIERS,Invoice,BACS,None,20-Jan-20,2020,1,S745,A1324,HOME FARM COTTAGE - STOKE PARK,B1221,MECHANICAL/ELECTRICAL MNTCE AG
GUILDFORD BOROUGH COUNCIL,PARKS & COUNTRYSIDE,JC ELECTRICS (GUILDFORD) LTD,74836,30-Apr-20,2117198,159.21,0,MECHANICAL/ELECTRICAL MNTCE AG,ELECTRICAL WIRING AND PARTS SUPPLIERS,Invoice,BACS,None,21-Jan-20,2020,1,S772,A1130,CASTLE GROUNDS,B1221,MECHANICAL/ELECTRICAL MNTCE AG
GUILDFORD BOROUGH COUNCIL,DAY SERVICES,JC ELECTRICS (GUILDFORD) LTD,74836,30-Apr-20,2117176,101.4,0,ELECTRICAL EXCLUDING HEATING,ELECTRICAL WIRING AND PARTS SUPPLIERS,Invoice,BACS,None,20-Jan-20,2020,1,S765,C8188,WEST HUB SHAWFIELD,B1331,ELECTRICAL EXCLUDING HEATING
GUILDFORD BOROUGH COUNCIL,PARK & RIDE SERVICES,JC ELECTRICS (GUILDFORD) LTD,74836,16-Apr-20,2113319,105.1,0,MECHANICAL/ELECTRICAL MNTCE AG,ELECTRICAL WIRING AND PARTS SUPPLIERS,Invoice,BACS,None,26-Nov-19,2020,1,S619,B5201,ARTINGTON PARK & RIDE,B1221,MECHANICAL/ELECTRICAL MNTCE AG
GUILDFORD BOROUGH COUNCIL,DAY SERVICES,JC ELECTRICS (GUILDFORD) LTD,74836,09-Apr-20,2112621,160.7,0,ELECTRICAL EXCLUDING HEATING,ELECTRICAL WIRING AND PARTS SUPPLIERS,Invoice,BACS,None,16-Oct-19,2020,1,S502,C8188,WEST HUB SHAWFIELD,B1331,ELECTRICAL EXCLUDING HEATING
GUILDFORD BOROUGH COUNCIL,LEISURE COMMUNITY CENTRES,JC ELECTRICS (GUILDFORD) LTD,74836,09-Apr-20,2112626,488.2,0,MECHANICAL/ELECTRICAL MNTCE AG,ELECTRICAL WIRING AND PARTS SUPPLIERS,Invoice,BACS,None,24-Mar-20,2020,1,S622,A8161,BEVERLEY HALL COMMUNITY CENTRE,B1221,MECHANICAL/ELECTRICAL MNTCE AG
GUILDFORD BOROUGH COUNCIL,LEISURE COMMUNITY CENTRES,JC ELECTRICS (GUILDFORD) LTD,74836,09-Apr-20,2112627,546.8,0,MECHANICAL/ELECTRICAL MNTCE AG,ELECTRICAL WIRING AND PARTS SUPPLIERS,Invoice,BACS,None,24-Mar-20,2020,1,S623,A8161,BEVERLEY HALL COMMUNITY CENTRE,B1221,MECHANICAL/ELECTRICAL MNTCE AG
GUILDFORD BOROUGH COUNCIL,PARKS & COUNTRYSIDE,JC ELECTRICS (GUILDFORD) LTD,74836,30-Apr-20,2117206,90,0,MECHANICAL/ELECTRICAL MNTCE AG,ELECTRICAL WIRING AND PARTS SUPPLIERS,Invoice,BACS,None,12-Feb-20,2020,1,S845,A1130,CASTLE GROUNDS,B1221,MECHANICAL/ELECTRICAL MNTCE AG
GUILDFORD BOROUGH COUNCIL,RESPONSIVE & PLANNED MAINTENAN,JC ELECTRICS (GUILDFORD) LTD,74836,30-Apr-20,2117207,240.8,0,ELECTRICAL EXCLUDING HEATING,ELECTRICAL WIRING AND PARTS SUPPLIERS,Invoice,BACS,None,19-Feb-20,2020,1,S856,M5106,REPAIRS-SHELT-RESPONSIVE (BHS),B1331,ELECTRICAL EXCLUDING HEATING
GUILDFORD BOROUGH COUNCIL,RESPONSIVE & PLANNED MAINTENAN,JC ELECTRICS (GUILDFORD) LTD,74836,09-Apr-20,2112639,319.3,0,ELECTRICAL EXCLUDING HEATING,ELECTRICAL WIRING AND PARTS SUPPLIERS,Invoice,BACS,None,30-Sep-19,2020,1,S369,M5113,REPAIRS-RESPONSIVE (BHS),B1331,ELECTRICAL EXCLUDING HEATING
GUILDFORD BOROUGH COUNCIL,PARKS & COUNTRYSIDE,JC ELECTRICS (GUILDFORD) LTD,74836,20-Apr-20,2114100,61,0,MECHANICAL/ELECTRICAL MNTCE AG,ELECTRICAL WIRING AND PARTS SUPPLIERS,Invoice,BACS,None,26-Mar-20,2020,1,S968,A1230,SUTH'LAND MEM PRK PAVILION-GBC,B1221,MECHANICAL/ELECTRICAL MNTCE AG
GUILDFORD BOROUGH COUNCIL,PARK & RIDE SERVICES,JC ELECTRICS (GUILDFORD) LTD,74836,09-Apr-20,2112623,2464,0,MECHANICAL/ELECTRICAL MNTCE AG,ELECTRICAL WIRING AND PARTS SUPPLIERS,Invoice,BACS,None,11-Mar-20,2020,1,S905,B5201,ARTINGTON PARK & RIDE,B1221,MECHANICAL/ELECTRICAL MNTCE AG
GUILDFORD BOROUGH COUNCIL,GUILDFORD HOUSE,JC ELECTRICS (GUILDFORD) LTD,74836,09-Apr-20,2112631,158.1,0,MECHANICAL/ELECTRICAL MNTCE AG,ELECTRICAL WIRING AND PARTS SUPPLIERS,Invoice,BACS,None,01-Oct-19,2020,1,S395,A4511,GUILDFORD HOUSE ADMINISTRATION,B1221,MECHANICAL/ELECTRICAL MNTCE AG
GUILDFORD BOROUGH COUNCIL,MUSEUM,JC ELECTRICS (GUILDFORD) LTD,74836,09-Apr-20,2112634,412.2,0,MECHANICAL/ELECTRICAL MNTCE AG,ELECTRICAL WIRING AND PARTS SUPPLIERS,Invoice,BACS,None,30-Sep-19,2020,1,S382,A5551,WANBOROUGH BARNS,B1221,MECHANICAL/ELECTRICAL MNTCE AG
GUILDFORD BOROUGH COUNCIL,OFFICE SERVICES TEAM,JC ELECTRICS (GUILDFORD) LTD,74836,09-Apr-20,2112636,153.5,0,MECHANICAL/ELECTRICAL MNTCE AG,ELECTRICAL WIRING AND PARTS SUPPLIERS,Invoice,BACS,None,24-Mar-20,2020,1,S254,G7511,MILLMEAD HOUSE,B1221,MECHANICAL/ELECTRICAL MNTCE AG
GUILDFORD BOROUGH COUNCIL,MUSEUM,JC ELECTRICS (GUILDFORD) LTD,74836,09-Apr-20,2112641,150,0,EQUIPMENT; ELECTRICAL TESTING,ELECTRICAL WIRING AND PARTS SUPPLIERS,Invoice,BACS,None,30-Sep-19,2020,1,S372,A5531,UNDERCROFT 72/74 HIGH STREET,D4404,EQUIPMENT; ELECTRICAL TESTING
GUILDFORD BOROUGH COUNCIL,OFF STREET PARKING,JC ELECTRICS (GUILDFORD) LTD,74836,09-Apr-20,2112782,1057.4,0,ELECTRICAL EXCLUDING HEATING,ELECTRICAL WIRING AND PARTS SUPPLIERS,Invoice,BACS,None,11-Mar-20,2020,1,S907,B2219,BEDFORD ROAD MSCP,B1331,ELECTRICAL EXCLUDING HEATING
GUILDFORD BOROUGH COUNCIL,PARK & RIDE SERVICES,JC ELECTRICS (GUILDFORD) LTD,74836,09-Apr-20,2112783,1575,0,MECHANICAL/ELECTRICAL MNTCE AG,ELECTRICAL WIRING AND PARTS SUPPLIERS,Invoice,BACS,None,11-Mar-20,2020,1,S906,B5205,MERROW PARK AND RIDE,B1221,MECHANICAL/ELECTRICAL MNTCE AG
GUILDFORD BOROUGH COUNCIL,PARK & RIDE SERVICES,JC ELECTRICS (GUILDFORD) LTD,74836,09-Apr-20,2112784,1671,0,MECHANICAL/ELECTRICAL MNTCE AG,ELECTRICAL WIRING AND PARTS SUPPLIERS,Invoice,BACS,None,11-Mar-20,2020,1,S904,B5206,ONSLOW PARK AND RIDE,B1221,MECHANICAL/ELECTRICAL MNTCE AG
GUILDFORD BOROUGH COUNCIL,OFF STREET PARKING,JC ELECTRICS (GUILDFORD) LTD,74836,09-Apr-20,2112632,177,0,MECHANICAL/ELECTRICAL MNTCE AG,ELECTRICAL WIRING AND PARTS SUPPLIERS,Invoice,BACS,None,24-Mar-20,2020,1,S629,B2219,BEDFORD ROAD MSCP,B1221,MECHANICAL/ELECTRICAL MNTCE AG
GUILDFORD BOROUGH COUNCIL,PARK & RIDE SERVICES,JC ELECTRICS (GUILDFORD) LTD,74836,16-Apr-20,2113317,510.4,0,MECHANICAL/ELECTRICAL MNTCE AG,ELECTRICAL WIRING AND PARTS SUPPLIERS,Invoice,BACS,None,11-Dec-19,2020,1,S664,B5205,MERROW PARK AND RIDE,B1221,MECHANICAL/ELECTRICAL MNTCE AG
GUILDFORD BOROUGH COUNCIL,PUBLIC CONVENIENCES,JC ELECTRICS (GUILDFORD) LTD,74836,30-Apr-20,2117183,253.1,0,MECHANICAL/ELECTRICAL MNTCE AG,ELECTRICAL WIRING AND PARTS SUPPLIERS,Invoice,BACS,None,30-Sep-19,2020,1,S375,K6554,SHALFORD PARK PUB CON,B1221,MECHANICAL/ELECTRICAL MNTCE AG
GUILDFORD BOROUGH COUNCIL,INVESTMENT PROPERTY,JC ELECTRICS (GUILDFORD) LTD,74836,30-Apr-20,2117188,206,0,ELECTRICAL EXCLUDING HEATING,ELECTRICAL WIRING AND PARTS SUPPLIERS,Invoice,BACS,None,20-Jan-20,2020,1,S726,B6131,HAYDON PLACE 15 - 17,B1331,ELECTRICAL EXCLUDING HEATING
GUILDFORD BOROUGH COUNCIL,PUBLIC CONVENIENCES,JC ELECTRICS (GUILDFORD) LTD,74836,16-Apr-20,2113318,99.9,0,MECHANICAL/ELECTRICAL MNTCE AG,ELECTRICAL WIRING AND PARTS SUPPLIERS,Invoice,BACS,None,26-Nov-19,2020,1,S618,K6547,BEDFORD ROAD MSCP PUB CON,B1221,MECHANICAL/ELECTRICAL MNTCE AG
GUILDFORD BOROUGH COUNCIL,PARKS & COUNTRYSIDE,JC ELECTRICS (GUILDFORD) LTD,74836,16-Apr-20,2113321,281.5,0,MECHANICAL/ELECTRICAL MNTCE AG,ELECTRICAL WIRING AND PARTS SUPPLIERS,Invoice,BACS,None,03-Dec-19,2020,1,S648,A1230,SUTH'LAND MEM PRK PAVILION-GBC,B1221,MECHANICAL/ELECTRICAL MNTCE AG
GUILDFORD BOROUGH COUNCIL,RESPONSIVE & PLANNED MAINTENAN,JC ELECTRICS (GUILDFORD) LTD,74836,30-Apr-20,2117175,397.4,0,ELECTRICAL EXCLUDING HEATING,ELECTRICAL WIRING AND PARTS SUPPLIERS,Invoice,BACS,None,13-Mar-20,2020,1,INV-0570,M5106,REPAIRS-SHELT-RESPONSIVE (BHS),B1331,ELECTRICAL EXCLUDING HEATING
GUILDFORD BOROUGH COUNCIL,PARKS & COUNTRYSIDE,JC ELECTRICS (GUILDFORD) LTD,74836,30-Apr-20,2117186,119,0,MECHANICAL/ELECTRICAL MNTCE AG,ELECTRICAL WIRING AND PARTS SUPPLIERS,Invoice,BACS,None,26-Nov-19,2020,1,S610,A1600,STOKE NURSERY DEPOT,B1221,MECHANICAL/ELECTRICAL MNTCE AG
GUILDFORD BOROUGH COUNCIL,STREET FURNITURE,JC ELECTRICS (GUILDFORD) LTD,74836,30-Apr-20,2117187,253.98,0,STREET FURNITURE R&M,ELECTRICAL WIRING AND PARTS SUPPLIERS,Invoice,BACS,None,26-Nov-19,2020,1,S612,B3711,CIVIC AMENITIES ADMINISTRATION,D1401,STREET FURNITURE R&M
GUILDFORD BOROUGH COUNCIL,POLICY,JC ELECTRICS (GUILDFORD) LTD,74836,16-Apr-20,2113313,436.4,0,ENV. IMPS & LIGHTING MNTCE,ELECTRICAL WIRING AND PARTS SUPPLIERS,Invoice,BACS,None,05-Nov-19,2020,1,S545,D5555,DESIGN AND CONSERVATION,B1271,ENV. IMPS & LIGHTING MNTCE
GUILDFORD BOROUGH COUNCIL,OFFICE SERVICES TEAM,JC ELECTRICS (GUILDFORD) LTD,74836,09-Apr-20,2112637,434,0,MECHANICAL/ELECTRICAL MNTCE AG,ELECTRICAL WIRING AND PARTS SUPPLIERS,Invoice,BACS,None,24-Mar-20,2020,1,S316,G7515,OLD MILLMEAD HOUSE,B1221,MECHANICAL/ELECTRICAL MNTCE AG
GUILDFORD BOROUGH COUNCIL,OPERATIONS TECHNICAL SERVICES,JC ELECTRICS (GUILDFORD) LTD,74836,16-Apr-20,2113315,438.2,0,COPY MACHINES - MFD,ELECTRICAL WIRING AND PARTS SUPPLIERS,Invoice,BACS,None,26-Nov-19,2020,1,S613,G3548,ICT TECHNICAL & INFRASTRUCTURE,D3415,COPY MACHINES - MFD
GUILDFORD BOROUGH COUNCIL,PARKS & COUNTRYSIDE,JC ELECTRICS (GUILDFORD) LTD,74836,09-Apr-20,2112781,32,0,MECHANICAL/ELECTRICAL MNTCE AG,ELECTRICAL WIRING AND PARTS SUPPLIERS,Invoice,BACS,None,11-Mar-20,2020,1,S911,A1342,CHANTRY WOOD CAMPSITE,B1221,MECHANICAL/ELECTRICAL MNTCE AG
GUILDFORD BOROUGH COUNCIL,PARKS & COUNTRYSIDE,JC ELECTRICS (GUILDFORD) LTD,74836,16-Apr-20,2113320,294,0,MECHANICAL/ELECTRICAL MNTCE AG,ELECTRICAL WIRING AND PARTS SUPPLIERS,Invoice,BACS,None,03-Dec-19,2020,1,S647,A1256,STOKE PRK HOME FARM STORE BARN,B1221,MECHANICAL/ELECTRICAL MNTCE AG
GUILDFORD BOROUGH COUNCIL,OFFICE SERVICES TEAM,JC ELECTRICS (GUILDFORD) LTD,74836,09-Apr-20,2112635,479.4,0,CAR PARKS GENERAL MAINTENANCE,ELECTRICAL WIRING AND PARTS SUPPLIERS,Invoice,BACS,None,24-Mar-20,2020,1,S652,G7511,MILLMEAD HOUSE,B1248,CAR PARKS GENERAL MAINTENANCE
GUILDFORD BOROUGH COUNCIL,OFF STREET PARKING,JC ELECTRICS (GUILDFORD) LTD,74836,09-Apr-20,2112640,699.66,0,MECHANICAL/ELECTRICAL MNTCE AG,ELECTRICAL WIRING AND PARTS SUPPLIERS,Invoice,BACS,None,30-Sep-19,2020,1,S371,B2216,GENERAL UPKEEP- URBAN CAR PKS,B1221,MECHANICAL/ELECTRICAL MNTCE AG
GUILDFORD BOROUGH COUNCIL,TOWN CENTRE CCTV SYSTEM,JC ELECTRICS (GUILDFORD) LTD,74836,09-Apr-20,2112642,231.14,0,NEW / REPLACE EQUIP. & TOOLS;,ELECTRICAL WIRING AND PARTS SUPPLIERS,Invoice,BACS,None,30-Sep-19,2020,1,S373,F7540,TOWN CENTRE CCTV SYSTEM,D1428,NEW / REPLACE EQUIP. & TOOLS;
GUILDFORD BOROUGH COUNCIL,VEHICLE MAINTENANCE,JAYAR COMPONENTS LIMITED,97990,21-Apr-20,2113745,38,0,SPARES FOR VEHICLES,THIRD PARTY SUPPLIER,Invoice,BACS,None,19-Mar-20,2020,1,VK306823,K5551,VEHICLE MAINTENANCE,D1589,SPARES FOR VEHICLES
GUILDFORD BOROUGH COUNCIL,LICENSING SERVICES,JAMES BUTTON & CO,2673,07-Apr-20,2108627,36.25,0,GENERAL SUBSCRIPTIONS,SOLICITORS [UK ONLY],Invoice,BACS,None,11-Mar-20,2020,1,JBSI-173,H2104,SEX ESTABLISHMENTS,D7497,GENERAL SUBSCRIPTIONS
GUILDFORD BOROUGH COUNCIL,TAXI LICENSING,JAMES BUTTON & CO,2673,07-Apr-20,2108627,108.75,0,GENERAL SUBSCRIPTIONS,SOLICITORS [UK ONLY],Invoice,BACS,None,11-Mar-20,2020,1,JBSI-173,H1107,PH OPERATORS,D7497,GENERAL SUBSCRIPTIONS
GUILDFORD BOROUGH COUNCIL,LICENSING SERVICES,JAMES BUTTON & CO,2673,07-Apr-20,2108627,217.5,0,GENERAL SUBSCRIPTIONS,SOLICITORS [UK ONLY],Invoice,BACS,None,11-Mar-20,2020,1,JBSI-173,H2100,LICENSING SERVICES,D7497,GENERAL SUBSCRIPTIONS
GUILDFORD BOROUGH COUNCIL,LICENSING SERVICES,JAMES BUTTON & CO,2673,07-Apr-20,2108627,36.25,0,GENERAL SUBSCRIPTIONS,SOLICITORS [UK ONLY],Invoice,BACS,None,11-Mar-20,2020,1,JBSI-173,H2103,STREET TRADING,D7497,GENERAL SUBSCRIPTIONS
GUILDFORD BOROUGH COUNCIL,PARKS & COUNTRYSIDE,JC ELECTRICS (GUILDFORD) LTD,74836,16-Apr-20,2113314,403.5,0,MECHANICAL/ELECTRICAL MNTCE AG,ELECTRICAL WIRING AND PARTS SUPPLIERS,Invoice,BACS,None,26-Nov-19,2020,1,S601,A1324,HOME FARM COTTAGE - STOKE PARK,B1221,MECHANICAL/ELECTRICAL MNTCE AG
GUILDFORD BOROUGH COUNCIL,LEISURE COMMUNITY CENTRES,JC ELECTRICS (GUILDFORD) LTD,74836,30-Apr-20,2117199,442.4,0,MECHANICAL/ELECTRICAL MNTCE AG,ELECTRICAL WIRING AND PARTS SUPPLIERS,Invoice,BACS,None,29-Jan-20,2020,1,S801,A8151,STOUGHTON YOUTH & COMMUNITY CE,B1221,MECHANICAL/ELECTRICAL MNTCE AG
